Directorate,Department,Expenditure Type,Ref.Doc.1,Vendor Name,Expenditure Amount (exc VAT),Payment Date
Delivery Units,Assurance,Professional Services,1033589601,PRICEWATERHOUSE COOPERS,"20,000.00",15/02/2024
Delivery Units,Assurance,Training,1033598302,CIPFA,184.25,15/02/2024
Delivery Units,Assurance,Subscriptions,1033863702,National Crime Agency,725.00,28/02/2024
Delivery Units,Assurance,General Sales,0080073860,LONDON BOROUGH OF HARINGEY,"9,098.14",27/02/2024
Delivery Units,Strategy and Resources,Other Establishments - Third P,0080074423,TRANSPORT TRADING LIMITED,"2,256,709.77",14/02/2024
Delivery Units,Strategy and Resources,Other Establishments - Third P,0080073990,GLA LEVIES,"50,633.80",01/02/2024
Delivery Units,Strategy and Resources,Other Establishments - Third P,1033592702,CITY OF LONDON,"89,771.00",15/02/2024
Delivery Units,Strategy and Resources,Other Establishments - Third P,0080074421,LEE VALLEY REGIONAL PARK AUTH.,"32,407.20",13/02/2024
Delivery Units,Strategy and Resources,Other Services,0080074808,North London Waste Authority ,"897,742.00",23/02/2024
Delivery Units,Strategy and Resources,Consultants Fees,1033398702,LOGOTECH SYSTEMS,"4,833.28",23/02/2024
Delivery Units,Customer and Place,Other Services,1033273401,THE BARNETGROUP LIMITED,"320,000.00",05/02/2024
Delivery Units,Customer and Place,Other Agencies - Third Party P,1033274201,THE BARNETGROUP LIMITED,"224,000.00",05/02/2024
Delivery Units,Customer and Place,Other Awards,1033274401,THE BARNETGROUP LIMITED,"131,000.00",05/02/2024
Delivery Units,Customer and Place,Private Contractors - Third Pa,1033436601,THE BARNETGROUP LIMITED,"1,613,000.00",09/02/2024
Delivery Units,Customer and Place,Professional Services,1033672002,THE BARNETGROUP LIMITED,"101,535.99",20/02/2024
Delivery Units,Customer and Place,Professional Services,1033672802,THE BARNETGROUP LIMITED,"89,033.91",20/02/2024
Delivery Units,Customer and Place,Professional Services,1033672902,THE BARNETGROUP LIMITED,"45,731.11",20/02/2024
Delivery Units,Customer and Place,Ttl IT & Comms,1033673002,THE BARNETGROUP LIMITED,"91,147.16",20/02/2024
Delivery Units,Customer and Place,Professional Services,1033673502,THE BARNETGROUP LIMITED,"193,192.64",20/02/2024
Delivery Units,Customer and Place,Professional Services,1033673802,THE BARNETGROUP LIMITED,"548,673.77",20/02/2024
Delivery Units,Customer and Place,Professional Services,1033674002,THE BARNETGROUP LIMITED,"750,942.95",19/02/2024
Delivery Units,Customer and Place,Professional Services,1033675002,THE BARNETGROUP LIMITED,"219,969.29",20/02/2024
Delivery Units,Customer and Place,Ttl IT & Comms,1033675302,THE BARNETGROUP LIMITED,"352,616.66",19/02/2024
Delivery Units,Customer and Place,Private Contractors - Third Pa,1033778401,THE BARNETGROUP LIMITED,"2,033,000.00",22/02/2024
Delivery Units,Customer and Place,Subscriptions,1033677001,LONDON BOROUGH OF EALING,"19,001.33",20/02/2024
Delivery Units,Customer and Place,Professional Services,1033672702,THE BARNETGROUP LIMITED,"69,917.76",19/02/2024
Delivery Units,Customer and Place,Professional Services,1034006302,THE BARNETGROUP LIMITED,"51,256.61",29/02/2024
Delivery Units,Customer and Place,Legal and Court Fees,0080074422,Eade Planning Ltd,"3,900.00",16/02/2024
Delivery Units,Customer and Place,Professional Services,1033349501,PeopleScout Limited,324.49,07/02/2024
Delivery Units,Customer and Place,Professional Services,1033555701,PeopleScout Limited,365.13,14/02/2024
Delivery Units,Customer and Place,Software Licences & Support,1033738701,VU.CITY Limited,"10,000.00",21/02/2024
Delivery Units,Customer and Place,Professional Services,1033773201,PeopleScout Limited,263.53,22/02/2024
Delivery Units,Customer and Place,Professional Services,1033866901,WSP UK LIMITED,614.60,26/02/2024
Delivery Units,Customer and Place,Software Licences & Support,1033868001,IDOX SOFTWARE LIMITED,"3,850.00",26/02/2024
Delivery Units,Customer and Place,Professional Services,1033964901,PeopleScout Limited,405.77,28/02/2024
Delivery Units,Customer and Place,Professional Services,1033520502,THE PLANNING INSPECTORATE,"22,292.85",14/02/2024
Delivery Units,Customer and Place,Professional Services,1033234301,CAPITA BUSINESS SERVICES LTD,"22,422.18",02/02/2024
Delivery Units,Customer and Place,Professional Services,1033776101,CAPITA BUSINESS SERVICES LTD,"5,820.41",22/02/2024
Delivery Units,Customer and Place,Professional Services,1032886702,LONDON BOROUGH OF EALING,"4,450.00",20/02/2024
Delivery Units,Childrens Service DSG,Education CFR Funding Advances,0050077567,DANEGROVE PRIMARY SCHOOL,"239,866.99",20/02/2024
Delivery Units,Childrens Service DSG,Education CFR Funding Advances,0050077593,The Orion Primary School,"382,261.75",20/02/2024
Delivery Units,Customer and Place,Building Repairs & Maintenance,1020525702,Integrated Water Services Ltd,"4,258.09",19/02/2024
Delivery Units,Customer and Place,Building Repairs & Maintenance,1022757002,Integrated Water Services Ltd,"4,199.76",19/02/2024
Delivery Units,Customer and Place,Building Repairs & Maintenance,1032973202,RGE SERVICES,912.00,07/02/2024
Delivery Units,Customer and Place,Building Repairs & Maintenance,1033112702,PRECISION LIFT SERVICES LTD,"1,016.62",06/02/2024
Delivery Units,Customer and Place,Building Repairs & Maintenance,1033115202,Riello Property & Construction Ltd,"2,320.00",02/02/2024
Delivery Units,Customer and Place,Building Repairs & Maintenance,1033230702,RGE SERVICES,"18,068.80",08/02/2024
Delivery Units,Customer and Place,Building Repairs & Maintenance,1033277002,WATES PROPERTY SERVICES LTD,"3,600.00",26/02/2024
Delivery Units,Customer and Place,Building Repairs & Maintenance,1033312202,RGE SERVICES,"5,832.61",07/02/2024
Delivery Units,Customer and Place,Building Repairs & Maintenance,1033347502,Integrated Water Services Ltd,"5,429.43",07/02/2024
Delivery Units,Customer and Place,Building Repairs & Maintenance,1033596101,Riverside Environmental Services LTD,"2,875.00",15/02/2024
Delivery Units,Customer and Place,Building Repairs & Maintenance,1033961601,Avignon Property Management Ltd,"1,000.00",28/02/2024
Delivery Units,Childrens Service DSG,Education CFR Funding Advances,0050077847,The Orion Primary School,"6,411.95",20/02/2024
Delivery Units,Childrens Service DSG,Other Establishments - Third P,0050077818,PARKFIELD ACADEMY,"1,972.26",20/02/2024
Delivery Units,Childrens Service DSG,Other Establishments - Third P,0050077824,The Hyde School,"1,824.69",20/02/2024
Delivery Units,Childrens Service DSG,Other Establishments - Third P,0050077884,BROADFIELDS ACADEMY,"4,205.57",20/02/2024
Delivery Units,Childrens Service DSG,Other Establishments - Third P,0050077949,Summerside Primary Academy,487.60,20/02/2024
Delivery Units,Childrens Service DSG,Other Services,0080073992,Kana Nurseries Ltd,"1,494.00",01/02/2024
Delivery Units,Childrens Service DSG,Other Services,0080074008,Tiddleytots Nursery,"1,971.00",01/02/2024
Delivery Units,Childrens Service DSG,Education CFR Funding Advances,0020068834,The Orion Primary School,"49,705.26",21/02/2024
Delivery Units,Childrens Service DSG,Education CFR Funding Advances,0020068784,BEIS SOROH SCHNEIRER,"55,504.80",21/02/2024
Delivery Units,Childrens Service DSG,Education CFR Funding Advances,0020068788,BROADFIELDS ACADEMY,"25,831.08",21/02/2024
Delivery Units,Childrens Service DSG,Education CFR Funding Advances,0020068796,BEIS CHINUCH PRIMARY SCHOOL,"40,703.52",21/02/2024
Delivery Units,Childrens Service DSG,Education CFR Funding Advances,0020068799,Finchley Yochien,"4,696.56",21/02/2024
Delivery Units,Childrens Service DSG,Education CFR Funding Advances,0020068805,INDEPENDENT JEWISH DAY SCHOOL,"16,829.34",21/02/2024
Delivery Units,Childrens Service DSG,Education CFR Funding Advances,0020068807,The Mill Hill Foundation,"7,827.60",21/02/2024
Delivery Units,Childrens Service DSG,Education CFR Funding Advances,0020068813,Millbrook Park Primary School,"20,743.14",21/02/2024
Delivery Units,Childrens Service DSG,Education CFR Funding Advances,0020068815,NANCY REUBEN PRIMARY SCHOOL,"28,677.48",21/02/2024
Delivery Units,Childrens Service DSG,Education CFR Funding Advances,0020068818,PARKFIELD ACADEMY,"32,875.92",21/02/2024
Delivery Units,Childrens Service DSG,Education CFR Funding Advances,0020068819,Peninim Primary School,"28,570.74",21/02/2024
Delivery Units,Childrens Service DSG,Education CFR Funding Advances,0020068823,St Anthony's School for Girls,"10,175.88",21/02/2024
Delivery Units,Childrens Service DSG,Education CFR Funding Advances,0020068828,ST MARTIN'S SCHOOL,"7,819.02",21/02/2024
Delivery Units,Childrens Service DSG,Education CFR Funding Advances,0020068831,Summerside Primary Academy,"12,132.78",21/02/2024
Delivery Units,Childrens Service DSG,Education CFR Funding Advances,0020068833,The Hyde School,"27,503.34",21/02/2024
Delivery Units,Childrens Service DSG,Private Contractors - Third Pa,0080074274,Barnet Early Years Alliance (BEYA),197.81,09/02/2024
Delivery Units,Childrens Service DSG,Private Contractors - Third Pa,0080074689,ST MARGARET'S NURSERY SCHOOL,548.85,22/02/2024
Delivery Units,Childrens Service DSG,Private Contractors - Third Pa,0080074691,BROADFIELDS ACADEMY,480.32,22/02/2024
Delivery Units,Childrens Service DSG,Private Contractors - Third Pa,0080074754,BROADFIELDS ACADEMY,"1,369.35",22/02/2024
Delivery Units,Childrens Family Services,Cleaning and domestic material,1033199201,Cleantec Services Ltd,"1,217.44",01/02/2024
Delivery Units,Childrens Family Services,Cleaning and domestic material,1033430401,Cleantec Services Ltd,"1,217.44",12/02/2024
Delivery Units,Childrens Family Services,Other Services,1033433501,LEE SECURITY LONDON LIMITED,80.00,09/02/2024
Delivery Units,Childrens Family Services,Equipment and Materials Purcha,1033859901,Croft Communications Limited,63.40,26/02/2024
Delivery Units,Childrens Family Services,Cleaning and domestic material,1033817802,Norse Commercial Services Ltd,704.36,26/02/2024
Delivery Units,Childrens Family Services,Cleaning and domestic material,1033818002,Norse Commercial Services Ltd,64.25,23/02/2024
Delivery Units,Childrens Family Services,Electricity,1033856201,KENT COUNTY COUNCIL (KCS),"1,861.76",27/02/2024
Delivery Units,Childrens Family Services,Gas,1033856301,KENT COUNTY COUNCIL (KCS),"1,091.58",26/02/2024
Delivery Units,Childrens Family Services,Cleaning and domestic material,1034002902,Norse Commercial Services Ltd,61.58,29/02/2024
Delivery Units,Childrens Family Services,Gas,1033855901,KENT COUNTY COUNCIL (KCS),"1,623.70",27/02/2024
Delivery Units,Childrens Family Services,Electricity,0080074688,EDF ENERGY CUSTOMERS PLC,591.38,22/02/2024
Delivery Units,Childrens Family Services,Operational Leases - Equipment,1033197701,Canon (UK) limited,4.44,01/02/2024
Delivery Units,Childrens Family Services,Other Services,1033233502,BIBLIOTHECA LTD,250.00,09/02/2024
Delivery Units,Childrens Family Services,Operational Leases - Equipment,1033276303,Canon (UK) limited,5.96,15/02/2024
Delivery Units,Childrens Family Services,Operational Leases - Equipment,1033277203,Canon (UK) limited,2.44,15/02/2024
Delivery Units,Childrens Family Services,Operational Leases - Equipment,1033310003,Canon (UK) limited,2.37,15/02/2024
Delivery Units,Childrens Family Services,Operational Leases - Equipment,1033638001,Canon (UK) limited,9.10,16/02/2024
Delivery Units,Childrens Family Services,Operational Leases - Equipment,1033676201,Canon (UK) limited,14.52,20/02/2024
Delivery Units,Childrens Family Services,Operational Leases - Equipment,1033676401,Canon (UK) limited,90.85,19/02/2024
Delivery Units,Childrens Family Services,Operational Leases - Equipment,1033677101,Canon (UK) limited,90.85,19/02/2024
Delivery Units,Childrens Family Services,Operational Leases - Equipment,1033677201,Canon (UK) limited,9.97,19/02/2024
Delivery Units,Childrens Family Services,Other Services,1033683401,BLUE 9 SECURITY LIMITED,101.10,19/02/2024
Delivery Units,Childrens Family Services,Other Services,1033683601,BLUE 9 SECURITY LIMITED,"2,709.48",19/02/2024
Delivery Units,Childrens Family Services,Other Services,1033683701,Enigma CCTV Ltd,"5,730.57",19/02/2024
Delivery Units,Childrens Family Services,Other Services,1033684201,BLUE 9 SECURITY LIMITED,"2,497.17",19/02/2024
Delivery Units,Childrens Family Services,Other Services,1033684701,BLUE 9 SECURITY LIMITED,323.52,19/02/2024
Delivery Units,Childrens Family Services,Equipment and Materials Repair,1033685001,LONDON CASH REGISTERS,"1,192.50",19/02/2024
Delivery Units,Childrens Family Services,Other Services,1033685501,BLUE 9 SECURITY LIMITED,"2,224.20",19/02/2024
Delivery Units,Childrens Family Services,Other Services,1033688402,Harrow Green Ltd,"1,120.04",27/02/2024
Delivery Units,Childrens Family Services,Other Services,1033688501,BLUE 9 SECURITY LIMITED,"2,123.10",19/02/2024
Delivery Units,Childrens Family Services,Other Services,1033689202,Harrow Green Ltd,"1,040.00",22/02/2024
Delivery Units,Childrens Family Services,Operational Leases - Equipment,1033868701,Canon (UK) limited,90.85,26/02/2024
Delivery Units,Childrens Family Services,Other Services,1033870301,BDI SECURITIES UK LIMITED,225.00,26/02/2024
Delivery Units,Childrens Family Services,Operational Leases - Equipment,1033870601,Canon (UK) limited,90.85,26/02/2024
Delivery Units,Childrens Family Services,Operational Leases - Equipment,1033870701,Canon (UK) limited,8.71,26/02/2024
Delivery Units,Childrens Family Services,Operational Leases - Equipment,1033870801,Canon (UK) limited,90.85,26/02/2024
Delivery Units,Childrens Family Services,Operational Leases - Equipment,1033871201,Canon (UK) limited,90.85,26/02/2024
Delivery Units,Childrens Family Services,Operational Leases - Equipment,1033871701,Canon (UK) limited,14.58,26/02/2024
Delivery Units,Childrens Family Services,Operational Leases - Equipment,1033872001,Canon (UK) limited,90.85,26/02/2024
Delivery Units,Childrens Family Services,Operational Leases - Equipment,1033873601,Canon (UK) limited,26.16,26/02/2024
Delivery Units,Childrens Family Services,Operational Leases - Equipment,1033874401,Canon (UK) limited,4.25,26/02/2024
Delivery Units,Childrens Family Services,Software Licences & Support,1033917801,Onemedia Services Limited,"1,980.00",27/02/2024
Delivery Units,Childrens Family Services,Books-CDs-Audio-Video,0021007782,HANXIN LIMITED,898.12,12/02/2024
Delivery Units,Childrens Family Services,Books-CDs-Audio-Video,0021007783,HANXIN LIMITED,106.04,12/02/2024
Delivery Units,Childrens Family Services,Books-CDs-Audio-Video,0021007784,HANXIN LIMITED,299.11,12/02/2024
Delivery Units,Childrens Family Services,Books-CDs-Audio-Video,0021007786,Mill Hill Newsagents Ltd,143.00,15/02/2024
Delivery Units,Childrens Family Services,Books-CDs-Audio-Video,0021007795,NewsTeam Group LTD,200.70,15/02/2024
Delivery Units,Childrens Family Services,Books-CDs-Audio-Video,0021007796,ASKEWS & HOLTS LIBRARY SERVICES LTD,5.28,15/02/2024
Delivery Units,Childrens Family Services,Books-CDs-Audio-Video,0021007802,ASKEWS & HOLTS LIBRARY SERVICES LTD,15.34,15/02/2024
Delivery Units,Childrens Family Services,Books-CDs-Audio-Video,0021007810,ASKEWS & HOLTS LIBRARY SERVICES LTD,9.45,15/02/2024
Delivery Units,Childrens Family Services,Books-CDs-Audio-Video,0021007838,DX NETWORK SERVICES LTD,10.97,16/02/2024
Delivery Units,Childrens Family Services,Books-CDs-Audio-Video,0021007839,DX NETWORK SERVICES LTD,-5.67,16/02/2024
Delivery Units,Childrens Family Services,Books-CDs-Audio-Video,0021007840,ASKEWS & HOLTS LIBRARY SERVICES LTD,3.63,16/02/2024
Delivery Units,Childrens Family Services,Books-CDs-Audio-Video,0021007841,Singh Convenience Store Ltd,402.40,16/02/2024
Delivery Units,Childrens Family Services,Books-CDs-Audio-Video,0021007844,ASKEWS & HOLTS LIBRARY SERVICES LTD,48.34,16/02/2024
Delivery Units,Childrens Family Services,Books-CDs-Audio-Video,0021007846,ASKEWS & HOLTS LIBRARY SERVICES LTD,48.34,16/02/2024
Delivery Units,Childrens Family Services,Books-CDs-Audio-Video,0021007848,ASKEWS & HOLTS LIBRARY SERVICES LTD,48.34,16/02/2024
Delivery Units,Childrens Family Services,Books-CDs-Audio-Video,0021007850,ASKEWS & HOLTS LIBRARY SERVICES LTD,48.34,16/02/2024
Delivery Units,Childrens Family Services,Books-CDs-Audio-Video,0021007853,ASKEWS & HOLTS LIBRARY SERVICES LTD,48.34,16/02/2024
Delivery Units,Childrens Family Services,Books-CDs-Audio-Video,0021007854,ASKEWS & HOLTS LIBRARY SERVICES LTD,48.34,16/02/2024
Delivery Units,Childrens Family Services,Books-CDs-Audio-Video,0021007859,ASKEWS & HOLTS LIBRARY SERVICES LTD,48.34,16/02/2024
Delivery Units,Childrens Family Services,Books-CDs-Audio-Video,0021007860,ASKEWS & HOLTS LIBRARY SERVICES LTD,48.34,16/02/2024
Delivery Units,Childrens Family Services,Books-CDs-Audio-Video,0021007864,ASKEWS & HOLTS LIBRARY SERVICES LTD,48.34,16/02/2024
Delivery Units,Childrens Family Services,Books-CDs-Audio-Video,0021007870,ASKEWS & HOLTS LIBRARY SERVICES LTD,48.34,16/02/2024
Delivery Units,Childrens Family Services,Books-CDs-Audio-Video,0021007871,ASKEWS & HOLTS LIBRARY SERVICES LTD,48.34,16/02/2024
Delivery Units,Childrens Family Services,Books-CDs-Audio-Video,0021007883,ASKEWS & HOLTS LIBRARY SERVICES LTD,48.34,16/02/2024
Delivery Units,Childrens Family Services,Books-CDs-Audio-Video,0021007912,DX NETWORK SERVICES LTD,11.00,29/02/2024
Delivery Units,Childrens Family Services,Books-CDs-Audio-Video,0021007915,STAR BOOKS,8.06,29/02/2024
Delivery Units,Childrens Family Services,Books-CDs-Audio-Video,0021007918,Malhotra News Agent Ltd,259.60,29/02/2024
Delivery Units,Childrens Family Services,Books-CDs-Audio-Video,0021007791,Api Avi Store,212.20,15/02/2024
Delivery Units,Childrens Family Services,Books-CDs-Audio-Video,0021007833,Api Avi Store,218.60,15/02/2024
Delivery Units,Childrens Family Services,Books-CDs-Audio-Video,0021007835,Api Avi Store,218.40,15/02/2024
Delivery Units,Childrens Family Services,Books-CDs-Audio-Video,0021007836,Api Avi Store,208.80,15/02/2024
Delivery Units,Childrens Family Services,Books-CDs-Audio-Video,0021007837,Api Avi Store,214.70,15/02/2024
Delivery Units,Childrens Family Services,Books-CDs-Audio-Video,0021007911,CONFAGS,270.30,29/02/2024
Delivery Units,Childrens Family Services,Other Services,1033238302,Briar Consulting Engineers Ltd,150.00,09/02/2024
Delivery Units,Childrens Family Services,Cleaning and domestic material,1033397301,Norse Commercial Services Ltd,"2,648.54",08/02/2024
Delivery Units,Childrens Family Services,Other Services,1033596801,Norse Commercial Services Ltd,67.33,15/02/2024
Delivery Units,Childrens Family Services,Other Services,1033397401,Norse Commercial Services Ltd,17.00,08/02/2024
Delivery Units,Childrens Family Services,Cleaning and domestic material,1033397801,Norse Commercial Services Ltd,528.42,08/02/2024
Delivery Units,Childrens Family Services,Cleaning and domestic material,1033397901,Norse Commercial Services Ltd,"1,165.84",08/02/2024
Delivery Units,Childrens Family Services,Laundry and Dry Cleaning,1033310801,PHS GROUP LTD,130.59,07/02/2024
Delivery Units,Childrens Family Services,Cleaning and domestic material,1033397701,Norse Commercial Services Ltd,527.87,08/02/2024
Delivery Units,Childrens Family Services,Other Services,1033398201,Norse Commercial Services Ltd,17.00,08/02/2024
Delivery Units,Childrens Family Services,Rents,1015640702,FRESHWATER F R B SCHEME,278.05,09/02/2024
Delivery Units,Childrens Family Services,Other Services,1033394401,Norse Commercial Services Ltd,30.42,08/02/2024
Delivery Units,Childrens Family Services,Cleaning and domestic material,1033395101,Norse Commercial Services Ltd,705.28,08/02/2024
Delivery Units,Childrens Family Services,Other Services,1033239202,Briar Consulting Engineers Ltd,150.00,08/02/2024
Delivery Units,Childrens Family Services,Laundry and Dry Cleaning,1033311201,PHS GROUP LTD,130.59,07/02/2024
Delivery Units,Childrens Family Services,Cleaning and domestic material,1033398501,Norse Commercial Services Ltd,528.42,08/02/2024
Delivery Units,Childrens Family Services,Cleaning and domestic material,1033395301,Norse Commercial Services Ltd,703.90,08/02/2024
Delivery Units,Childrens Family Services,Gas,1033309701,KENT COUNTY COUNCIL (KCS),925.79,14/02/2024
Delivery Units,Childrens Family Services,Books-CDs-Audio-Video,1033153103,ASKEWS & HOLTS LIBRARY SERVICES LTD,803.98,20/02/2024
Delivery Units,Childrens Family Services,Books-CDs-Audio-Video,1033153303,ASKEWS & HOLTS LIBRARY SERVICES LTD,70.32,20/02/2024
Delivery Units,Childrens Family Services,Books-CDs-Audio-Video,1033156903,ASKEWS & HOLTS LIBRARY SERVICES LTD,4.46,20/02/2024
Delivery Units,Childrens Family Services,Books-CDs-Audio-Video,1033157603,ASKEWS & HOLTS LIBRARY SERVICES LTD,55.52,20/02/2024
Delivery Units,Strategy and Resources,Advertising,1033316301,Good Impressions Limited,980.00,06/02/2024
Delivery Units,Assurance,Rents,1033198401,E File UK Ltd,"4,120.00",01/02/2024
Delivery Units,Assurance,Postage,1033396401,ROYAL MAIL GROUP LIMITED,104.30,08/02/2024
Delivery Units,Assurance,Postage,1033396501,ROYAL MAIL GROUP LIMITED,90.30,08/02/2024
Delivery Units,Assurance,Software Licences & Support,1034008701,Democracy Counts Limited,995.00,29/02/2024
Delivery Units,Assurance,Rents,1033554901,HENDON SCHOOL (ACADEMY),133.65,14/02/2024
Delivery Units,Assurance,Rents,1033554401,St Margaret's United Reformed Church,715.00,14/02/2024
Delivery Units,Assurance,Rents,1033555301,Central Square Minyan,950.00,14/02/2024
Delivery Units,Assurance,Rents,1033555501,John Keble Church,"1,270.00",14/02/2024
Delivery Units,Assurance,Rents,0080074029,St Paul's Church,850.00,06/02/2024
Delivery Units,Assurance,Rents,0080074191,Totteridge Tennis Club,"1,400.00",06/02/2024
Delivery Units,Assurance,Rents,1033236501,Trinity (Methodist/URC) Church,"1,555.00",02/02/2024
Delivery Units,Assurance,Rents,1033236702,St Stephens Church Hall,525.00,02/02/2024
Delivery Units,Assurance,Rents,1033237801,TRINITY CHURCH CENTRE,800.00,02/02/2024
Delivery Units,Assurance,Rents,1034009101,Stonegrove Community Trust,950.00,29/02/2024
Delivery Units,Customer and Place,Training,1033869301,LAND DATA,"1,392.00",26/02/2024
Delivery Units,Assurance,Professional Services,1033740401,Cornelius and Davies Ltd Trading as,"3,000.00",21/02/2024
Delivery Units,Assurance,Publications,1033778601,Good Impressions Limited,300.00,22/02/2024
Delivery Units,Assurance,Professional Services,0080074731,ST JOHN AMBULANCE (SAC),105.60,22/02/2024
Delivery Units,Assurance,Training,1033229001,LOCAL GOVERNMENT IMPROVEMENT AND,600.00,02/02/2024
Delivery Units,Assurance,Training,1033552601,Local Government Association,280.00,14/02/2024
Delivery Units,Assurance,Training,1033556001,Local Government Association,199.00,14/02/2024
Delivery Units,Childrens Family Services,Legal and Court Fees,0070205780,Bourne Medicolegal Limited,450.00,21/02/2024
Delivery Units,Childrens Family Services,Legal and Court Fees,0070205781,Bourne Medicolegal Limited,"4,500.00",21/02/2024
Delivery Units,Childrens Family Services,Legal and Court Fees,0070205784,Medical Expert Witness Alliance LLP,"1,697.45",21/02/2024
Delivery Units,Childrens Family Services,Legal and Court Fees,0070206307,Osbornes Solicitors LLP,291.67,28/02/2024
Delivery Units,Customer and Place,Training,1033967001,Medigold Health Consultancy li,"10,000.00",28/02/2024
Delivery Units,Customer and Place,Equipment and Materials Purcha,1033237902,STORM ENVIRONMENTAL LTD,"5,280.00",06/02/2024
Delivery Units,Customer and Place,Equipment and Materials Purcha,1033857802,CROMWELL POLYTHENE LTD,"8,966.10",29/02/2024
Delivery Units,Customer and Place,Equipment and Materials Purcha,1033871501,Imperial Polythene Products Ltd,"3,120.00",26/02/2024
Delivery Units,Customer and Place,Equipment and Materials Purcha,1033871602,Imperial Polythene Products Ltd,"2,998.32",26/02/2024
Delivery Units,Customer and Place,Equipment and Materials Purcha,1033871802,Imperial Polythene Products Ltd,"1,080.04",26/02/2024
Delivery Units,Customer and Place,Equipment and Materials Purcha,1033872202,Imperial Polythene Products Ltd,789.88,26/02/2024
Delivery Units,Customer and Place,Equipment and Materials Purcha,1033872401,Imperial Polythene Products Ltd,561.60,26/02/2024
Delivery Units,Customer and Place,Clothing - Protective Clothing,1033196101,SMI INT Group Ltd,32.64,01/02/2024
Delivery Units,Customer and Place,Clothing - Protective Clothing,1033394001,SMI INT Group Ltd,"3,103.30",08/02/2024
Delivery Units,Customer and Place,Clothing - Protective Clothing,1033396201,SMI INT Group Ltd,107.10,08/02/2024
Delivery Units,Customer and Place,Clothing - Protective Clothing,1033633703,SMI INT Group Ltd,40.32,20/02/2024
Delivery Units,Customer and Place,Training,1033776901,SKILLS TRAINING CENTRE LTD,850.00,22/02/2024
Delivery Units,Customer and Place,Training,1033777901,SKILLS TRAINING CENTRE LTD,"4,150.00",22/02/2024
Delivery Units,Customer and Place,Clothing - Protective Clothing,1033817501,SMI INT Group Ltd,"3,609.26",23/02/2024
Delivery Units,Customer and Place,Rubbish Collection,1033589401,Euro Label Printers Ltd (T/A PermiServe),173.65,15/02/2024
Delivery Units,Adults and Health,Other Agencies - Third Party P,1033859302,THE BARNETGROUP LIMITED,306.12,26/02/2024
Delivery Units,Adults and Health,Software Licences & Support,1033116803,Access UK Ltd,"1,389.75",23/02/2024
Delivery Units,Adults and Health,Ttl IT & Comms,1033118303,Access UK Ltd,"9,067.50",23/02/2024
Delivery Units,Adults and Health,Consultants Fees,1033815301,PPL (Private Public Ltd),"1,675.00",23/02/2024
Delivery Units,Adults and Health,Consultants Fees,1033815601,PPL (Private Public Ltd),"16,142.50",23/02/2024
Delivery Units,Adults and Health,Training,1033870501,HUNTERSJOY LTD,"8,062.50",26/02/2024
Delivery Units,Adults and Health,Other Transfer Payments to Soc,1033965801,HUNTERSJOY LTD,"2,257.50",28/02/2024
Delivery Units,Public Health,Health authorities - Third Par,1033586801,Central & North West London NHS FT,"1,973.25",20/02/2024
Delivery Units,Public Health,Health authorities - Third Par,1033588202,Central & North West London NHS FT,"11,500.00",15/02/2024
Delivery Units,Public Health,Health authorities - Third Par,1033591102,LEEDS CITY COUNCIL,140.00,15/02/2024
Delivery Units,Public Health,Health authorities - Third Par,1033587202,Barking Havering Redbridge NHS Trust,51.24,15/02/2024
Delivery Units,Public Health,Health authorities - Third Par,1032814503,University Hospitals Birmingham,519.00,20/02/2024
Delivery Units,Public Health,Health authorities - Third Par,1033586102,Chelsea & Westminster Hospital,"39,866.70",15/02/2024
Delivery Units,Public Health,Health authorities - Third Par,1033587902,CENTRAL LONDONCOMMUNITY HEALTHCARE,194.31,15/02/2024
Delivery Units,Public Health,Health authorities - Third Par,1033591702,Buckinghamshire Healthcare NHS Trust,131.00,15/02/2024
Delivery Units,Public Health,Health authorities - Third Par,1033688802,Northamptonshire Healthcare NHS,107.00,20/02/2024
Delivery Units,Public Health,Health authorities - Third Par,1033689402,North Middlesex University Hos,"14,259.97",19/02/2024
Delivery Units,Public Health,Health authorities - Third Par,1033817102,Chelsea & Westminster Hospital,188.48,23/02/2024
Delivery Units,Public Health,Health authorities - Third Par,1033859202,Royal Berkshire NHS Foundation Trust,131.00,26/02/2024
Delivery Units,Public Health,Health authorities - Third Par,1033965702,London North West Healthcare,"7,218.60",28/02/2024
Delivery Units,Public Health,Health authorities - Third Par,1033739502,CITY OF LONDON,"1,750.00",22/02/2024
Delivery Units,Public Health,Other Establishments - Third P,1033771002,Humankind Charity,"15,000.00",22/02/2024
Delivery Units,Public Health,Health authorities - Third Par,1033965501,Change Grow Live Services Ltd,"49,885.10",28/02/2024
Delivery Units,Public Health,Health authorities - Third Par,1032891502,BARNET EDUCATION AND LEARNING,"20,000.00",01/02/2024
Delivery Units,Public Health,Other Services,1033774901,BARNET EDUCATION AND LEARNING,"1,575.00",22/02/2024
Delivery Units,Adults and Health,Professional Services,1033071203,Recruitment Team Nine Limited,590.00,23/02/2024
Delivery Units,Adults and Health,Professional Services,1033232201,Recruitment Team Nine Limited,"1,770.00",02/02/2024
Delivery Units,Adults and Health,Professional Services,1033239001,Eduhez Ltd,"1,225.00",02/02/2024
Delivery Units,Adults and Health,Professional Services,1033315202,POhWER,116.19,06/02/2024
Delivery Units,Adults and Health,Professional Services,1033344702,POhWER,600.44,07/02/2024
Delivery Units,Adults and Health,Professional Services,1033435502,Recruitment Team Nine Limited,295.00,22/02/2024
Delivery Units,Adults and Health,Professional Services,1033674602,Recruitment Team Nine Limited,"2,065.00",22/02/2024
Delivery Units,Adults and Health,Professional Services,1033866002,AMIN ENTERPRISE LTD,175.00,26/02/2024
Delivery Units,Adults and Health,Professional Services,1033866302,AMIN ENTERPRISE LTD,175.00,26/02/2024
Delivery Units,Adults and Health,Professional Services,1033867402,AMIN ENTERPRISE LTD,175.00,26/02/2024
Delivery Units,Adults and Health,Professional Services,1033867702,AMIN ENTERPRISE LTD,175.00,26/02/2024
Delivery Units,Adults and Health,Professional Services,1033868502,AMIN ENTERPRISE LTD,175.00,26/02/2024
Delivery Units,Adults and Health,Professional Services,1033869102,AMIN ENTERPRISE LTD,175.00,26/02/2024
Delivery Units,Adults and Health,Professional Services,1033869802,AMIN ENTERPRISE LTD,175.00,26/02/2024
Delivery Units,Adults and Health,Professional Services,1033869902,AMIN ENTERPRISE LTD,175.00,26/02/2024
Delivery Units,Adults and Health,Professional Services,1033923002,Aisa Medical Ltd,"5,425.00",27/02/2024
Delivery Units,Adults and Health,Professional Services,1033965601,Kabe Limited,"3,500.00",28/02/2024
Delivery Units,Adults and Health,Other Services,1033558801,Thebigword Group Ltd,51.46,14/02/2024
Delivery Units,Adults and Health,Ttl IT & Comms,1033686801,MEDEQUIP ASSISTIVE TECHNOLOGY,"179,251.81",19/02/2024
Delivery Units,Adults and Health,Other Agencies - Third Party P,0090686538,CARLTON COURT (TLC GROUP),"7,400.00",06/02/2024
Delivery Units,Adults and Health,Other Agencies - Third Party P,0090686596,CARLTON COURT (TLC GROUP),"7,000.00",06/02/2024
Delivery Units,Adults and Health,Other Agencies - Third Party P,0090686861,CARLTON COURT (TLC GROUP),"4,363.24",06/02/2024
Delivery Units,Adults and Health,Other Agencies - Third Party P,0090686882,CARLTON COURT (TLC GROUP),"6,600.00",06/02/2024
Delivery Units,Adults and Health,Other Agencies - Third Party P,0090686888,CARLTON COURT (TLC GROUP),"6,000.00",06/02/2024
Delivery Units,Adults and Health,Other Agencies - Third Party P,0090687313,AUTUMN GARDENS,"4,800.00",08/02/2024
Delivery Units,Adults and Health,Other Agencies - Third Party P,0090687317,AUTUMN GARDENS,"3,656.00",08/02/2024
Delivery Units,Adults and Health,Other Agencies - Third Party P,0090688970,ASPEN VILLAGES LTD,"5,757.14",09/02/2024
Delivery Units,Adults and Health,Other Agencies - Third Party P,0090693541,BENSLOW MANAGEMENT COMPANY LIMITED,"3,987.09",21/02/2024
Delivery Units,Adults and Health,Other Agencies - Third Party P,0090695672,AUTUMN GARDENS,"3,656.00",28/02/2024
Delivery Units,Adults and Health,Other Agencies - Third Party P,0090695673,AUTUMN GARDENS,"4,800.00",28/02/2024
Delivery Units,Adults and Health,Other Agencies - Third Party P,0090687348,AGUDAS ISRAEL HOUSING ASSCTN LTD,"2,736.86",08/02/2024
Delivery Units,Adults and Health,Other Agencies - Third Party P,0090687352,AGUDAS ISRAEL HOUSING ASSCTN LTD,"13,790.57",08/02/2024
Delivery Units,Adults and Health,Other Agencies - Third Party P,0090692279,AGUDAS ISRAEL HOUSING ASSCTN LTD,"13,790.57",16/02/2024
Delivery Units,Adults and Health,Other Agencies - Third Party P,0090692280,AGUDAS ISRAEL HOUSING ASSCTN LTD,"13,345.71",16/02/2024
Delivery Units,Adults and Health,Other Agencies - Third Party P,0090692281,AGUDAS ISRAEL HOUSING ASSCTN LTD,"13,790.57",16/02/2024
Delivery Units,Adults and Health,Other Agencies - Third Party P,0090692282,AGUDAS ISRAEL HOUSING ASSCTN LTD,"7,560.00",16/02/2024
Delivery Units,Adults and Health,Other Agencies - Third Party P,0090693544,AGUDAS ISRAEL HOUSING ASSCTN LTD,"2,560.29",21/02/2024
Delivery Units,Adults and Health,Other Agencies - Third Party P,0090693547,AGUDAS ISRAEL HOUSING ASSCTN LTD,"12,900.86",21/02/2024
Delivery Units,Adults and Health,Other Agencies - Third Party P,0090695675,AGUDAS ISRAEL HOUSING ASSCTN LTD,"2,736.86",28/02/2024
Delivery Units,Adults and Health,Other Agencies - Third Party P,0090695679,AGUDAS ISRAEL HOUSING ASSCTN LTD,"13,790.57",28/02/2024
Delivery Units,Adults and Health,Other Agencies - Third Party P,0090686375,LIFESTYLE CARE PLC,"3,055.32",06/02/2024
Delivery Units,Adults and Health,Other Agencies - Third Party P,0090686378,FOUR SEASONS HEALTH CARE,"2,944.96",06/02/2024
Delivery Units,Adults and Health,Other Agencies - Third Party P,0090686379,JEWISH CARE,"3,212.00",06/02/2024
Delivery Units,Adults and Health,Other Agencies - Third Party P,0090686381,SONESTA NURSING HOME LTD.,"2,906.84",06/02/2024
Delivery Units,Adults and Health,Other Agencies - Third Party P,0090686383,SAGE NURSING HOME,"4,400.00",06/02/2024
Delivery Units,Adults and Health,Other Agencies - Third Party P,0090686385,Lukka Care Homes (2010) Ltd,"4,200.00",06/02/2024
Delivery Units,Adults and Health,Other Agencies - Third Party P,0090686387,ELEANOR PALMER TRUST NO 2 A/C.,"4,400.00",06/02/2024
Delivery Units,Adults and Health,Other Agencies - Third Party P,0090686389,ABBEY RAVENSCROFT PARK NURSING HOME,"3,968.00",06/02/2024
Delivery Units,Adults and Health,Other Agencies - Third Party P,0090686392,JEWISH CARE,"9,938.48",06/02/2024
Delivery Units,Adults and Health,Other Agencies - Third Party P,0090686394,CEDARS NURSING HOME,"3,756.00",06/02/2024
Delivery Units,Adults and Health,Other Agencies - Third Party P,0090686396,BUPA NURSING HOMES LTD - ARKLEY,"7,608.71",06/02/2024
Delivery Units,Adults and Health,Other Agencies - Third Party P,0090686397,APPLE TREE COURT CARE HOME,0.04,06/02/2024
Delivery Units,Adults and Health,Other Agencies - Third Party P,0090686398,APPLE TREE COURT CARE HOME,"8,964.36",06/02/2024
Delivery Units,Adults and Health,Other Agencies - Third Party P,0090686399,FOUR SEASONS HEALTH CARE,"1,288.64",06/02/2024
Delivery Units,Adults and Health,Other Agencies - Third Party P,0090686400,BUPA CARE HOMES,"3,098.28",06/02/2024
Delivery Units,Adults and Health,Other Agencies - Third Party P,0090686405,SONESTA NURSING HOME LTD.,"2,906.84",06/02/2024
Delivery Units,Adults and Health,Other Agencies - Third Party P,0090686406,JEWISH CARE,"5,443.14",06/02/2024
Delivery Units,Adults and Health,Other Agencies - Third Party P,0090686410,APPLE TREE COURT CARE HOME,"-7,171.08",06/02/2024
Delivery Units,Adults and Health,Other Agencies - Third Party P,0090686415,FOUR SEASONS HEALTH CARE,"2,944.96",06/02/2024
Delivery Units,Adults and Health,Other Agencies - Third Party P,0090686416,LIFESTYLE CARE PLC,"3,055.32",06/02/2024
Delivery Units,Adults and Health,Other Agencies - Third Party P,0090686417,JEWISH CARE,"3,140.00",06/02/2024
Delivery Units,Adults and Health,Other Agencies - Third Party P,0090686418,LIFESTYLE CARE PLC,"3,055.32",06/02/2024
Delivery Units,Adults and Health,Other Agencies - Third Party P,0090686419,Lukka Care Homes (2010) Ltd,"4,168.00",06/02/2024
Delivery Units,Adults and Health,Other Agencies - Third Party P,0090686421,APPLE TREE COURT CARE HOME,"4,200.00",06/02/2024
Delivery Units,Adults and Health,Other Agencies - Third Party P,0090686425,JEWISH CARE,"3,212.00",06/02/2024
Delivery Units,Adults and Health,Other Agencies - Third Party P,0090686434,CEDARS NURSING HOME,"4,016.00",06/02/2024
Delivery Units,Adults and Health,Other Agencies - Third Party P,0090686450,Lukka Care Homes (2010) Ltd,"3,768.00",06/02/2024
Delivery Units,Adults and Health,Other Agencies - Third Party P,0090686452,Lukka Care Homes (2010) Ltd,"4,200.00",06/02/2024
Delivery Units,Adults and Health,Other Agencies - Third Party P,0090686453,ABBEY RAVENSCROFT PARK NURSING HOME,"3,752.00",06/02/2024
Delivery Units,Adults and Health,Other Agencies - Third Party P,0090686454,JEWISH CARE,"3,140.00",06/02/2024
Delivery Units,Adults and Health,Other Agencies - Third Party P,0090686456,BUPA CARE HOMES,"6,196.56",06/02/2024
Delivery Units,Adults and Health,Other Agencies - Third Party P,0090686457,LIFESTYLE CARE PLC,"15,989.57",06/02/2024
Delivery Units,Adults and Health,Other Agencies - Third Party P,0090686459,FOUR SEASONS HEALTH CARE,"2,944.96",06/02/2024
Delivery Units,Adults and Health,Other Agencies - Third Party P,0090686465,SONESTA NURSING HOME LTD.,"2,906.84",06/02/2024
Delivery Units,Adults and Health,Other Agencies - Third Party P,0090686475,ABBEY RAVENSCROFT PARK NURSING HOME,"-1,558.85",06/02/2024
Delivery Units,Adults and Health,Other Agencies - Third Party P,0090686476,LIFESTYLE CARE PLC,"3,055.32",06/02/2024
Delivery Units,Adults and Health,Other Agencies - Third Party P,0090686480,Lukka Care Homes (2010) Ltd,"4,201.60",06/02/2024
Delivery Units,Adults and Health,Other Agencies - Third Party P,0090686481,APPLE TREE COURT CARE HOME,"4,016.00",06/02/2024
Delivery Units,Adults and Health,Other Agencies - Third Party P,0090686486,BUPA CARE HOMES,"3,098.28",06/02/2024
Delivery Units,Adults and Health,Other Agencies - Third Party P,0090686489,SONESTA NURSING HOME LTD.,"2,906.84",06/02/2024
Delivery Units,Adults and Health,Other Agencies - Third Party P,0090686490,APPLE TREE COURT CARE HOME,"4,701.72",06/02/2024
Delivery Units,Adults and Health,Other Agencies - Third Party P,0090686491,Aarandale Manor Care Home,"4,200.00",06/02/2024
Delivery Units,Adults and Health,Other Agencies - Third Party P,0090686497,APPLE TREE COURT CARE HOME,"4,400.00",06/02/2024
Delivery Units,Adults and Health,Other Agencies - Third Party P,0090686498,BUPA NURSING HOMES LTD - ARKLEY,"4,016.00",06/02/2024
Delivery Units,Adults and Health,Other Agencies - Third Party P,0090686499,Lukka Care Homes (2010) Ltd,"4,249.60",06/02/2024
Delivery Units,Adults and Health,Other Agencies - Third Party P,0090686505,SONESTA NURSING HOME LTD.,"2,906.84",06/02/2024
Delivery Units,Adults and Health,Other Agencies - Third Party P,0090686507,APPLE TREE COURT CARE HOME,"5,400.00",06/02/2024
Delivery Units,Adults and Health,Other Agencies - Third Party P,0090686508,New Century Care (Finchley),"5,208.00",06/02/2024
Delivery Units,Adults and Health,Other Agencies - Third Party P,0090686509,CEDARS NURSING HOME,"5,200.00",06/02/2024
Delivery Units,Adults and Health,Other Agencies - Third Party P,0090686510,Lukka Care Homes (2010) Ltd,"4,200.00",06/02/2024
Delivery Units,Adults and Health,Other Agencies - Third Party P,0090686512,FOUR SEASONS HEALTH CARE,"3,684.00",06/02/2024
Delivery Units,Adults and Health,Other Agencies - Third Party P,0090686513,FOUR SEASONS HEALTH CARE,"2,944.96",06/02/2024
Delivery Units,Adults and Health,Other Agencies - Third Party P,0090686514,APPLE TREE COURT CARE HOME,"4,097.76",06/02/2024
Delivery Units,Adults and Health,Other Agencies - Third Party P,0090686517,ABBEY RAVENSCROFT PARK NURSING HOME,"4,200.00",06/02/2024
Delivery Units,Adults and Health,Other Agencies - Third Party P,0090686518,New Century Care (Finchley),"5,208.00",06/02/2024
Delivery Units,Adults and Health,Other Agencies - Third Party P,0090686519,CEDARS NURSING HOME,"5,200.00",06/02/2024
Delivery Units,Adults and Health,Other Agencies - Third Party P,0090686520,CARE UK COMMUNITY PARTNERSHIPS,"4,363.24",06/02/2024
Delivery Units,Adults and Health,Other Agencies - Third Party P,0090686521,APPLE TREE COURT CARE HOME,"3,969.20",06/02/2024
Delivery Units,Adults and Health,Other Agencies - Third Party P,0090686522,ABBEY RAVENSCROFT PARK NURSING HOME,"4,800.00",06/02/2024
Delivery Units,Adults and Health,Other Agencies - Third Party P,0090686523,Aarandale Manor Care Home,"6,000.00",06/02/2024
Delivery Units,Adults and Health,Other Agencies - Third Party P,0090686524,ABBEY RAVENSCROFT PARK NURSING HOME,"1,200.00",06/02/2024
Delivery Units,Adults and Health,Other Agencies - Third Party P,0090686525,APPLE TREE COURT CARE HOME,"1,000.00",06/02/2024
Delivery Units,Adults and Health,Other Agencies - Third Party P,0090686529,JEWISH CARE,"-2,523.71",06/02/2024
Delivery Units,Adults and Health,Other Agencies - Third Party P,0090686532,Lukka Care Homes (2010) Ltd,"5,400.00",06/02/2024
Delivery Units,Adults and Health,Other Agencies - Third Party P,0090686537,ABBEY RAVENSCROFT PARK NURSING HOME,"5,100.00",06/02/2024
Delivery Units,Adults and Health,Other Agencies - Third Party P,0090686540,HENRY NIHILL HOUSE,"4,800.00",06/02/2024
Delivery Units,Adults and Health,Other Agencies - Third Party P,0090686545,JEWISH CARE,"3,140.00",06/02/2024
Delivery Units,Adults and Health,Other Agencies - Third Party P,0090686547,Aarandale Manor Care Home,"7,092.86",06/02/2024
Delivery Units,Adults and Health,Other Agencies - Third Party P,0090686551,Lukka Care Homes (2010) Ltd,"3,768.00",06/02/2024
Delivery Units,Adults and Health,Other Agencies - Third Party P,0090686554,CEDARS NURSING HOME,"4,800.00",06/02/2024
Delivery Units,Adults and Health,Other Agencies - Third Party P,0090686557,Lancam Care Services Limited,"4,116.00",06/02/2024
Delivery Units,Adults and Health,Other Agencies - Third Party P,0090686560,ELEANOR PALMER TRUST NO 2 A/C.,"4,400.00",06/02/2024
Delivery Units,Adults and Health,Other Agencies - Third Party P,0090686562,JEWISH CARE,"3,212.00",06/02/2024
Delivery Units,Adults and Health,Other Agencies - Third Party P,0090686563,CEDARS NURSING HOME,"4,800.00",06/02/2024
Delivery Units,Adults and Health,Other Agencies - Third Party P,0090686568,LIFESTYLE CARE PLC,"3,055.32",06/02/2024
Delivery Units,Adults and Health,Other Agencies - Third Party P,0090686569,SONESTA NURSING HOME LTD.,"2,906.84",06/02/2024
Delivery Units,Adults and Health,Other Agencies - Third Party P,0090686570,ABBEY RAVENSCROFT PARK NURSING HOME,"4,200.00",06/02/2024
Delivery Units,Adults and Health,Other Agencies - Third Party P,0090686573,FOUR SEASONS HEALTH CARE,"2,944.96",06/02/2024
Delivery Units,Adults and Health,Other Agencies - Third Party P,0090686574,ABBEY RAVENSCROFT PARK NURSING HOME,"4,800.00",06/02/2024
Delivery Units,Adults and Health,Other Agencies - Third Party P,0090686575,ELEANOR PALMER TRUST NO 2 A/C.,"4,400.00",06/02/2024
Delivery Units,Adults and Health,Other Agencies - Third Party P,0090686580,New Century Care (Finchley),"5,425.00",06/02/2024
Delivery Units,Adults and Health,Other Agencies - Third Party P,0090686587,CARE UK COMMUNITY PARTNERSHIPS,"4,363.24",06/02/2024
Delivery Units,Adults and Health,Other Agencies - Third Party P,0090686590,BUPA NURSING HOMES LTD - ARKLEY,"4,116.00",06/02/2024
Delivery Units,Adults and Health,Other Agencies - Third Party P,0090686591,New Century Care (Finchley),"10,528.84",06/02/2024
Delivery Units,Adults and Health,Other Agencies - Third Party P,0090686592,JEWISH CARE,"3,140.00",06/02/2024
Delivery Units,Adults and Health,Other Agencies - Third Party P,0090686593,JEWISH CARE,"3,212.00",06/02/2024
Delivery Units,Adults and Health,Other Agencies - Third Party P,0090686594,SONESTA NURSING HOME LTD.,"3,216.00",06/02/2024
Delivery Units,Adults and Health,Other Agencies - Third Party P,0090686595,FOUR SEASONS HEALTH CARE,"4,400.00",06/02/2024
Delivery Units,Adults and Health,Other Agencies - Third Party P,0090686597,LIFESTYLE CARE PLC,"5,521.16",06/02/2024
Delivery Units,Adults and Health,Other Agencies - Third Party P,0090686598,CARE UK COMMUNITY PARTNERSHIPS,"4,363.24",06/02/2024
Delivery Units,Adults and Health,Other Agencies - Third Party P,0090686602,ABBEY RAVENSCROFT PARK NURSING HOME,"4,400.00",06/02/2024
Delivery Units,Adults and Health,Other Agencies - Third Party P,0090686603,BUPA NURSING HOMES LTD - ARKLEY,"3,600.00",06/02/2024
Delivery Units,Adults and Health,Other Agencies - Third Party P,0090686604,SONESTA NURSING HOME LTD.,"2,906.84",06/02/2024
Delivery Units,Adults and Health,Other Agencies - Third Party P,0090686605,ABBEY RAVENSCROFT PARK NURSING HOME,"5,200.00",06/02/2024
Delivery Units,Adults and Health,Other Agencies - Third Party P,0090686607,BUPA NURSING HOMES LTD - ARKLEY,"3,400.00",06/02/2024
Delivery Units,Adults and Health,Other Agencies - Third Party P,0090686608,SONESTA NURSING HOME LTD.,"3,400.00",06/02/2024
Delivery Units,Adults and Health,Other Agencies - Third Party P,0090686609,JEWISH CARE,"26,129.29",06/02/2024
Delivery Units,Adults and Health,Other Agencies - Third Party P,0090686613,BUPA NURSING HOMES LTD - ARKLEY,"8,485.71",06/02/2024
Delivery Units,Adults and Health,Other Agencies - Third Party P,0090686615,ABBEY RAVENSCROFT PARK NURSING HOME,"4,400.00",06/02/2024
Delivery Units,Adults and Health,Other Agencies - Third Party P,0090686626,FOUR SEASONS HEALTH CARE,"3,800.00",06/02/2024
Delivery Units,Adults and Health,Other Agencies - Third Party P,0090686629,BUPA CARE HOMES,"3,098.28",06/02/2024
Delivery Units,Adults and Health,Other Agencies - Third Party P,0090686631,HENRY NIHILL HOUSE,"3,900.00",06/02/2024
Delivery Units,Adults and Health,Other Agencies - Third Party P,0090686633,Lukka Care Homes (2010) Ltd,"4,200.00",06/02/2024
Delivery Units,Adults and Health,Other Agencies - Third Party P,0090686634,SONESTA NURSING HOME LTD.,"3,400.00",06/02/2024
Delivery Units,Adults and Health,Other Agencies - Third Party P,0090686635,JEWISH CARE,"3,140.00",06/02/2024
Delivery Units,Adults and Health,Other Agencies - Third Party P,0090686637,ELEANOR PALMER TRUST NO 2 A/C.,"4,400.00",06/02/2024
Delivery Units,Adults and Health,Other Agencies - Third Party P,0090686638,CARE UK COMMUNITY PARTNERSHIPS,"4,321.16",06/02/2024
Delivery Units,Adults and Health,Other Agencies - Third Party P,0090686639,SONESTA NURSING HOME LTD.,"23,066.84",06/02/2024
Delivery Units,Adults and Health,Other Agencies - Third Party P,0090686640,BUPA CARE HOMES,"3,098.28",06/02/2024
Delivery Units,Adults and Health,Other Agencies - Third Party P,0090686641,LIFESTYLE CARE PLC,"3,055.32",06/02/2024
Delivery Units,Adults and Health,Other Agencies - Third Party P,0090686643,BUPA NURSING HOMES LTD - ARKLEY,"-2,671.43",06/02/2024
Delivery Units,Adults and Health,Other Agencies - Third Party P,0090686644,BUPA NURSING HOMES LTD - ARKLEY,"3,900.00",06/02/2024
Delivery Units,Adults and Health,Other Agencies - Third Party P,0090686645,BUPA NURSING HOMES LTD - ARKLEY,"6,128.57",06/02/2024
Delivery Units,Adults and Health,Other Agencies - Third Party P,0090686646,ABBEY RAVENSCROFT PARK NURSING HOME,"5,200.00",06/02/2024
Delivery Units,Adults and Health,Other Agencies - Third Party P,0090686647,JEWISH CARE,"3,212.00",06/02/2024
Delivery Units,Adults and Health,Other Agencies - Third Party P,0090686649,Lukka Care Homes (2010) Ltd,"5,095.59",06/02/2024
Delivery Units,Adults and Health,Other Agencies - Third Party P,0090686650,JEWISH CARE,"3,140.00",06/02/2024
Delivery Units,Adults and Health,Other Agencies - Third Party P,0090686651,APPLE TREE COURT CARE HOME,"5,085.15",06/02/2024
Delivery Units,Adults and Health,Other Agencies - Third Party P,0090686652,FOUR SEASONS HEALTH CARE,"22,192.37",06/02/2024
Delivery Units,Adults and Health,Other Agencies - Third Party P,0090686653,JEWISH CARE,"19,288.57",06/02/2024
Delivery Units,Adults and Health,Other Agencies - Third Party P,0090686655,APPLE TREE COURT CARE HOME,"3,588.12",06/02/2024
Delivery Units,Adults and Health,Other Agencies - Third Party P,0090686668,JEWISH CARE,"3,140.00",06/02/2024
Delivery Units,Adults and Health,Other Agencies - Third Party P,0090686669,CEDARS NURSING HOME,"4,000.00",06/02/2024
Delivery Units,Adults and Health,Other Agencies - Third Party P,0090686676,SONESTA NURSING HOME LTD.,"24,434.84",06/02/2024
Delivery Units,Adults and Health,Other Agencies - Third Party P,0090686679,JEWISH CARE,"3,140.00",06/02/2024
Delivery Units,Adults and Health,Other Agencies - Third Party P,0090686680,SONESTA NURSING HOME LTD.,"2,906.84",06/02/2024
Delivery Units,Adults and Health,Other Agencies - Third Party P,0090686683,APPLE TREE COURT CARE HOME,"3,588.12",06/02/2024
Delivery Units,Adults and Health,Other Agencies - Third Party P,0090686686,CEDARS NURSING HOME,"4,800.00",06/02/2024
Delivery Units,Adults and Health,Other Agencies - Third Party P,0090686696,JEWISH CARE,"3,140.00",06/02/2024
Delivery Units,Adults and Health,Other Agencies - Third Party P,0090686697,JEWISH CARE,"3,212.00",06/02/2024
Delivery Units,Adults and Health,Other Agencies - Third Party P,0090686701,FOUR SEASONS HEALTH CARE,"2,944.96",06/02/2024
Delivery Units,Adults and Health,Other Agencies - Third Party P,0090686707,LIFESTYLE CARE PLC,"3,055.32",06/02/2024
Delivery Units,Adults and Health,Other Agencies - Third Party P,0090686708,ABBEY RAVENSCROFT PARK NURSING HOME,"3,968.00",06/02/2024
Delivery Units,Adults and Health,Other Agencies - Third Party P,0090686712,ELEANOR PALMER TRUST NO 2 A/C.,"4,400.00",06/02/2024
Delivery Units,Adults and Health,Other Agencies - Third Party P,0090686713,LIFESTYLE CARE PLC,"3,055.32",06/02/2024
Delivery Units,Adults and Health,Other Agencies - Third Party P,0090686716,Aarandale Manor Care Home,"4,200.00",06/02/2024
Delivery Units,Adults and Health,Other Agencies - Third Party P,0090686721,SAGE NURSING HOME,"4,400.00",06/02/2024
Delivery Units,Adults and Health,Other Agencies - Third Party P,0090686728,New Century Care (Finchley),"5,208.00",06/02/2024
Delivery Units,Adults and Health,Other Agencies - Third Party P,0090686732,ABBEY RAVENSCROFT PARK NURSING HOME,"4,800.00",06/02/2024
Delivery Units,Adults and Health,Other Agencies - Third Party P,0090686734,JEWISH CARE,"3,212.00",06/02/2024
Delivery Units,Adults and Health,Other Agencies - Third Party P,0090686736,ELEANOR PALMER TRUST NO 2 A/C.,"4,400.00",06/02/2024
Delivery Units,Adults and Health,Other Agencies - Third Party P,0090686738,HENRY NIHILL HOUSE,"3,816.00",06/02/2024
Delivery Units,Adults and Health,Other Agencies - Third Party P,0090686739,SONESTA NURSING HOME LTD.,"3,216.00",06/02/2024
Delivery Units,Adults and Health,Other Agencies - Third Party P,0090686740,HENRY NIHILL HOUSE,"3,816.00",06/02/2024
Delivery Units,Adults and Health,Other Agencies - Third Party P,0090686741,HENRY NIHILL HOUSE,"3,816.00",06/02/2024
Delivery Units,Adults and Health,Other Agencies - Third Party P,0090686745,Aarandale Manor Care Home,"6,000.00",06/02/2024
Delivery Units,Adults and Health,Other Agencies - Third Party P,0090686746,BUPA NURSING HOMES LTD - ARKLEY,"3,800.00",06/02/2024
Delivery Units,Adults and Health,Other Agencies - Third Party P,0090686747,ABBEY RAVENSCROFT PARK NURSING HOME,"4,800.00",06/02/2024
Delivery Units,Adults and Health,Other Agencies - Third Party P,0090686750,New Century Care (Finchley),"5,200.00",06/02/2024
Delivery Units,Adults and Health,Other Agencies - Third Party P,0090686754,APPLE TREE COURT CARE HOME,"17,535.98",06/02/2024
Delivery Units,Adults and Health,Other Agencies - Third Party P,0090686755,BUPA CARE HOMES,"3,098.28",06/02/2024
Delivery Units,Adults and Health,Other Agencies - Third Party P,0090686756,BUPA NURSING HOMES LTD - ARKLEY,"3,098.28",06/02/2024
Delivery Units,Adults and Health,Other Agencies - Third Party P,0090686757,LIFESTYLE CARE PLC,"3,055.32",06/02/2024
Delivery Units,Adults and Health,Other Agencies - Third Party P,0090686758,ABBEY RAVENSCROFT PARK NURSING HOME,"4,800.00",06/02/2024
Delivery Units,Adults and Health,Other Agencies - Third Party P,0090686765,JEWISH CARE,"3,140.00",06/02/2024
Delivery Units,Adults and Health,Other Agencies - Third Party P,0090686768,Lukka Care Homes (2010) Ltd,578.57,06/02/2024
Delivery Units,Adults and Health,Other Agencies - Third Party P,0090686770,JEWISH CARE,"3,252.15",06/02/2024
Delivery Units,Adults and Health,Other Agencies - Third Party P,0090686781,APPLE TREE COURT CARE HOME,"2,709.08",06/02/2024
Delivery Units,Adults and Health,Other Agencies - Third Party P,0090686788,Lukka Care Homes (2010) Ltd,"3,790.76",06/02/2024
Delivery Units,Adults and Health,Other Agencies - Third Party P,0090686790,ELEANOR PALMER TRUST NO 2 A/C.,"4,400.00",06/02/2024
Delivery Units,Adults and Health,Other Agencies - Third Party P,0090686794,APPLE TREE COURT CARE HOME,"3,980.00",06/02/2024
Delivery Units,Adults and Health,Other Agencies - Third Party P,0090686797,APPLE TREE COURT CARE HOME,"3,588.12",06/02/2024
Delivery Units,Adults and Health,Other Agencies - Third Party P,0090686798,APPLE TREE COURT CARE HOME,"3,588.12",06/02/2024
Delivery Units,Adults and Health,Other Agencies - Third Party P,0090686807,LIFESTYLE CARE PLC,"3,055.32",06/02/2024
Delivery Units,Adults and Health,Other Agencies - Third Party P,0090686816,APPLE TREE COURT CARE HOME,"3,588.12",06/02/2024
Delivery Units,Adults and Health,Other Agencies - Third Party P,0090686817,ABBEY RAVENSCROFT PARK NURSING HOME,"3,968.00",06/02/2024
Delivery Units,Adults and Health,Other Agencies - Third Party P,0090686818,JEWISH CARE,"3,212.00",06/02/2024
Delivery Units,Adults and Health,Other Agencies - Third Party P,0090686821,ABBEY RAVENSCROFT PARK NURSING HOME,"3,968.00",06/02/2024
Delivery Units,Adults and Health,Other Agencies - Third Party P,0090686824,BUPA NURSING HOMES LTD - ARKLEY,"3,098.28",06/02/2024
Delivery Units,Adults and Health,Other Agencies - Third Party P,0090686825,Lukka Care Homes (2010) Ltd,"4,201.60",06/02/2024
Delivery Units,Adults and Health,Other Agencies - Third Party P,0090686826,ELEANOR PALMER TRUST NO 2 A/C.,"4,400.00",06/02/2024
Delivery Units,Adults and Health,Other Agencies - Third Party P,0090686832,LIFESTYLE CARE PLC,"3,055.32",06/02/2024
Delivery Units,Adults and Health,Other Agencies - Third Party P,0090686834,JEWISH CARE,"3,212.00",06/02/2024
Delivery Units,Adults and Health,Other Agencies - Third Party P,0090686835,ELEANOR PALMER TRUST NO 2 A/C.,"4,400.00",06/02/2024
Delivery Units,Adults and Health,Other Agencies - Third Party P,0090686836,Lancam Care Services Limited,"3,916.00",06/02/2024
Delivery Units,Adults and Health,Other Agencies - Third Party P,0090686839,LIFESTYLE CARE PLC,"3,055.32",06/02/2024
Delivery Units,Adults and Health,Other Agencies - Third Party P,0090686842,SAGE NURSING HOME,"3,256.00",06/02/2024
Delivery Units,Adults and Health,Other Agencies - Third Party P,0090686843,JEWISH CARE,"8,479.92",06/02/2024
Delivery Units,Adults and Health,Other Agencies - Third Party P,0090686844,Lancam Care Services Limited,"4,196.00",06/02/2024
Delivery Units,Adults and Health,Other Agencies - Third Party P,0090686846,FOUR SEASONS HEALTH CARE,"2,944.96",06/02/2024
Delivery Units,Adults and Health,Other Agencies - Third Party P,0090686847,Lancam Care Services Limited,"4,196.00",06/02/2024
Delivery Units,Adults and Health,Other Agencies - Third Party P,0090686850,JEWISH CARE,"4,892.00",06/02/2024
Delivery Units,Adults and Health,Other Agencies - Third Party P,0090686851,APPLE TREE COURT CARE HOME,"4,763.24",06/02/2024
Delivery Units,Adults and Health,Other Agencies - Third Party P,0090686853,New Century Care (Finchley),"4,800.00",06/02/2024
Delivery Units,Adults and Health,Other Agencies - Third Party P,0090686854,ABBEY RAVENSCROFT PARK NURSING HOME,"4,400.00",06/02/2024
Delivery Units,Adults and Health,Other Agencies - Third Party P,0090686855,FOUR SEASONS HEALTH CARE,"2,944.96",06/02/2024
Delivery Units,Adults and Health,Other Agencies - Third Party P,0090686856,LIFESTYLE CARE PLC,"3,055.32",06/02/2024
Delivery Units,Adults and Health,Other Agencies - Third Party P,0090686857,ABBEY RAVENSCROFT PARK NURSING HOME,"4,800.00",06/02/2024
Delivery Units,Adults and Health,Other Agencies - Third Party P,0090686858,BUPA NURSING HOMES LTD - ARKLEY,"5,653.14",06/02/2024
Delivery Units,Adults and Health,Other Agencies - Third Party P,0090686862,APPLE TREE COURT CARE HOME,"4,763.24",06/02/2024
Delivery Units,Adults and Health,Other Agencies - Third Party P,0090686864,BUPA NURSING HOMES LTD - ARKLEY,"4,116.00",06/02/2024
Delivery Units,Adults and Health,Other Agencies - Third Party P,0090686865,SAGE NURSING HOME,"4,400.00",06/02/2024
Delivery Units,Adults and Health,Other Agencies - Third Party P,0090686868,ABBEY RAVENSCROFT PARK NURSING HOME,"4,800.00",06/02/2024
Delivery Units,Adults and Health,Other Agencies - Third Party P,0090686869,FOUR SEASONS HEALTH CARE,"2,944.96",06/02/2024
Delivery Units,Adults and Health,Other Agencies - Third Party P,0090686871,CEDARS NURSING HOME,"5,600.00",06/02/2024
Delivery Units,Adults and Health,Other Agencies - Third Party P,0090686873,APPLE TREE COURT CARE HOME,"4,097.76",06/02/2024
Delivery Units,Adults and Health,Other Agencies - Third Party P,0090686875,Lukka Care Homes (2010) Ltd,"4,800.00",06/02/2024
Delivery Units,Adults and Health,Other Agencies - Third Party P,0090686879,BUPA NURSING HOMES LTD - ARKLEY,"3,098.28",06/02/2024
Delivery Units,Adults and Health,Other Agencies - Third Party P,0090686880,CEDARS NURSING HOME,"5,600.00",06/02/2024
Delivery Units,Adults and Health,Other Agencies - Third Party P,0090686881,ABBEY RAVENSCROFT PARK NURSING HOME,"5,200.00",06/02/2024
Delivery Units,Adults and Health,Other Agencies - Third Party P,0090686884,Aarandale Manor Care Home,"6,000.00",06/02/2024
Delivery Units,Adults and Health,Other Agencies - Third Party P,0090686885,JEWISH CARE,"-3,140.00",06/02/2024
Delivery Units,Adults and Health,Other Agencies - Third Party P,0090686887,FOUR SEASONS HEALTH CARE,"2,944.96",06/02/2024
Delivery Units,Adults and Health,Other Agencies - Third Party P,0090686889,Aarandale Manor Care Home,"6,000.00",06/02/2024
Delivery Units,Adults and Health,Other Agencies - Third Party P,0090686895,ABBEY RAVENSCROFT PARK NURSING HOME,"5,000.00",06/02/2024
Delivery Units,Adults and Health,Other Agencies - Third Party P,0090686896,JEWISH CARE,"1,009.29",06/02/2024
Delivery Units,Adults and Health,Other Agencies - Third Party P,0090686898,ABBEY RAVENSCROFT PARK NURSING HOME,"4,800.00",06/02/2024
Delivery Units,Adults and Health,Other Agencies - Third Party P,0090686900,APPLE TREE COURT CARE HOME,"7,176.24",06/02/2024
Delivery Units,Adults and Health,Other Agencies - Third Party P,0090686901,APPLE TREE COURT CARE HOME,"4,097.76",06/02/2024
Delivery Units,Adults and Health,Other Agencies - Third Party P,0090686903,ABBEY RAVENSCROFT PARK NURSING HOME,"7,228.57",06/02/2024
Delivery Units,Adults and Health,Other Agencies - Third Party P,0090686909,LIFESTYLE CARE PLC,"4,196.13",06/02/2024
Delivery Units,Adults and Health,Other Agencies - Third Party P,0090686910,ABBEY RAVENSCROFT PARK NURSING HOME,"4,285.71",06/02/2024
Delivery Units,Adults and Health,Other Agencies - Third Party P,0090686911,ABBEY RAVENSCROFT PARK NURSING HOME,"5,757.14",06/02/2024
Delivery Units,Adults and Health,Other Agencies - Third Party P,0090686912,ABBEY RAVENSCROFT PARK NURSING HOME,"4,557.14",06/02/2024
Delivery Units,Adults and Health,Other Agencies - Third Party P,0090686913,ABBEY RAVENSCROFT PARK NURSING HOME,"4,557.14",06/02/2024
Delivery Units,Adults and Health,Other Agencies - Third Party P,0090686914,ABBEY RAVENSCROFT PARK NURSING HOME,"4,800.00",06/02/2024
Delivery Units,Adults and Health,Other Agencies - Third Party P,0090686916,BUPA NURSING HOMES LTD - ARKLEY,"5,142.86",06/02/2024
Delivery Units,Adults and Health,Other Agencies - Third Party P,0090686917,BUPA NURSING HOMES LTD - ARKLEY,"4,114.29",06/02/2024
Delivery Units,Adults and Health,Other Agencies - Third Party P,0090686920,ABBEY RAVENSCROFT PARK NURSING HOME,"4,400.00",06/02/2024
Delivery Units,Adults and Health,Other Agencies - Third Party P,0090688828,Barchester Healthcare,"6,200.00",09/02/2024
Delivery Units,Adults and Health,Other Agencies - Third Party P,0090688830,Barchester Healthcare,"4,784.14",09/02/2024
Delivery Units,Adults and Health,Other Agencies - Third Party P,0090688831,Barchester Healthcare,"6,200.00",09/02/2024
Delivery Units,Adults and Health,Other Agencies - Third Party P,0090688838,Westbourne Care Home,"1,428.57",09/02/2024
Delivery Units,Adults and Health,Other Agencies - Third Party P,0090688839,Westbourne Care Home,"9,107.14",09/02/2024
Delivery Units,Adults and Health,Other Agencies - Third Party P,0090689858,Hamberley Care (Stepney) Ltd,"3,305.49",09/02/2024
Delivery Units,Adults and Health,Other Agencies - Third Party P,0090689859,Hamberley Care (Stepney) Ltd,"4,562.71",09/02/2024
Delivery Units,Adults and Health,Other Agencies - Third Party P,0090691069,Karuna Manor,"2,612.81",13/02/2024
Delivery Units,Adults and Health,Other Agencies - Third Party P,0090691080,Victoria Care Centre,"3,038.66",13/02/2024
Delivery Units,Adults and Health,Other Agencies - Third Party P,0090691088,Stamford Nursing Centre,"4,557.00",13/02/2024
Delivery Units,Adults and Health,Other Agencies - Third Party P,0090691579,Victoria Care Centre,"2,940.64",13/02/2024
Delivery Units,Adults and Health,Other Agencies - Third Party P,0090693513,Candlewood House Care Home,"8,040.50",21/02/2024
Delivery Units,Adults and Health,Other Agencies - Third Party P,0090693515,Coopers Croft Care Home ltd.,"6,214.29",21/02/2024
Delivery Units,Adults and Health,Other Agencies - Third Party P,0090693518,Karuna Manor,"2,444.24",21/02/2024
Delivery Units,Adults and Health,Other Agencies - Third Party P,0090693526,TORRINGTON HOMES,"3,800.00",21/02/2024
Delivery Units,Adults and Health,Other Agencies - Third Party P,0090693530,Topcare Ltd,"4,971.43",21/02/2024
Delivery Units,Adults and Health,Other Agencies - Third Party P,0090693680,Chalfont Lodge (Barchester Healthcare Ho,"6,159.30",21/02/2024
Delivery Units,Adults and Health,Other Agencies - Third Party P,0090693681,Chalfont Lodge (Barchester Healthcare Ho,"6,159.30",21/02/2024
Delivery Units,Adults and Health,Other Agencies - Third Party P,0090693720,Milford Lodge Residential Home,"4,207.14",22/02/2024
Delivery Units,Adults and Health,Other Agencies - Third Party P,0090693885,WILSMERE HOUSE CARE CENTRE,"4,658.10",23/02/2024
Delivery Units,Adults and Health,Other Agencies - Third Party P,0090693898,Oakland Primecare Ltd t/a Elsyng House,"7,357.71",23/02/2024
Delivery Units,Adults and Health,Other Agencies - Third Party P,0090693908,FERNBANK NURSING HOME.,"4,971.18",23/02/2024
Delivery Units,Adults and Health,Other Agencies - Third Party P,0090693909,FERNBANK NURSING HOME.,"15,951.45",23/02/2024
Delivery Units,Adults and Health,Other Agencies - Third Party P,0090693912,FERNBANK NURSING HOME.,"5,592.65",23/02/2024
Delivery Units,Adults and Health,Other Agencies - Third Party P,0090693913,FERNBANK NURSING HOME.,"4,764.12",23/02/2024
Delivery Units,Adults and Health,Other Agencies - Third Party P,0090693927,DMP Healthcare (Ogilvy) Ltd,"4,159.43",23/02/2024
Delivery Units,Adults and Health,Other Agencies - Third Party P,0090693929,Chalfont Lodge (Barchester Healthcare Ho,"5,761.93",23/02/2024
Delivery Units,Adults and Health,Other Agencies - Third Party P,0090694001,HUSKARDS NEW CARE LTD,"2,287.81",23/02/2024
Delivery Units,Adults and Health,Other Agencies - Third Party P,0090694014,NIGHTINGALE HOUSE,"3,948.14",23/02/2024
Delivery Units,Adults and Health,Other Agencies - Third Party P,0090694033,St Matthews Limited,"6,324.00",23/02/2024
Delivery Units,Adults and Health,Other Agencies - Third Party P,0090694034,St Matthews Limited,"4,082.83",23/02/2024
Delivery Units,Adults and Health,Other Agencies - Third Party P,0090694035,St Matthews Limited,"6,324.00",23/02/2024
Delivery Units,Adults and Health,Other Agencies - Third Party P,0090694102,Barchester Healthcare,"5,800.00",26/02/2024
Delivery Units,Adults and Health,Other Agencies - Third Party P,0090694103,Barchester Healthcare,"4,475.48",26/02/2024
Delivery Units,Adults and Health,Other Agencies - Third Party P,0090694140,Milford Lodge Residential Home,"3,935.71",26/02/2024
Delivery Units,Adults and Health,Other Agencies - Third Party P,0090694144,St Matthews Limited,"3,819.42",26/02/2024
Delivery Units,Adults and Health,Other Agencies - Third Party P,0090694148,Hamberley Care (Stepney) Ltd,"3,305.49",26/02/2024
Delivery Units,Adults and Health,Other Agencies - Third Party P,0090694149,Hamberley Care (Stepney) Ltd,"4,562.71",26/02/2024
Delivery Units,Adults and Health,Other Agencies - Third Party P,0090686426,CATHERINE LODGE,"3,200.00",06/02/2024
Delivery Units,Adults and Health,Other Agencies - Third Party P,0090686444,ROSEACRES CARE HOME LIMITED,"3,336.00",06/02/2024
Delivery Units,Adults and Health,Other Agencies - Third Party P,0090686462,CATHERINE LODGE,"3,580.00",06/02/2024
Delivery Units,Adults and Health,Other Agencies - Third Party P,0090686463,CARLTON COURT (TLC GROUP),"5,800.00",06/02/2024
Delivery Units,Adults and Health,Other Agencies - Third Party P,0090686469,CARLTON COURT (TLC GROUP),"5,400.00",06/02/2024
Delivery Units,Adults and Health,Other Agencies - Third Party P,0090686474,ROSEACRES CARE HOME LIMITED,"3,416.00",06/02/2024
Delivery Units,Adults and Health,Other Agencies - Third Party P,0090686493,ROSEACRES CARE HOME LIMITED,"11,336.14",06/02/2024
Delivery Units,Adults and Health,Other Agencies - Third Party P,0090686501,CATHERINE LODGE,"3,800.00",06/02/2024
Delivery Units,Adults and Health,Other Agencies - Third Party P,0090686535,ROSEACRES CARE HOME LIMITED,"3,800.00",06/02/2024
Delivery Units,Adults and Health,Other Agencies - Third Party P,0090686536,ROSEACRES CARE HOME LIMITED,"4,400.00",06/02/2024
Delivery Units,Adults and Health,Other Agencies - Third Party P,0090686543,CATHERINE LODGE,"3,800.00",06/02/2024
Delivery Units,Adults and Health,Other Agencies - Third Party P,0090686549,ROSEACRES CARE HOME LIMITED,"3,074.00",06/02/2024
Delivery Units,Adults and Health,Other Agencies - Third Party P,0090686571,CATHERINE LODGE,"3,800.00",06/02/2024
Delivery Units,Adults and Health,Other Agencies - Third Party P,0090686600,CATHERINE LODGE,"15,857.14",06/02/2024
Delivery Units,Adults and Health,Other Agencies - Third Party P,0090686618,CATHERINE LODGE,"3,800.00",06/02/2024
Delivery Units,Adults and Health,Other Agencies - Third Party P,0090686627,CATHERINE LODGE,"3,800.00",06/02/2024
Delivery Units,Adults and Health,Other Agencies - Third Party P,0090686632,ROSEACRES CARE HOME LIMITED,"3,800.00",06/02/2024
Delivery Units,Adults and Health,Other Agencies - Third Party P,0090686648,ROSEACRES CARE HOME LIMITED,"5,200.00",06/02/2024
Delivery Units,Adults and Health,Other Agencies - Third Party P,0090686656,ROSEACRES CARE HOME LIMITED,"4,000.00",06/02/2024
Delivery Units,Adults and Health,Other Agencies - Third Party P,0090686666,CATHERINE LODGE,"3,000.00",06/02/2024
Delivery Units,Adults and Health,Other Agencies - Third Party P,0090686670,CARLTON COURT (TLC GROUP),"6,376.16",06/02/2024
Delivery Units,Adults and Health,Other Agencies - Third Party P,0090686673,ROSEACRES CARE HOME LIMITED,"3,336.00",06/02/2024
Delivery Units,Adults and Health,Other Agencies - Third Party P,0090686703,CATHERINE LODGE,"3,200.00",06/02/2024
Delivery Units,Adults and Health,Other Agencies - Third Party P,0090686711,ROSEACRES CARE HOME LIMITED,"3,074.00",06/02/2024
Delivery Units,Adults and Health,Other Agencies - Third Party P,0090686720,ROSEACRES CARE HOME LIMITED,"3,574.00",06/02/2024
Delivery Units,Adults and Health,Other Agencies - Third Party P,0090686727,ROSEACRES CARE HOME LIMITED,"3,620.00",06/02/2024
Delivery Units,Adults and Health,Other Agencies - Third Party P,0090686729,ROSEACRES CARE HOME LIMITED,"3,974.00",06/02/2024
Delivery Units,Adults and Health,Other Agencies - Third Party P,0090686730,ROSEACRES CARE HOME LIMITED,"3,800.00",06/02/2024
Delivery Units,Adults and Health,Other Agencies - Third Party P,0090686753,CATHERINE LODGE,"3,800.00",06/02/2024
Delivery Units,Adults and Health,Other Agencies - Third Party P,0090686796,ROSEACRES CARE HOME LIMITED,"3,616.00",06/02/2024
Delivery Units,Adults and Health,Other Agencies - Third Party P,0090686828,ROSEACRES CARE HOME LIMITED,"3,416.00",06/02/2024
Delivery Units,Adults and Health,Other Agencies - Third Party P,0090686886,ROSEACRES CARE HOME LIMITED,"3,800.00",06/02/2024
Delivery Units,Adults and Health,Other Agencies - Third Party P,0090687344,GCH (North London) t/a The Tudors,"2,346.00",08/02/2024
Delivery Units,Adults and Health,Other Agencies - Third Party P,0090687358,FINBOND LIMITED,"8,642.00",08/02/2024
Delivery Units,Adults and Health,Other Agencies - Third Party P,0090688843,Optimum Support Ltd,"7,971.00",09/02/2024
Delivery Units,Adults and Health,Other Agencies - Third Party P,0090688972,FINBOND LIMITED,"3,985.71",09/02/2024
Delivery Units,Adults and Health,Other Agencies - Third Party P,0090688973,FINBOND LIMITED,"1,542.86",09/02/2024
Delivery Units,Adults and Health,Other Agencies - Third Party P,0090691072,FINBOND LIMITED,121.43,13/02/2024
Delivery Units,Adults and Health,Other Agencies - Third Party P,0090691073,FINBOND LIMITED,"3,764.29",13/02/2024
Delivery Units,Adults and Health,Other Agencies - Third Party P,0090692683,TBG Mosaic,"2,540.00",19/02/2024
Delivery Units,Adults and Health,Other Agencies - Third Party P,0090692684,TBG Mosaic,"-5,543.14",19/02/2024
Delivery Units,Adults and Health,Other Agencies - Third Party P,0090692685,TBG Mosaic,"2,540.00",19/02/2024
Delivery Units,Adults and Health,Other Agencies - Third Party P,0090692686,TBG Mosaic,"2,676.00",19/02/2024
Delivery Units,Adults and Health,Other Agencies - Third Party P,0090692687,TBG Mosaic,"2,540.00",19/02/2024
Delivery Units,Adults and Health,Other Agencies - Third Party P,0090692688,TBG Mosaic,"2,676.00",19/02/2024
Delivery Units,Adults and Health,Other Agencies - Third Party P,0090692689,TBG Mosaic,"2,857.92",19/02/2024
Delivery Units,Adults and Health,Other Agencies - Third Party P,0090692690,TBG Mosaic,"2,540.00",19/02/2024
Delivery Units,Adults and Health,Other Agencies - Third Party P,0090692691,TBG Mosaic,"-5,160.86",19/02/2024
Delivery Units,Adults and Health,Other Agencies - Third Party P,0090692692,TBG Mosaic,"2,540.00",19/02/2024
Delivery Units,Adults and Health,Other Agencies - Third Party P,0090692693,TBG Mosaic,"2,676.00",19/02/2024
Delivery Units,Adults and Health,Other Agencies - Third Party P,0090692694,TBG Mosaic,"2,676.00",19/02/2024
Delivery Units,Adults and Health,Other Agencies - Third Party P,0090692695,TBG Mosaic,"2,676.00",19/02/2024
Delivery Units,Adults and Health,Other Agencies - Third Party P,0090692696,TBG Mosaic,"-3,628.57",19/02/2024
Delivery Units,Adults and Health,Other Agencies - Third Party P,0090692697,TBG Mosaic,"13,863.20",19/02/2024
Delivery Units,Adults and Health,Other Agencies - Third Party P,0090692698,TBG Mosaic,"4,612.00",19/02/2024
Delivery Units,Adults and Health,Other Agencies - Third Party P,0090692699,TBG Mosaic,"20,560.94",19/02/2024
Delivery Units,Adults and Health,Other Agencies - Third Party P,0090692700,TBG Mosaic,"9,673.20",19/02/2024
Delivery Units,Adults and Health,Other Agencies - Third Party P,0090692701,TBG Mosaic,"2,676.00",19/02/2024
Delivery Units,Adults and Health,Other Agencies - Third Party P,0090692702,TBG Mosaic,"2,540.00",19/02/2024
Delivery Units,Adults and Health,Other Agencies - Third Party P,0090692703,TBG Mosaic,"2,540.00",19/02/2024
Delivery Units,Adults and Health,Other Agencies - Third Party P,0090692704,TBG Mosaic,"2,540.00",19/02/2024
Delivery Units,Adults and Health,Other Agencies - Third Party P,0090692705,TBG Mosaic,"2,676.00",19/02/2024
Delivery Units,Adults and Health,Other Agencies - Third Party P,0090692706,TBG Mosaic,"2,676.00",19/02/2024
Delivery Units,Adults and Health,Other Agencies - Third Party P,0090692707,TBG Mosaic,"2,540.00",19/02/2024
Delivery Units,Adults and Health,Other Agencies - Third Party P,0090692708,TBG Mosaic,"2,676.00",19/02/2024
Delivery Units,Adults and Health,Other Agencies - Third Party P,0090692709,TBG Mosaic,"2,676.00",19/02/2024
Delivery Units,Adults and Health,Other Agencies - Third Party P,0090692710,TBG Mosaic,"2,540.00",19/02/2024
Delivery Units,Adults and Health,Other Agencies - Third Party P,0090692711,TBG Mosaic,"2,676.00",19/02/2024
Delivery Units,Adults and Health,Other Agencies - Third Party P,0090692712,TBG Mosaic,"2,540.00",19/02/2024
Delivery Units,Adults and Health,Other Agencies - Third Party P,0090692713,TBG Mosaic,"1,528.80",19/02/2024
Delivery Units,Adults and Health,Other Agencies - Third Party P,0090692714,TBG Mosaic,"2,540.00",19/02/2024
Delivery Units,Adults and Health,Other Agencies - Third Party P,0090692715,TBG Mosaic,"2,540.00",19/02/2024
Delivery Units,Adults and Health,Other Agencies - Third Party P,0090692716,TBG Mosaic,"2,540.00",19/02/2024
Delivery Units,Adults and Health,Other Agencies - Third Party P,0090692718,TBG Mosaic,"2,676.00",19/02/2024
Delivery Units,Adults and Health,Other Agencies - Third Party P,0090692719,TBG Mosaic,"13,848.20",19/02/2024
Delivery Units,Adults and Health,Other Agencies - Third Party P,0090692720,TBG Mosaic,"2,676.00",19/02/2024
Delivery Units,Adults and Health,Other Agencies - Third Party P,0090692721,TBG Mosaic,"2,540.00",19/02/2024
Delivery Units,Adults and Health,Other Agencies - Third Party P,0090692722,TBG Mosaic,"2,540.00",19/02/2024
Delivery Units,Adults and Health,Other Agencies - Third Party P,0090692724,TBG Mosaic,"2,540.00",19/02/2024
Delivery Units,Adults and Health,Other Agencies - Third Party P,0090692725,TBG Mosaic,"2,676.00",19/02/2024
Delivery Units,Adults and Health,Other Agencies - Third Party P,0090692726,TBG Mosaic,"2,676.00",19/02/2024
Delivery Units,Adults and Health,Other Agencies - Third Party P,0090692728,TBG Mosaic,"2,540.00",19/02/2024
Delivery Units,Adults and Health,Other Agencies - Third Party P,0090692730,TBG Mosaic,"2,540.00",19/02/2024
Delivery Units,Adults and Health,Other Agencies - Third Party P,0090692731,TBG Mosaic,"-1,179.29",19/02/2024
Delivery Units,Adults and Health,Other Agencies - Third Party P,0090692732,TBG Mosaic,"2,540.00",19/02/2024
Delivery Units,Adults and Health,Other Agencies - Third Party P,0090692733,TBG Mosaic,"2,540.00",19/02/2024
Delivery Units,Adults and Health,Other Agencies - Third Party P,0090693710,Achieve Together Limited,"11,881.44",22/02/2024
Delivery Units,Adults and Health,Other Agencies - Third Party P,0090693711,Achieve Together Limited,"3,419.96",22/02/2024
Delivery Units,Adults and Health,Other Agencies - Third Party P,0090693721,TENTERDEN HOUSE,"4,280.26",22/02/2024
Delivery Units,Adults and Health,Other Agencies - Third Party P,0090693724,TENTERDEN HOUSE,"4,280.26",22/02/2024
Delivery Units,Adults and Health,Other Agencies - Third Party P,0090694104,GCH (North London) t/a The Tudors,"2,346.00",26/02/2024
Delivery Units,Adults and Health,Other Agencies - Third Party P,0090694115,Sydmar Lodge Ltd,"7,279.00",26/02/2024
Delivery Units,Adults and Health,Other Agencies - Third Party P,0090694116,Sydmar Lodge Ltd,"5,493.43",26/02/2024
Delivery Units,Adults and Health,Other Agencies - Third Party P,0090694117,Sydmar Lodge Ltd,"6,683.67",26/02/2024
Delivery Units,Adults and Health,Other Agencies - Third Party P,0090694119,Sydmar Lodge Ltd,"6,523.47",26/02/2024
Delivery Units,Adults and Health,Other Agencies - Third Party P,0090694120,Sydmar Lodge Ltd,"5,178.57",26/02/2024
Delivery Units,Adults and Health,Other Agencies - Third Party P,0090694121,Sydmar Lodge Ltd,"5,178.57",26/02/2024
Delivery Units,Adults and Health,Other Agencies - Third Party P,0090694122,Sydmar Lodge Ltd,"4,072.43",26/02/2024
Delivery Units,Adults and Health,Other Agencies - Third Party P,0090694123,Sydmar Lodge Ltd,"5,178.57",26/02/2024
Delivery Units,Adults and Health,Other Agencies - Third Party P,0090694141,TENTERDEN HOUSE,"4,004.11",26/02/2024
Delivery Units,Adults and Health,Other Agencies - Third Party P,0090695694,Sydmar Lodge Ltd,"7,144.61",28/02/2024
Delivery Units,Adults and Health,Other Agencies - Third Party P,0090687335,LIVABILITY,"3,740.44",08/02/2024
Delivery Units,Adults and Health,Other Agencies - Third Party P,0090687338,LIVABILITY,"4,720.12",08/02/2024
Delivery Units,Adults and Health,Other Agencies - Third Party P,0090688833,VILLA SCALABRINI,"4,428.57",09/02/2024
Delivery Units,Adults and Health,Other Agencies - Third Party P,0090694114,VILLA SCALABRINI,"4,142.86",26/02/2024
Delivery Units,Adults and Health,Other Agencies - Third Party P,0090695652,LIVABILITY,"3,740.44",28/02/2024
Delivery Units,Adults and Health,Other Agencies - Third Party P,0090695653,LIVABILITY,"4,720.12",28/02/2024
Delivery Units,Adults and Health,Other Agencies - Third Party P,0090695682,LIVABILITY,"4,720.12",28/02/2024
Delivery Units,Adults and Health,Other Agencies - Third Party P,0090695683,LIVABILITY,"3,740.44",28/02/2024
Delivery Units,Adults and Health,Other Agencies - Third Party P,0090695685,LIVABILITY,"3,528.28",28/02/2024
Delivery Units,Adults and Health,Other Agencies - Third Party P,0090686848,WOODFIELD HOUSE,"14,081.60",06/02/2024
Delivery Units,Adults and Health,Other Agencies - Third Party P,0090687350,AGUDAS ISRAEL HOUSING ASSCTN LTD,"4,428.57",08/02/2024
Delivery Units,Adults and Health,Other Agencies - Third Party P,0090687351,AGUDAS ISRAEL HOUSING ASSCTN LTD,"12,493.00",08/02/2024
Delivery Units,Adults and Health,Other Agencies - Third Party P,0090693546,AGUDAS ISRAEL HOUSING ASSCTN LTD,"11,687.00",21/02/2024
Delivery Units,Adults and Health,Other Agencies - Third Party P,0090695677,AGUDAS ISRAEL HOUSING ASSCTN LTD,"4,428.57",28/02/2024
Delivery Units,Adults and Health,Other Agencies - Third Party P,0090695678,AGUDAS ISRAEL HOUSING ASSCTN LTD,"12,493.00",28/02/2024
Delivery Units,Adults and Health,Other Agencies - Third Party P,0090686382,NAZARETH HOUSE,"2,740.00",06/02/2024
Delivery Units,Adults and Health,Other Agencies - Third Party P,0090686384,ELM PARK LODGE,"3,384.92",06/02/2024
Delivery Units,Adults and Health,Other Agencies - Third Party P,0090686386,JEWISH CARE,"3,056.00",06/02/2024
Delivery Units,Adults and Health,Other Agencies - Third Party P,0090686395,THE LIMES RESIDENTIAL HOME,"3,376.00",06/02/2024
Delivery Units,Adults and Health,Other Agencies - Third Party P,0090686402,JEWISH CARE,"3,056.00",06/02/2024
Delivery Units,Adults and Health,Other Agencies - Third Party P,0090686403,JEWISH CARE,"3,056.00",06/02/2024
Delivery Units,Adults and Health,Other Agencies - Third Party P,0090686404,JEWISH CARE,"3,056.00",06/02/2024
Delivery Units,Adults and Health,Other Agencies - Third Party P,0090686407,THE LIMES RESIDENTIAL HOME,"3,336.00",06/02/2024
Delivery Units,Adults and Health,Other Agencies - Third Party P,0090686408,JEWISH CARE,"2,896.00",06/02/2024
Delivery Units,Adults and Health,Other Agencies - Third Party P,0090686412,JEWISH CARE,"2,896.00",06/02/2024
Delivery Units,Adults and Health,Other Agencies - Third Party P,0090686413,ELEANOR PALMER TRUST NO 2 A/C.,"4,400.00",06/02/2024
Delivery Units,Adults and Health,Other Agencies - Third Party P,0090686414,ELEANOR PALMER TRUST NO 2 A/C.,"4,400.00",06/02/2024
Delivery Units,Adults and Health,Other Agencies - Third Party P,0090686420,Aarandale Manor Care Home,"5,000.00",06/02/2024
Delivery Units,Adults and Health,Other Agencies - Third Party P,0090686422,JEWISH CARE,"3,720.36",06/02/2024
Delivery Units,Adults and Health,Other Agencies - Third Party P,0090686423,JEWISH CARE,"3,056.00",06/02/2024
Delivery Units,Adults and Health,Other Agencies - Third Party P,0090686424,NAZARETH HOUSE,"2,890.08",06/02/2024
Delivery Units,Adults and Health,Other Agencies - Third Party P,0090686430,BUPA CARE HOMES,"10,127.72",06/02/2024
Delivery Units,Adults and Health,Other Agencies - Third Party P,0090686438,JEWISH CARE,"4,481.48",06/02/2024
Delivery Units,Adults and Health,Other Agencies - Third Party P,0090686441,JEWISH CARE,"3,056.00",06/02/2024
Delivery Units,Adults and Health,Other Agencies - Third Party P,0090686443,JEWISH CARE,"-5,129.71",06/02/2024
Delivery Units,Adults and Health,Other Agencies - Third Party P,0090686455,JEWISH CARE,"3,056.00",06/02/2024
Delivery Units,Adults and Health,Other Agencies - Third Party P,0090686464,JEWISH CARE,"3,056.00",06/02/2024
Delivery Units,Adults and Health,Other Agencies - Third Party P,0090686468,JEWISH CARE,"5,286.40",06/02/2024
Delivery Units,Adults and Health,Other Agencies - Third Party P,0090686471,LIFESTYLE CARE PLC,"3,200.00",06/02/2024
Delivery Units,Adults and Health,Other Agencies - Third Party P,0090686472,ELMHURST RESIDENTIAL HOME,"3,800.00",06/02/2024
Delivery Units,Adults and Health,Other Agencies - Third Party P,0090686473,JEWISH CARE,"3,056.00",06/02/2024
Delivery Units,Adults and Health,Other Agencies - Third Party P,0090686478,NAZARETH HOUSE,"2,890.08",06/02/2024
Delivery Units,Adults and Health,Other Agencies - Third Party P,0090686479,JEWISH CARE,"2,896.00",06/02/2024
Delivery Units,Adults and Health,Other Agencies - Third Party P,0090686485,BUPA NURSING HOMES LTD - ARKLEY,"3,166.36",06/02/2024
Delivery Units,Adults and Health,Other Agencies - Third Party P,0090686492,JEWISH CARE,"7,874.40",06/02/2024
Delivery Units,Adults and Health,Other Agencies - Third Party P,0090686494,ELMHURST RESIDENTIAL HOME,"4,000.00",06/02/2024
Delivery Units,Adults and Health,Other Agencies - Third Party P,0090686495,APPLE TREE COURT CARE HOME,"3,604.00",06/02/2024
Delivery Units,Adults and Health,Other Agencies - Third Party P,0090686504,NAZARETH HOUSE,"4,828.88",06/02/2024
Delivery Units,Adults and Health,Other Agencies - Third Party P,0090686511,JEWISH CARE,"3,056.00",06/02/2024
Delivery Units,Adults and Health,Other Agencies - Third Party P,0090686516,CEDARS NURSING HOME,"5,200.00",06/02/2024
Delivery Units,Adults and Health,Other Agencies - Third Party P,0090686527,CARE UK COMMUNITY PARTNERSHIPS,"6,741.00",06/02/2024
Delivery Units,Adults and Health,Other Agencies - Third Party P,0090686528,SAGE NURSING HOME,"3,256.00",06/02/2024
Delivery Units,Adults and Health,Other Agencies - Third Party P,0090686531,JEWISH CARE,"3,052.00",06/02/2024
Delivery Units,Adults and Health,Other Agencies - Third Party P,0090686534,NAZARETH HOUSE,"4,400.00",06/02/2024
Delivery Units,Adults and Health,Other Agencies - Third Party P,0090686541,NAZARETH HOUSE,785.00,06/02/2024
Delivery Units,Adults and Health,Other Agencies - Third Party P,0090686542,CEDARS NURSING HOME,"4,800.00",06/02/2024
Delivery Units,Adults and Health,Other Agencies - Third Party P,0090686544,JEWISH CARE,-327.43,06/02/2024
Delivery Units,Adults and Health,Other Agencies - Third Party P,0090686548,BUPA CARE HOMES,"6,036.66",06/02/2024
Delivery Units,Adults and Health,Other Agencies - Third Party P,0090686550,SAGE NURSING HOME,"3,620.00",06/02/2024
Delivery Units,Adults and Health,Other Agencies - Third Party P,0090686552,ELEANOR PALMER TRUST NO 2 A/C.,"4,400.00",06/02/2024
Delivery Units,Adults and Health,Other Agencies - Third Party P,0090686553,JEWISH CARE,"3,056.00",06/02/2024
Delivery Units,Adults and Health,Other Agencies - Third Party P,0090686555,NAZARETH HOUSE,"2,890.08",06/02/2024
Delivery Units,Adults and Health,Other Agencies - Third Party P,0090686559,ELMHURST RESIDENTIAL HOME,"3,600.00",06/02/2024
Delivery Units,Adults and Health,Other Agencies - Third Party P,0090686561,NAZARETH HOUSE,"2,740.00",06/02/2024
Delivery Units,Adults and Health,Other Agencies - Third Party P,0090686566,APPLE TREE COURT CARE HOME,"3,604.00",06/02/2024
Delivery Units,Adults and Health,Other Agencies - Third Party P,0090686567,APPLE TREE COURT CARE HOME,"-3,732.71",06/02/2024
Delivery Units,Adults and Health,Other Agencies - Third Party P,0090686577,THE LIMES RESIDENTIAL HOME,"3,620.00",06/02/2024
Delivery Units,Adults and Health,Other Agencies - Third Party P,0090686581,JEWISH CARE,"2,896.00",06/02/2024
Delivery Units,Adults and Health,Other Agencies - Third Party P,0090686583,APPLE TREE COURT CARE HOME,"4,556.00",06/02/2024
Delivery Units,Adults and Health,Other Agencies - Third Party P,0090686586,LIFESTYLE CARE PLC,"3,604.00",06/02/2024
Delivery Units,Adults and Health,Other Agencies - Third Party P,0090686588,Aarandale Manor Care Home,"5,200.00",06/02/2024
Delivery Units,Adults and Health,Other Agencies - Third Party P,0090686601,ELEANOR PALMER TRUST NO 2 A/C.,"4,000.00",06/02/2024
Delivery Units,Adults and Health,Other Agencies - Third Party P,0090686606,ELM PARK LODGE,125.00,06/02/2024
Delivery Units,Adults and Health,Other Agencies - Third Party P,0090686611,ELMHURST RESIDENTIAL HOME,"11,400.00",06/02/2024
Delivery Units,Adults and Health,Other Agencies - Third Party P,0090686612,NAZARETH HOUSE,"3,140.00",06/02/2024
Delivery Units,Adults and Health,Other Agencies - Third Party P,0090686614,NAZARETH HOUSE,"3,019.68",06/02/2024
Delivery Units,Adults and Health,Other Agencies - Third Party P,0090686616,CARE UK COMMUNITY PARTNERSHIPS,"3,852.00",06/02/2024
Delivery Units,Adults and Health,Other Agencies - Third Party P,0090686617,APPLE TREE COURT CARE HOME,"5,124.00",06/02/2024
Delivery Units,Adults and Health,Other Agencies - Third Party P,0090686619,NAZARETH HOUSE,"3,019.68",06/02/2024
Delivery Units,Adults and Health,Other Agencies - Third Party P,0090686620,NAZARETH HOUSE,785.00,06/02/2024
Delivery Units,Adults and Health,Other Agencies - Third Party P,0090686621,Aarandale Manor Care Home,"5,000.00",06/02/2024
Delivery Units,Adults and Health,Other Agencies - Third Party P,0090686623,THE LIMES RESIDENTIAL HOME,"3,400.00",06/02/2024
Delivery Units,Adults and Health,Other Agencies - Third Party P,0090686625,NAZARETH HOUSE,"2,890.08",06/02/2024
Delivery Units,Adults and Health,Other Agencies - Third Party P,0090686628,CEDARS NURSING HOME,"5,200.00",06/02/2024
Delivery Units,Adults and Health,Other Agencies - Third Party P,0090686642,NAZARETH HOUSE,"3,140.00",06/02/2024
Delivery Units,Adults and Health,Other Agencies - Third Party P,0090686654,NAZARETH HOUSE,"1,233.57",06/02/2024
Delivery Units,Adults and Health,Other Agencies - Third Party P,0090686657,CARE UK COMMUNITY PARTNERSHIPS,"3,852.00",06/02/2024
Delivery Units,Adults and Health,Other Agencies - Third Party P,0090686663,SAGE NURSING HOME,"2,856.00",06/02/2024
Delivery Units,Adults and Health,Other Agencies - Third Party P,0090686667,THE LIMES RESIDENTIAL HOME,"2,892.00",06/02/2024
Delivery Units,Adults and Health,Other Agencies - Third Party P,0090686672,THE LIMES RESIDENTIAL HOME,"2,892.00",06/02/2024
Delivery Units,Adults and Health,Other Agencies - Third Party P,0090686678,ELEANOR PALMER TRUST NO 2 A/C.,"4,400.00",06/02/2024
Delivery Units,Adults and Health,Other Agencies - Third Party P,0090686682,ELEANOR PALMER TRUST NO 2 A/C.,"4,000.00",06/02/2024
Delivery Units,Adults and Health,Other Agencies - Third Party P,0090686684,JEWISH CARE,"2,896.00",06/02/2024
Delivery Units,Adults and Health,Other Agencies - Third Party P,0090686685,JEWISH CARE,"3,056.00",06/02/2024
Delivery Units,Adults and Health,Other Agencies - Third Party P,0090686689,APPLE TREE COURT CARE HOME,"4,400.00",06/02/2024
Delivery Units,Adults and Health,Other Agencies - Third Party P,0090686690,JEWISH CARE,"3,056.00",06/02/2024
Delivery Units,Adults and Health,Other Agencies - Third Party P,0090686691,ABBEY RAVENSCROFT PARK NURSING HOME,"4,032.20",06/02/2024
Delivery Units,Adults and Health,Other Agencies - Third Party P,0090686692,JEWISH CARE,"2,896.00",06/02/2024
Delivery Units,Adults and Health,Other Agencies - Third Party P,0090686694,JEWISH CARE,"3,056.00",06/02/2024
Delivery Units,Adults and Health,Other Agencies - Third Party P,0090686695,JEWISH CARE,"3,056.00",06/02/2024
Delivery Units,Adults and Health,Other Agencies - Third Party P,0090686698,ELEANOR PALMER TRUST NO 2 A/C.,"4,400.00",06/02/2024
Delivery Units,Adults and Health,Other Agencies - Third Party P,0090686699,BUPA CARE HOMES,"7,670.29",06/02/2024
Delivery Units,Adults and Health,Other Agencies - Third Party P,0090686700,LIFESTYLE CARE PLC,"3,600.00",06/02/2024
Delivery Units,Adults and Health,Other Agencies - Third Party P,0090686702,NAZARETH HOUSE,"2,890.08",06/02/2024
Delivery Units,Adults and Health,Other Agencies - Third Party P,0090686704,BUPA CARE HOMES,"3,166.36",06/02/2024
Delivery Units,Adults and Health,Other Agencies - Third Party P,0090686705,JEWISH CARE,"2,896.00",06/02/2024
Delivery Units,Adults and Health,Other Agencies - Third Party P,0090686714,ELEANOR PALMER TRUST NO 2 A/C.,"4,000.00",06/02/2024
Delivery Units,Adults and Health,Other Agencies - Third Party P,0090686717,APPLE TREE COURT CARE HOME,"3,800.00",06/02/2024
Delivery Units,Adults and Health,Other Agencies - Third Party P,0090686719,THE LIMES RESIDENTIAL HOME,"3,416.00",06/02/2024
Delivery Units,Adults and Health,Other Agencies - Third Party P,0090686724,ELEANOR PALMER TRUST NO 2 A/C.,"4,000.00",06/02/2024
Delivery Units,Adults and Health,Other Agencies - Third Party P,0090686731,JEWISH CARE,"3,056.00",06/02/2024
Delivery Units,Adults and Health,Other Agencies - Third Party P,0090686735,BUPA CARE HOMES,"4,000.00",06/02/2024
Delivery Units,Adults and Health,Other Agencies - Third Party P,0090686744,JEWISH CARE,"3,056.00",06/02/2024
Delivery Units,Adults and Health,Other Agencies - Third Party P,0090686748,JEWISH CARE,"3,056.00",06/02/2024
Delivery Units,Adults and Health,Other Agencies - Third Party P,0090686759,JEWISH CARE,"3,056.00",06/02/2024
Delivery Units,Adults and Health,Other Agencies - Third Party P,0090686760,NAZARETH HOUSE,"2,579.29",06/02/2024
Delivery Units,Adults and Health,Other Agencies - Third Party P,0090686763,NAZARETH HOUSE,"3,140.00",06/02/2024
Delivery Units,Adults and Health,Other Agencies - Third Party P,0090686764,THE LIMES RESIDENTIAL HOME,"2,628.57",06/02/2024
Delivery Units,Adults and Health,Other Agencies - Third Party P,0090686766,JEWISH CARE,"39,342.08",06/02/2024
Delivery Units,Adults and Health,Other Agencies - Third Party P,0090686769,ELEANOR PALMER TRUST NO 2 A/C.,"4,000.00",06/02/2024
Delivery Units,Adults and Health,Other Agencies - Third Party P,0090686786,CEDARS NURSING HOME,"-4,714.29",06/02/2024
Delivery Units,Adults and Health,Other Agencies - Third Party P,0090686795,JEWISH CARE,"3,056.00",06/02/2024
Delivery Units,Adults and Health,Other Agencies - Third Party P,0090686799,THE LIMES RESIDENTIAL HOME,"3,336.00",06/02/2024
Delivery Units,Adults and Health,Other Agencies - Third Party P,0090686801,NAZARETH HOUSE,206.44,06/02/2024
Delivery Units,Adults and Health,Other Agencies - Third Party P,0090686804,NAZARETH HOUSE,"4,104.00",06/02/2024
Delivery Units,Adults and Health,Other Agencies - Third Party P,0090686805,JEWISH CARE,"3,056.00",06/02/2024
Delivery Units,Adults and Health,Other Agencies - Third Party P,0090686808,JEWISH CARE,"2,896.00",06/02/2024
Delivery Units,Adults and Health,Other Agencies - Third Party P,0090686809,NAZARETH HOUSE,"2,740.00",06/02/2024
Delivery Units,Adults and Health,Other Agencies - Third Party P,0090686811,THE LIMES RESIDENTIAL HOME,"3,336.00",06/02/2024
Delivery Units,Adults and Health,Other Agencies - Third Party P,0090686812,NAZARETH HOUSE,"2,890.08",06/02/2024
Delivery Units,Adults and Health,Other Agencies - Third Party P,0090686814,JEWISH CARE,"3,056.00",06/02/2024
Delivery Units,Adults and Health,Other Agencies - Third Party P,0090686819,NAZARETH HOUSE,"2,740.00",06/02/2024
Delivery Units,Adults and Health,Other Agencies - Third Party P,0090686820,NAZARETH HOUSE,"2,890.08",06/02/2024
Delivery Units,Adults and Health,Other Agencies - Third Party P,0090686823,THE LIMES RESIDENTIAL HOME,"3,436.00",06/02/2024
Delivery Units,Adults and Health,Other Agencies - Third Party P,0090686827,NAZARETH HOUSE,"10,205.00",06/02/2024
Delivery Units,Adults and Health,Other Agencies - Third Party P,0090686830,NAZARETH HOUSE,"2,890.08",06/02/2024
Delivery Units,Adults and Health,Other Agencies - Third Party P,0090686831,JEWISH CARE,"3,056.00",06/02/2024
Delivery Units,Adults and Health,Other Agencies - Third Party P,0090686833,NAZARETH HOUSE,"2,890.08",06/02/2024
Delivery Units,Adults and Health,Other Agencies - Third Party P,0090686837,ELEANOR PALMER TRUST NO 2 A/C.,"4,400.00",06/02/2024
Delivery Units,Adults and Health,Other Agencies - Third Party P,0090686849,JEWISH CARE,"3,212.00",06/02/2024
Delivery Units,Adults and Health,Other Agencies - Third Party P,0090686852,APPLE TREE COURT CARE HOME,"5,124.00",06/02/2024
Delivery Units,Adults and Health,Other Agencies - Third Party P,0090686866,THE LIMES RESIDENTIAL HOME,"2,973.57",06/02/2024
Delivery Units,Adults and Health,Other Agencies - Third Party P,0090686870,NAZARETH HOUSE,"3,140.00",06/02/2024
Delivery Units,Adults and Health,Other Agencies - Third Party P,0090686874,CARE UK COMMUNITY PARTNERSHIPS,"3,852.00",06/02/2024
Delivery Units,Adults and Health,Other Agencies - Third Party P,0090686876,NAZARETH HOUSE,"3,140.00",06/02/2024
Delivery Units,Adults and Health,Other Agencies - Third Party P,0090686877,JEWISH CARE,"3,017.80",06/02/2024
Delivery Units,Adults and Health,Other Agencies - Third Party P,0090686883,ELM PARK LODGE,"3,400.00",06/02/2024
Delivery Units,Adults and Health,Other Agencies - Third Party P,0090686890,JEWISH CARE,"3,212.00",06/02/2024
Delivery Units,Adults and Health,Other Agencies - Third Party P,0090686891,NAZARETH HOUSE,"3,140.00",06/02/2024
Delivery Units,Adults and Health,Other Agencies - Third Party P,0090686897,CARE UK COMMUNITY PARTNERSHIPS,963.00,06/02/2024
Delivery Units,Adults and Health,Other Agencies - Third Party P,0090686899,NAZARETH HOUSE,"3,140.00",06/02/2024
Delivery Units,Adults and Health,Other Agencies - Third Party P,0090686902,JEWISH CARE,"9,825.71",06/02/2024
Delivery Units,Adults and Health,Other Agencies - Third Party P,0090686904,NAZARETH HOUSE,"3,140.00",06/02/2024
Delivery Units,Adults and Health,Other Agencies - Third Party P,0090686905,NAZARETH HOUSE,"3,140.00",06/02/2024
Delivery Units,Adults and Health,Other Agencies - Third Party P,0090686906,NAZARETH HOUSE,"3,140.00",06/02/2024
Delivery Units,Adults and Health,Other Agencies - Third Party P,0090686907,JEWISH CARE,"17,113.00",06/02/2024
Delivery Units,Adults and Health,Other Agencies - Third Party P,0090686915,Aarandale Manor Care Home,228.57,06/02/2024
Delivery Units,Adults and Health,Other Agencies - Third Party P,0090686918,NAZARETH HOUSE,"5,719.29",06/02/2024
Delivery Units,Adults and Health,Other Agencies - Third Party P,0090687316,ANASTASIA LODGE,"3,620.00",08/02/2024
Delivery Units,Adults and Health,Other Agencies - Third Party P,0090687318,THE WOODSIDE HOME,"3,400.00",08/02/2024
Delivery Units,Adults and Health,Other Agencies - Third Party P,0090687319,THE WOODSIDE HOME,"3,200.00",08/02/2024
Delivery Units,Adults and Health,Other Agencies - Third Party P,0090687320,THE WOODSIDE HOME,"3,200.00",08/02/2024
Delivery Units,Adults and Health,Other Agencies - Third Party P,0090687321,THE WOODSIDE HOME,"2,676.00",08/02/2024
Delivery Units,Adults and Health,Other Agencies - Third Party P,0090687322,THE WOODSIDE HOME,"2,540.00",08/02/2024
Delivery Units,Adults and Health,Other Agencies - Third Party P,0090687323,THE WOODSIDE HOME,"2,800.00",08/02/2024
Delivery Units,Adults and Health,Other Agencies - Third Party P,0090687324,EASTSIDE HOUSE CARE HOME,"3,800.00",08/02/2024
Delivery Units,Adults and Health,Other Agencies - Third Party P,0090687325,EASTSIDE HOUSE CARE HOME,"3,720.00",08/02/2024
Delivery Units,Adults and Health,Other Agencies - Third Party P,0090687326,EASTSIDE HOUSE CARE HOME,"3,800.00",08/02/2024
Delivery Units,Adults and Health,Other Agencies - Third Party P,0090687342,METHODIST HOMES FOR THE AGED,"4,208.88",08/02/2024
Delivery Units,Adults and Health,Other Agencies - Third Party P,0090687357,QUANTUM CARE LIMITED,"4,207.14",08/02/2024
Delivery Units,Adults and Health,Other Agencies - Third Party P,0090687362,TORRINGTON HOMES,"5,292.85",08/02/2024
Delivery Units,Adults and Health,Other Agencies - Third Party P,0090687363,TORRINGTON HOMES,"4,207.14",08/02/2024
Delivery Units,Adults and Health,Other Agencies - Third Party P,0090687364,TORRINGTON HOMES,"2,714.29",08/02/2024
Delivery Units,Adults and Health,Other Agencies - Third Party P,0090687370,Allied Care (MH) Ltd,"5,168.00",08/02/2024
Delivery Units,Adults and Health,Other Agencies - Third Party P,0090687372,Karuna Manor,"4,207.14",08/02/2024
Delivery Units,Adults and Health,Other Agencies - Third Party P,0090687373,Karuna Manor,"4,071.43",08/02/2024
Delivery Units,Adults and Health,Other Agencies - Third Party P,0090687374,Karuna Manor,"4,207.14",08/02/2024
Delivery Units,Adults and Health,Other Agencies - Third Party P,0090687375,Karuna Manor,"4,207.14",08/02/2024
Delivery Units,Adults and Health,Other Agencies - Third Party P,0090688829,Barchester Healthcare,"5,456.00",09/02/2024
Delivery Units,Adults and Health,Other Agencies - Third Party P,0090688851,Brownlow Enterprises Ltd,135.71,09/02/2024
Delivery Units,Adults and Health,Other Agencies - Third Party P,0090688852,Brownlow Enterprises Ltd,"2,985.71",09/02/2024
Delivery Units,Adults and Health,Other Agencies - Third Party P,0090688853,Brownlow Enterprises Ltd,"3,573.86",09/02/2024
Delivery Units,Adults and Health,Other Agencies - Third Party P,0090688854,Brownlow Enterprises Ltd,"4,207.14",09/02/2024
Delivery Units,Adults and Health,Other Agencies - Third Party P,0090688855,Brownlow Enterprises Ltd,"4,069.86",09/02/2024
Delivery Units,Adults and Health,Other Agencies - Third Party P,0090688856,Brownlow Enterprises Ltd,"4,224.86",09/02/2024
Delivery Units,Adults and Health,Other Agencies - Third Party P,0090688857,Brownlow Enterprises Ltd,"3,795.29",09/02/2024
Delivery Units,Adults and Health,Other Agencies - Third Party P,0090688859,Brownlow Enterprises Ltd,"3,817.43",09/02/2024
Delivery Units,Adults and Health,Other Agencies - Third Party P,0090688860,Brownlow Enterprises Ltd,"4,069.86",09/02/2024
Delivery Units,Adults and Health,Other Agencies - Third Party P,0090688861,Brownlow Enterprises Ltd,"4,069.86",09/02/2024
Delivery Units,Adults and Health,Other Agencies - Third Party P,0090688863,Brownlow Enterprises Ltd,"4,207.14",09/02/2024
Delivery Units,Adults and Health,Other Agencies - Third Party P,0090688864,Brownlow Enterprises Ltd,"3,795.29",09/02/2024
Delivery Units,Adults and Health,Other Agencies - Third Party P,0090688865,Brownlow Enterprises Ltd,"3,817.43",09/02/2024
Delivery Units,Adults and Health,Other Agencies - Third Party P,0090688866,Brownlow Enterprises Ltd,"3,795.29",09/02/2024
Delivery Units,Adults and Health,Other Agencies - Third Party P,0090688867,Brownlow Enterprises Ltd,"4,207.14",09/02/2024
Delivery Units,Adults and Health,Other Agencies - Third Party P,0090688868,Brownlow Enterprises Ltd,"4,207.14",09/02/2024
Delivery Units,Adults and Health,Other Agencies - Third Party P,0090688963,EASTSIDE HOUSE CARE HOME,"3,800.00",09/02/2024
Delivery Units,Adults and Health,Other Agencies - Third Party P,0090688975,METHODIST HOMES FOR THE AGED,"4,402.76",09/02/2024
Delivery Units,Adults and Health,Other Agencies - Third Party P,0090691067,EASTSIDE HOUSE CARE HOME,"3,800.00",13/02/2024
Delivery Units,Adults and Health,Other Agencies - Third Party P,0090691068,Karuna Manor,"6,642.86",13/02/2024
Delivery Units,Adults and Health,Other Agencies - Third Party P,0090691076,Avon Lodge UK Ltd,"3,985.71",13/02/2024
Delivery Units,Adults and Health,Other Agencies - Third Party P,0090691574,MEERA NURSING HOME LIMITED,"3,985.71",13/02/2024
Delivery Units,Adults and Health,Other Agencies - Third Party P,0090691575,MEERA NURSING HOME LIMITED,"4,003.42",13/02/2024
Delivery Units,Adults and Health,Other Agencies - Third Party P,0090691756,Avon Lodge UK Ltd,"3,985.71",14/02/2024
Delivery Units,Adults and Health,Other Agencies - Third Party P,0090692283,Boughton Lodge Care Home,"3,100.00",16/02/2024
Delivery Units,Adults and Health,Other Agencies - Third Party P,0090692949,Brownlow Enterprises Ltd,"1,650.52",21/02/2024
Delivery Units,Adults and Health,Other Agencies - Third Party P,0090692950,Brownlow Enterprises Ltd,"1,651.37",21/02/2024
Delivery Units,Adults and Health,Other Agencies - Third Party P,0090692951,Brownlow Enterprises Ltd,"1,651.44",21/02/2024
Delivery Units,Adults and Health,Other Agencies - Third Party P,0090692953,Brownlow Enterprises Ltd,"1,641.04",21/02/2024
Delivery Units,Adults and Health,Other Agencies - Third Party P,0090692954,Brownlow Enterprises Ltd,"1,651.43",21/02/2024
Delivery Units,Adults and Health,Other Agencies - Third Party P,0090692955,Brownlow Enterprises Ltd,"1,650.89",21/02/2024
Delivery Units,Adults and Health,Other Agencies - Third Party P,0090692956,Brownlow Enterprises Ltd,"1,644.04",21/02/2024
Delivery Units,Adults and Health,Other Agencies - Third Party P,0090692957,Brownlow Enterprises Ltd,"2,121.67",21/02/2024
Delivery Units,Adults and Health,Other Agencies - Third Party P,0090692958,Brownlow Enterprises Ltd,"1,570.62",21/02/2024
Delivery Units,Adults and Health,Other Agencies - Third Party P,0090692963,Brownlow Enterprises Ltd,"1,606.06",21/02/2024
Delivery Units,Adults and Health,Other Agencies - Third Party P,0090693516,Karuna Manor,"3,935.71",21/02/2024
Delivery Units,Adults and Health,Other Agencies - Third Party P,0090693517,Karuna Manor,"6,214.29",21/02/2024
Delivery Units,Adults and Health,Other Agencies - Third Party P,0090693523,TORRINGTON HOMES,"3,800.00",21/02/2024
Delivery Units,Adults and Health,Other Agencies - Third Party P,0090693525,TORRINGTON HOMES,"3,800.00",21/02/2024
Delivery Units,Adults and Health,Other Agencies - Third Party P,0090693527,TORRINGTON HOMES,"2,211.80",21/02/2024
Delivery Units,Adults and Health,Other Agencies - Third Party P,0090693531,Green Trees Care Home,"4,101.47",21/02/2024
Delivery Units,Adults and Health,Other Agencies - Third Party P,0090693542,Brownlow Enterprises Ltd,"3,857.14",21/02/2024
Delivery Units,Adults and Health,Other Agencies - Third Party P,0090693653,EASTSIDE HOUSE CARE HOME,"3,920.00",21/02/2024
Delivery Units,Adults and Health,Other Agencies - Third Party P,0090693655,Westbourne Care Home,"7,407.43",21/02/2024
Delivery Units,Adults and Health,Other Agencies - Third Party P,0090693666,Avon Lodge UK Ltd,"3,728.57",21/02/2024
Delivery Units,Adults and Health,Other Agencies - Third Party P,0090693668,TORRINGTON HOMES,"3,935.71",21/02/2024
Delivery Units,Adults and Health,Other Agencies - Third Party P,0090693672,TORRINGTON HOMES,"2,442.86",21/02/2024
Delivery Units,Adults and Health,Other Agencies - Third Party P,0090693673,TORRINGTON HOMES,"4,207.14",21/02/2024
Delivery Units,Adults and Health,Other Agencies - Third Party P,0090693674,TORRINGTON HOMES,"4,071.43",21/02/2024
Delivery Units,Adults and Health,Other Agencies - Third Party P,0090693675,TORRINGTON HOMES,"4,071.43",21/02/2024
Delivery Units,Adults and Health,Other Agencies - Third Party P,0090693676,TORRINGTON HOMES,"3,800.00",21/02/2024
Delivery Units,Adults and Health,Other Agencies - Third Party P,0090693678,TORRINGTON HOMES,"4,207.14",21/02/2024
Delivery Units,Adults and Health,Other Agencies - Third Party P,0090693679,TORRINGTON HOMES,"3,935.71",21/02/2024
Delivery Units,Adults and Health,Other Agencies - Third Party P,0090693714,Acacia Lodge Care Home Ltd,"4,071.43",22/02/2024
Delivery Units,Adults and Health,Other Agencies - Third Party P,0090693715,Acacia Lodge Care Home Ltd,"4,207.14",22/02/2024
Delivery Units,Adults and Health,Other Agencies - Third Party P,0090693719,Brownlow Enterprises Ltd,"4,207.14",22/02/2024
Delivery Units,Adults and Health,Other Agencies - Third Party P,0090693892,DENVILLE HALL,"6,364.20",23/02/2024
Delivery Units,Adults and Health,Other Agencies - Third Party P,0090693897,THE CHRISTIAN CARE TRUST,"4,039.12",23/02/2024
Delivery Units,Adults and Health,Other Agencies - Third Party P,0090693899,Green Trees Care Home,"4,101.47",23/02/2024
Delivery Units,Adults and Health,Other Agencies - Third Party P,0090693935,TORRINGTON HOMES,"4,071.43",23/02/2024
Delivery Units,Adults and Health,Other Agencies - Third Party P,0090693936,TORRINGTON HOMES,"4,207.14",23/02/2024
Delivery Units,Adults and Health,Other Agencies - Third Party P,0090693937,TORRINGTON HOMES,"4,071.43",23/02/2024
Delivery Units,Adults and Health,Other Agencies - Third Party P,0090693938,TORRINGTON HOMES,"2,171.43",23/02/2024
Delivery Units,Adults and Health,Other Agencies - Third Party P,0090693940,Brownlow Enterprises Ltd,"3,571.14",23/02/2024
Delivery Units,Adults and Health,Other Agencies - Third Party P,0090693942,Brownlow Enterprises Ltd,"3,550.43",23/02/2024
Delivery Units,Adults and Health,Other Agencies - Third Party P,0090693943,Brownlow Enterprises Ltd,"3,807.29",23/02/2024
Delivery Units,Adults and Health,Other Agencies - Third Party P,0090693944,Brownlow Enterprises Ltd,"3,952.29",23/02/2024
Delivery Units,Adults and Health,Other Agencies - Third Party P,0090693945,Brownlow Enterprises Ltd,"3,807.29",23/02/2024
Delivery Units,Adults and Health,Other Agencies - Third Party P,0090693946,Brownlow Enterprises Ltd,"3,807.29",23/02/2024
Delivery Units,Adults and Health,Other Agencies - Third Party P,0090693947,Brownlow Enterprises Ltd,"3,343.29",23/02/2024
Delivery Units,Adults and Health,Other Agencies - Third Party P,0090693948,Brownlow Enterprises Ltd,"3,935.71",23/02/2024
Delivery Units,Adults and Health,Other Agencies - Third Party P,0090693949,Brownlow Enterprises Ltd,"3,935.71",23/02/2024
Delivery Units,Adults and Health,Other Agencies - Third Party P,0090693950,Brownlow Enterprises Ltd,"3,550.43",23/02/2024
Delivery Units,Adults and Health,Other Agencies - Third Party P,0090693951,Brownlow Enterprises Ltd,"3,571.14",23/02/2024
Delivery Units,Adults and Health,Other Agencies - Third Party P,0090693952,Brownlow Enterprises Ltd,"3,935.71",23/02/2024
Delivery Units,Adults and Health,Other Agencies - Third Party P,0090693953,Brownlow Enterprises Ltd,"3,550.43",23/02/2024
Delivery Units,Adults and Health,Other Agencies - Third Party P,0090693996,Hillyfield Rest Home Limited,"4,557.06",23/02/2024
Delivery Units,Adults and Health,Other Agencies - Third Party P,0090694008,B & M CARE,"3,935.71",23/02/2024
Delivery Units,Adults and Health,Other Agencies - Third Party P,0090694009,B & M CARE,"4,018.57",23/02/2024
Delivery Units,Adults and Health,Other Agencies - Third Party P,0090694011,B & M CARE,"4,971.43",23/02/2024
Delivery Units,Adults and Health,Other Agencies - Third Party P,0090694016,NIGHTINGALE HOUSE,"3,687.14",23/02/2024
Delivery Units,Adults and Health,Other Agencies - Third Party P,0090694017,NIGHTINGALE HOUSE,"3,538.00",23/02/2024
Delivery Units,Adults and Health,Other Agencies - Third Party P,0090694018,NIGHTINGALE HOUSE,"3,687.14",23/02/2024
Delivery Units,Adults and Health,Other Agencies - Third Party P,0090694019,NIGHTINGALE HOUSE,"3,579.43",23/02/2024
Delivery Units,Adults and Health,Other Agencies - Third Party P,0090694020,NIGHTINGALE HOUSE,"3,935.71",23/02/2024
Delivery Units,Adults and Health,Other Agencies - Third Party P,0090694030,Bupa Care Homes (AKW) Limited,"3,400.00",23/02/2024
Delivery Units,Adults and Health,Other Agencies - Third Party P,0090694032,Bupa Care Homes (AKW) Limited,"3,400.00",23/02/2024
Delivery Units,Adults and Health,Other Agencies - Third Party P,0090694131,MEERA NURSING HOME LIMITED,"3,745.14",26/02/2024
Delivery Units,Adults and Health,Other Agencies - Third Party P,0090694132,B & M CARE,"3,521.43",26/02/2024
Delivery Units,Adults and Health,Other Agencies - Third Party P,0090694133,MEERA NURSING HOME LIMITED,"3,513.14",26/02/2024
Delivery Units,Adults and Health,Other Agencies - Third Party P,0090694137,Newgrange of Cheshunt Ltd,"3,513.14",26/02/2024
Delivery Units,Adults and Health,Other Agencies - Third Party P,0090695343,Hillyfield Rest Home Limited,"4,557.06",28/02/2024
Delivery Units,Adults and Health,Other Agencies - Third Party P,0090695656,THE WOODSIDE HOME,"3,400.00",28/02/2024
Delivery Units,Adults and Health,Other Agencies - Third Party P,0090695657,THE WOODSIDE HOME,"2,800.00",28/02/2024
Delivery Units,Adults and Health,Other Agencies - Third Party P,0090695658,THE WOODSIDE HOME,"3,200.00",28/02/2024
Delivery Units,Adults and Health,Other Agencies - Third Party P,0090695659,THE WOODSIDE HOME,"3,200.00",28/02/2024
Delivery Units,Adults and Health,Other Agencies - Third Party P,0090695660,THE WOODSIDE HOME,"2,676.00",28/02/2024
Delivery Units,Adults and Health,Other Agencies - Third Party P,0090695661,THE WOODSIDE HOME,"2,540.00",28/02/2024
Delivery Units,Adults and Health,Other Agencies - Third Party P,0090695662,EASTSIDE HOUSE CARE HOME,"3,800.00",28/02/2024
Delivery Units,Adults and Health,Other Agencies - Third Party P,0090695665,EASTSIDE HOUSE CARE HOME,"3,800.00",28/02/2024
Delivery Units,Adults and Health,Other Agencies - Third Party P,0090695666,EASTSIDE HOUSE CARE HOME,"3,720.00",28/02/2024
Delivery Units,Adults and Health,Other Agencies - Third Party P,0090695667,EASTSIDE HOUSE CARE HOME,"3,800.00",28/02/2024
Delivery Units,Adults and Health,Other Agencies - Third Party P,0090695668,EASTSIDE HOUSE CARE HOME,"3,800.00",28/02/2024
Delivery Units,Adults and Health,Other Agencies - Third Party P,0090695669,EASTSIDE HOUSE CARE HOME,"3,800.00",28/02/2024
Delivery Units,Adults and Health,Other Agencies - Third Party P,0090695670,ANASTASIA LODGE,"3,620.00",28/02/2024
Delivery Units,Adults and Health,Other Agencies - Third Party P,0090695691,Avon Lodge UK Ltd,"3,985.71",28/02/2024
Delivery Units,Adults and Health,Other Agencies - Third Party P,0090695703,Brownlow Enterprises Ltd,"4,069.86",28/02/2024
Delivery Units,Adults and Health,Other Agencies - Third Party P,0090695704,Brownlow Enterprises Ltd,"4,069.86",28/02/2024
Delivery Units,Adults and Health,Other Agencies - Third Party P,0090695706,Brownlow Enterprises Ltd,"3,817.43",28/02/2024
Delivery Units,Adults and Health,Other Agencies - Third Party P,0090695707,Brownlow Enterprises Ltd,"3,795.29",28/02/2024
Delivery Units,Adults and Health,Other Agencies - Third Party P,0090695709,Brownlow Enterprises Ltd,"4,224.86",28/02/2024
Delivery Units,Adults and Health,Other Agencies - Third Party P,0090695710,Brownlow Enterprises Ltd,"4,069.86",28/02/2024
Delivery Units,Adults and Health,Other Agencies - Third Party P,0090695711,Brownlow Enterprises Ltd,"3,573.86",28/02/2024
Delivery Units,Adults and Health,Other Agencies - Third Party P,0090695712,Brownlow Enterprises Ltd,"4,207.14",28/02/2024
Delivery Units,Adults and Health,Other Agencies - Third Party P,0090695717,EASTSIDE HOUSE CARE HOME,"2,714.26",28/02/2024
Delivery Units,Adults and Health,Other Agencies - Third Party P,0090695718,EASTSIDE HOUSE CARE HOME,"2,850.00",28/02/2024
Delivery Units,Adults and Health,Other Agencies - Third Party P,0090695719,EASTSIDE HOUSE CARE HOME,"3,587.14",28/02/2024
Delivery Units,Adults and Health,Other Agencies - Third Party P,0090695720,EASTSIDE HOUSE CARE HOME,"3,664.29",28/02/2024
Delivery Units,Adults and Health,Other Agencies - Third Party P,0090695722,EASTSIDE HOUSE CARE HOME,560.00,28/02/2024
Delivery Units,Adults and Health,Other Agencies - Third Party P,0090695723,EASTSIDE HOUSE CARE HOME,"3,528.57",28/02/2024
Delivery Units,Adults and Health,Other Agencies - Third Party P,0090695724,EASTSIDE HOUSE CARE HOME,"2,442.86",28/02/2024
Delivery Units,Adults and Health,Other Agencies - Third Party P,0090695726,EASTSIDE HOUSE CARE HOME,"3,920.00",28/02/2024
Delivery Units,Adults and Health,Other Agencies - Third Party P,0090685522,Mayfair Homecare Ltd,"1,335.60",01/02/2024
Delivery Units,Adults and Health,Other Agencies - Third Party P,0090685524,Mayfair Homecare Ltd,"1,335.60",01/02/2024
Delivery Units,Adults and Health,Other Agencies - Third Party P,0090685525,Mayfair Homecare Ltd,"1,335.60",01/02/2024
Delivery Units,Adults and Health,Other Agencies - Third Party P,0090685526,Mayfair Homecare Ltd,"1,335.60",01/02/2024
Delivery Units,Adults and Health,Other Agencies - Third Party P,0090685527,Mayfair Homecare Ltd,"1,335.60",01/02/2024
Delivery Units,Adults and Health,Other Agencies - Third Party P,0090685528,Mayfair Homecare Ltd,74.20,01/02/2024
Delivery Units,Adults and Health,Other Agencies - Third Party P,0090685530,Mayfair Homecare Ltd,328.60,01/02/2024
Delivery Units,Adults and Health,Other Agencies - Third Party P,0090685531,Mayfair Homecare Ltd,148.40,01/02/2024
Delivery Units,Adults and Health,Other Agencies - Third Party P,0090685534,Mayfair Homecare Ltd,592.57,01/02/2024
Delivery Units,Adults and Health,Other Agencies - Third Party P,0090685535,Mayfair Homecare Ltd,445.20,01/02/2024
Delivery Units,Adults and Health,Other Agencies - Third Party P,0090685538,Eleanor Nursing & Social Care Ltd,400.05,01/02/2024
Delivery Units,Adults and Health,Other Agencies - Third Party P,0090685539,Eleanor Nursing & Social Care Ltd,466.73,01/02/2024
Delivery Units,Adults and Health,Other Agencies - Third Party P,0090685540,Eleanor Nursing & Social Care Ltd,100.01,01/02/2024
Delivery Units,Adults and Health,Other Agencies - Third Party P,0090685541,Eleanor Nursing & Social Care Ltd,166.69,01/02/2024
Delivery Units,Adults and Health,Other Agencies - Third Party P,0090685542,Eleanor Nursing & Social Care Ltd,66.68,01/02/2024
Delivery Units,Adults and Health,Other Agencies - Third Party P,0090685544,Eleanor Nursing & Social Care Ltd,28.58,01/02/2024
Delivery Units,Adults and Health,Other Agencies - Third Party P,0090685545,Eleanor Nursing & Social Care Ltd,266.70,01/02/2024
Delivery Units,Adults and Health,Other Agencies - Third Party P,0090685546,Eleanor Nursing & Social Care Ltd,119.06,01/02/2024
Delivery Units,Adults and Health,Other Agencies - Third Party P,0090685547,Eleanor Nursing & Social Care Ltd,66.68,01/02/2024
Delivery Units,Adults and Health,Other Agencies - Third Party P,0090685548,Eleanor Nursing & Social Care Ltd,19.05,01/02/2024
Delivery Units,Adults and Health,Other Agencies - Third Party P,0090685550,Eleanor Nursing & Social Care Ltd,166.69,01/02/2024
Delivery Units,Adults and Health,Other Agencies - Third Party P,0090685552,Eleanor Nursing & Social Care Ltd,233.36,01/02/2024
Delivery Units,Adults and Health,Other Agencies - Third Party P,0090685554,Eleanor Nursing & Social Care Ltd,95.25,01/02/2024
Delivery Units,Adults and Health,Other Agencies - Third Party P,0090685557,Eleanor Nursing & Social Care Ltd,219.08,01/02/2024
Delivery Units,Adults and Health,Other Agencies - Third Party P,0090685558,Eleanor Nursing & Social Care Ltd,228.60,01/02/2024
Delivery Units,Adults and Health,Other Agencies - Third Party P,0090685559,Eleanor Nursing & Social Care Ltd,19.05,01/02/2024
Delivery Units,Adults and Health,Other Agencies - Third Party P,0090685560,Eleanor Nursing & Social Care Ltd,200.03,01/02/2024
Delivery Units,Adults and Health,Other Agencies - Third Party P,0090685561,Eleanor Nursing & Social Care Ltd,100.01,01/02/2024
Delivery Units,Adults and Health,Other Agencies - Third Party P,0090685563,Eleanor Nursing & Social Care Ltd,514.35,01/02/2024
Delivery Units,Adults and Health,Other Agencies - Third Party P,0090685564,Eleanor Nursing & Social Care Ltd,133.35,01/02/2024
Delivery Units,Adults and Health,Other Agencies - Third Party P,0090685565,Eleanor Nursing & Social Care Ltd,28.58,01/02/2024
Delivery Units,Adults and Health,Other Agencies - Third Party P,0090685567,Eleanor Nursing & Social Care Ltd,47.63,01/02/2024
Delivery Units,Adults and Health,Other Agencies - Third Party P,0090685568,Eleanor Nursing & Social Care Ltd,66.68,01/02/2024
Delivery Units,Adults and Health,Other Agencies - Third Party P,0090685569,Eleanor Nursing & Social Care Ltd,85.73,01/02/2024
Delivery Units,Adults and Health,Other Agencies - Third Party P,0090685570,Eleanor Nursing & Social Care Ltd,100.01,01/02/2024
Delivery Units,Adults and Health,Other Agencies - Third Party P,0090685571,Eleanor Nursing & Social Care Ltd,"1,276.35",01/02/2024
Delivery Units,Adults and Health,Other Agencies - Third Party P,0090685572,Eleanor Nursing & Social Care Ltd,171.45,01/02/2024
Delivery Units,Adults and Health,Other Agencies - Third Party P,0090685573,Eleanor Nursing & Social Care Ltd,280.99,01/02/2024
Delivery Units,Adults and Health,Other Agencies - Third Party P,0090685576,Eleanor Nursing & Social Care Ltd,447.68,01/02/2024
Delivery Units,Adults and Health,Other Agencies - Third Party P,0090685577,Eleanor Nursing & Social Care Ltd,42.86,01/02/2024
Delivery Units,Adults and Health,Other Agencies - Third Party P,0090685578,Eleanor Nursing & Social Care Ltd,85.73,01/02/2024
Delivery Units,Adults and Health,Other Agencies - Third Party P,0090685581,Eleanor Nursing & Social Care Ltd,285.75,01/02/2024
Delivery Units,Adults and Health,Other Agencies - Third Party P,0090685582,Eleanor Nursing & Social Care Ltd,219.08,01/02/2024
Delivery Units,Adults and Health,Other Agencies - Third Party P,0090685583,Eleanor Nursing & Social Care Ltd,233.36,01/02/2024
Delivery Units,Adults and Health,Other Agencies - Third Party P,0090685585,Eleanor Nursing & Social Care Ltd,209.55,01/02/2024
Delivery Units,Adults and Health,Other Agencies - Third Party P,0090685586,Eleanor Nursing & Social Care Ltd,385.76,01/02/2024
Delivery Units,Adults and Health,Other Agencies - Third Party P,0090685587,Eleanor Nursing & Social Care Ltd,47.63,01/02/2024
Delivery Units,Adults and Health,Other Agencies - Third Party P,0090685588,Eleanor Nursing & Social Care Ltd,166.69,01/02/2024
Delivery Units,Adults and Health,Other Agencies - Third Party P,0090685589,Eleanor Nursing & Social Care Ltd,90.49,01/02/2024
Delivery Units,Adults and Health,Other Agencies - Third Party P,0090685590,Eleanor Nursing & Social Care Ltd,114.30,01/02/2024
Delivery Units,Adults and Health,Other Agencies - Third Party P,0090685592,Eleanor Nursing & Social Care Ltd,200.03,01/02/2024
Delivery Units,Adults and Health,Other Agencies - Third Party P,0090685593,Eleanor Nursing & Social Care Ltd,214.31,01/02/2024
Delivery Units,Adults and Health,Other Agencies - Third Party P,0090685594,Eleanor Nursing & Social Care Ltd,100.01,01/02/2024
Delivery Units,Adults and Health,Other Agencies - Third Party P,0090685596,Eleanor Nursing & Social Care Ltd,71.44,01/02/2024
Delivery Units,Adults and Health,Other Agencies - Third Party P,0090685597,Eleanor Nursing & Social Care Ltd,133.35,01/02/2024
Delivery Units,Adults and Health,Other Agencies - Third Party P,0090685598,Eleanor Nursing & Social Care Ltd,762.00,01/02/2024
Delivery Units,Adults and Health,Other Agencies - Third Party P,0090685599,Eleanor Nursing & Social Care Ltd,180.98,01/02/2024
Delivery Units,Adults and Health,Other Agencies - Third Party P,0090685601,Eleanor Nursing & Social Care Ltd,47.63,01/02/2024
Delivery Units,Adults and Health,Other Agencies - Third Party P,0090685602,Eleanor Nursing & Social Care Ltd,138.11,01/02/2024
Delivery Units,Adults and Health,Other Agencies - Third Party P,0090685603,Eleanor Nursing & Social Care Ltd,400.05,01/02/2024
Delivery Units,Adults and Health,Other Agencies - Third Party P,0090685606,Eleanor Nursing & Social Care Ltd,114.30,01/02/2024
Delivery Units,Adults and Health,Other Agencies - Third Party P,0090685607,Eleanor Nursing & Social Care Ltd,166.69,01/02/2024
Delivery Units,Adults and Health,Other Agencies - Third Party P,0090685609,Eleanor Nursing & Social Care Ltd,266.70,01/02/2024
Delivery Units,Adults and Health,Other Agencies - Third Party P,0090685610,Eleanor Nursing & Social Care Ltd,166.69,01/02/2024
Delivery Units,Adults and Health,Other Agencies - Third Party P,0090685614,Eleanor Nursing & Social Care Ltd,400.05,01/02/2024
Delivery Units,Adults and Health,Other Agencies - Third Party P,0090685615,Eleanor Nursing & Social Care Ltd,466.73,01/02/2024
Delivery Units,Adults and Health,Other Agencies - Third Party P,0090685616,Eleanor Nursing & Social Care Ltd,100.01,01/02/2024
Delivery Units,Adults and Health,Other Agencies - Third Party P,0090685617,Eleanor Nursing & Social Care Ltd,100.01,01/02/2024
Delivery Units,Adults and Health,Other Agencies - Third Party P,0090685618,Eleanor Nursing & Social Care Ltd,66.68,01/02/2024
Delivery Units,Adults and Health,Other Agencies - Third Party P,0090685620,Eleanor Nursing & Social Care Ltd,19.05,01/02/2024
Delivery Units,Adults and Health,Other Agencies - Third Party P,0090685621,Eleanor Nursing & Social Care Ltd,266.70,01/02/2024
Delivery Units,Adults and Health,Other Agencies - Third Party P,0090685622,Eleanor Nursing & Social Care Ltd,66.68,01/02/2024
Delivery Units,Adults and Health,Other Agencies - Third Party P,0090685623,Eleanor Nursing & Social Care Ltd,19.05,01/02/2024
Delivery Units,Adults and Health,Other Agencies - Third Party P,0090685625,Eleanor Nursing & Social Care Ltd,119.06,01/02/2024
Delivery Units,Adults and Health,Other Agencies - Third Party P,0090685627,Eleanor Nursing & Social Care Ltd,233.36,01/02/2024
Delivery Units,Adults and Health,Other Agencies - Third Party P,0090685629,Eleanor Nursing & Social Care Ltd,57.15,01/02/2024
Delivery Units,Adults and Health,Other Agencies - Third Party P,0090685633,Eleanor Nursing & Social Care Ltd,219.08,01/02/2024
Delivery Units,Adults and Health,Other Agencies - Third Party P,0090685634,Eleanor Nursing & Social Care Ltd,219.08,01/02/2024
Delivery Units,Adults and Health,Other Agencies - Third Party P,0090685635,Eleanor Nursing & Social Care Ltd,19.05,01/02/2024
Delivery Units,Adults and Health,Other Agencies - Third Party P,0090685636,Eleanor Nursing & Social Care Ltd,304.80,01/02/2024
Delivery Units,Adults and Health,Other Agencies - Third Party P,0090685637,Eleanor Nursing & Social Care Ltd,100.01,01/02/2024
Delivery Units,Adults and Health,Other Agencies - Third Party P,0090685639,Eleanor Nursing & Social Care Ltd,190.50,01/02/2024
Delivery Units,Adults and Health,Other Agencies - Third Party P,0090685640,Eleanor Nursing & Social Care Ltd,133.35,01/02/2024
Delivery Units,Adults and Health,Other Agencies - Third Party P,0090685641,Eleanor Nursing & Social Care Ltd,19.05,01/02/2024
Delivery Units,Adults and Health,Other Agencies - Third Party P,0090685643,Eleanor Nursing & Social Care Ltd,57.15,01/02/2024
Delivery Units,Adults and Health,Other Agencies - Third Party P,0090685644,Eleanor Nursing & Social Care Ltd,71.44,01/02/2024
Delivery Units,Adults and Health,Other Agencies - Third Party P,0090685645,Eleanor Nursing & Social Care Ltd,85.73,01/02/2024
Delivery Units,Adults and Health,Other Agencies - Third Party P,0090685646,Eleanor Nursing & Social Care Ltd,"1,171.58",01/02/2024
Delivery Units,Adults and Health,Other Agencies - Third Party P,0090685647,Eleanor Nursing & Social Care Ltd,57.15,01/02/2024
Delivery Units,Adults and Health,Other Agencies - Third Party P,0090685648,Eleanor Nursing & Social Care Ltd,280.99,01/02/2024
Delivery Units,Adults and Health,Other Agencies - Third Party P,0090685652,Eleanor Nursing & Social Care Ltd,428.63,01/02/2024
Delivery Units,Adults and Health,Other Agencies - Third Party P,0090685653,Eleanor Nursing & Social Care Ltd,42.86,01/02/2024
Delivery Units,Adults and Health,Other Agencies - Third Party P,0090685654,Eleanor Nursing & Social Care Ltd,85.73,01/02/2024
Delivery Units,Adults and Health,Other Agencies - Third Party P,0090685657,Eleanor Nursing & Social Care Ltd,285.75,01/02/2024
Delivery Units,Adults and Health,Other Agencies - Third Party P,0090685658,Eleanor Nursing & Social Care Ltd,238.13,01/02/2024
Delivery Units,Adults and Health,Other Agencies - Third Party P,0090685659,Eleanor Nursing & Social Care Ltd,233.36,01/02/2024
Delivery Units,Adults and Health,Other Agencies - Third Party P,0090685661,Eleanor Nursing & Social Care Ltd,180.98,01/02/2024
Delivery Units,Adults and Health,Other Agencies - Third Party P,0090685662,Eleanor Nursing & Social Care Ltd,157.16,01/02/2024
Delivery Units,Adults and Health,Other Agencies - Third Party P,0090685663,Eleanor Nursing & Social Care Ltd,19.05,01/02/2024
Delivery Units,Adults and Health,Other Agencies - Third Party P,0090685664,Eleanor Nursing & Social Care Ltd,142.88,01/02/2024
Delivery Units,Adults and Health,Other Agencies - Third Party P,0090685665,Eleanor Nursing & Social Care Ltd,109.54,01/02/2024
Delivery Units,Adults and Health,Other Agencies - Third Party P,0090685666,Eleanor Nursing & Social Care Ltd,76.20,01/02/2024
Delivery Units,Adults and Health,Other Agencies - Third Party P,0090685668,Eleanor Nursing & Social Care Ltd,133.35,01/02/2024
Delivery Units,Adults and Health,Other Agencies - Third Party P,0090685669,Eleanor Nursing & Social Care Ltd,66.68,01/02/2024
Delivery Units,Adults and Health,Other Agencies - Third Party P,0090685670,Eleanor Nursing & Social Care Ltd,85.73,01/02/2024
Delivery Units,Adults and Health,Other Agencies - Third Party P,0090685672,Eleanor Nursing & Social Care Ltd,57.15,01/02/2024
Delivery Units,Adults and Health,Other Agencies - Third Party P,0090685673,Eleanor Nursing & Social Care Ltd,95.25,01/02/2024
Delivery Units,Adults and Health,Other Agencies - Third Party P,0090685674,Eleanor Nursing & Social Care Ltd,762.00,01/02/2024
Delivery Units,Adults and Health,Other Agencies - Third Party P,0090685675,Eleanor Nursing & Social Care Ltd,114.30,01/02/2024
Delivery Units,Adults and Health,Other Agencies - Third Party P,0090685677,Eleanor Nursing & Social Care Ltd,138.11,01/02/2024
Delivery Units,Adults and Health,Other Agencies - Third Party P,0090685678,Eleanor Nursing & Social Care Ltd,400.05,01/02/2024
Delivery Units,Adults and Health,Other Agencies - Third Party P,0090685681,Eleanor Nursing & Social Care Ltd,57.15,01/02/2024
Delivery Units,Adults and Health,Other Agencies - Third Party P,0090685682,Eleanor Nursing & Social Care Ltd,166.69,01/02/2024
Delivery Units,Adults and Health,Other Agencies - Third Party P,0090685684,Eleanor Nursing & Social Care Ltd,119.06,01/02/2024
Delivery Units,Adults and Health,Other Agencies - Third Party P,0090685689,Eleanor Nursing & Social Care Ltd,400.05,01/02/2024
Delivery Units,Adults and Health,Other Agencies - Third Party P,0090685690,Eleanor Nursing & Social Care Ltd,466.73,01/02/2024
Delivery Units,Adults and Health,Other Agencies - Third Party P,0090685691,Eleanor Nursing & Social Care Ltd,100.01,01/02/2024
Delivery Units,Adults and Health,Other Agencies - Third Party P,0090685692,Eleanor Nursing & Social Care Ltd,200.03,01/02/2024
Delivery Units,Adults and Health,Other Agencies - Third Party P,0090685693,Eleanor Nursing & Social Care Ltd,66.68,01/02/2024
Delivery Units,Adults and Health,Other Agencies - Third Party P,0090685695,Eleanor Nursing & Social Care Ltd,19.05,01/02/2024
Delivery Units,Adults and Health,Other Agencies - Third Party P,0090685696,Eleanor Nursing & Social Care Ltd,266.70,01/02/2024
Delivery Units,Adults and Health,Other Agencies - Third Party P,0090685697,Eleanor Nursing & Social Care Ltd,142.88,01/02/2024
Delivery Units,Adults and Health,Other Agencies - Third Party P,0090685698,Eleanor Nursing & Social Care Ltd,66.68,01/02/2024
Delivery Units,Adults and Health,Other Agencies - Third Party P,0090685699,Eleanor Nursing & Social Care Ltd,19.05,01/02/2024
Delivery Units,Adults and Health,Other Agencies - Third Party P,0090685701,Eleanor Nursing & Social Care Ltd,142.88,01/02/2024
Delivery Units,Adults and Health,Other Agencies - Third Party P,0090685703,Eleanor Nursing & Social Care Ltd,233.36,01/02/2024
Delivery Units,Adults and Health,Other Agencies - Third Party P,0090685705,Eleanor Nursing & Social Care Ltd,114.30,01/02/2024
Delivery Units,Adults and Health,Other Agencies - Third Party P,0090685709,Eleanor Nursing & Social Care Ltd,219.08,01/02/2024
Delivery Units,Adults and Health,Other Agencies - Third Party P,0090685710,Eleanor Nursing & Social Care Ltd,228.60,01/02/2024
Delivery Units,Adults and Health,Other Agencies - Third Party P,0090685711,Eleanor Nursing & Social Care Ltd,19.05,01/02/2024
Delivery Units,Adults and Health,Other Agencies - Third Party P,0090685712,Eleanor Nursing & Social Care Ltd,533.40,01/02/2024
Delivery Units,Adults and Health,Other Agencies - Third Party P,0090685713,Eleanor Nursing & Social Care Ltd,100.01,01/02/2024
Delivery Units,Adults and Health,Other Agencies - Third Party P,0090685715,Eleanor Nursing & Social Care Ltd,600.08,01/02/2024
Delivery Units,Adults and Health,Other Agencies - Third Party P,0090685716,Eleanor Nursing & Social Care Ltd,133.35,01/02/2024
Delivery Units,Adults and Health,Other Agencies - Third Party P,0090685717,Eleanor Nursing & Social Care Ltd,28.58,01/02/2024
Delivery Units,Adults and Health,Other Agencies - Third Party P,0090685719,Eleanor Nursing & Social Care Ltd,66.68,01/02/2024
Delivery Units,Adults and Health,Other Agencies - Third Party P,0090685720,Eleanor Nursing & Social Care Ltd,100.01,01/02/2024
Delivery Units,Adults and Health,Other Agencies - Third Party P,0090685721,Eleanor Nursing & Social Care Ltd,100.01,01/02/2024
Delivery Units,Adults and Health,Other Agencies - Third Party P,0090685722,Eleanor Nursing & Social Care Ltd,"1,733.55",01/02/2024
Delivery Units,Adults and Health,Other Agencies - Third Party P,0090685723,Eleanor Nursing & Social Care Ltd,114.30,01/02/2024
Delivery Units,Adults and Health,Other Agencies - Third Party P,0090685724,Eleanor Nursing & Social Care Ltd,280.99,01/02/2024
Delivery Units,Adults and Health,Other Agencies - Third Party P,0090685728,Eleanor Nursing & Social Care Ltd,428.63,01/02/2024
Delivery Units,Adults and Health,Other Agencies - Third Party P,0090685729,Eleanor Nursing & Social Care Ltd,42.86,01/02/2024
Delivery Units,Adults and Health,Other Agencies - Third Party P,0090685730,Eleanor Nursing & Social Care Ltd,85.73,01/02/2024
Delivery Units,Adults and Health,Other Agencies - Third Party P,0090685733,Eleanor Nursing & Social Care Ltd,285.75,01/02/2024
Delivery Units,Adults and Health,Other Agencies - Third Party P,0090685734,Eleanor Nursing & Social Care Ltd,219.08,01/02/2024
Delivery Units,Adults and Health,Other Agencies - Third Party P,0090685735,Eleanor Nursing & Social Care Ltd,233.36,01/02/2024
Delivery Units,Adults and Health,Other Agencies - Third Party P,0090685737,Eleanor Nursing & Social Care Ltd,238.13,01/02/2024
Delivery Units,Adults and Health,Other Agencies - Third Party P,0090685738,Eleanor Nursing & Social Care Ltd,47.63,01/02/2024
Delivery Units,Adults and Health,Other Agencies - Third Party P,0090685739,Eleanor Nursing & Social Care Ltd,233.36,01/02/2024
Delivery Units,Adults and Health,Other Agencies - Third Party P,0090685740,Eleanor Nursing & Social Care Ltd,95.25,01/02/2024
Delivery Units,Adults and Health,Other Agencies - Third Party P,0090685742,Eleanor Nursing & Social Care Ltd,171.45,01/02/2024
Delivery Units,Adults and Health,Other Agencies - Third Party P,0090685743,Eleanor Nursing & Social Care Ltd,100.01,01/02/2024
Delivery Units,Adults and Health,Other Agencies - Third Party P,0090685745,Eleanor Nursing & Social Care Ltd,85.73,01/02/2024
Delivery Units,Adults and Health,Other Agencies - Third Party P,0090685746,Eleanor Nursing & Social Care Ltd,133.35,01/02/2024
Delivery Units,Adults and Health,Other Agencies - Third Party P,0090685747,Eleanor Nursing & Social Care Ltd,762.00,01/02/2024
Delivery Units,Adults and Health,Other Agencies - Third Party P,0090685748,Eleanor Nursing & Social Care Ltd,180.98,01/02/2024
Delivery Units,Adults and Health,Other Agencies - Third Party P,0090685750,Eleanor Nursing & Social Care Ltd,138.11,01/02/2024
Delivery Units,Adults and Health,Other Agencies - Third Party P,0090685751,Eleanor Nursing & Social Care Ltd,400.05,01/02/2024
Delivery Units,Adults and Health,Other Agencies - Third Party P,0090685753,Eleanor Nursing & Social Care Ltd,114.30,01/02/2024
Delivery Units,Adults and Health,Other Agencies - Third Party P,0090685754,Eleanor Nursing & Social Care Ltd,166.69,01/02/2024
Delivery Units,Adults and Health,Other Agencies - Third Party P,0090685756,Eleanor Nursing & Social Care Ltd,166.69,01/02/2024
Delivery Units,Adults and Health,Other Agencies - Third Party P,0090685759,Eleanor Nursing & Social Care Ltd,85.73,01/02/2024
Delivery Units,Adults and Health,Other Agencies - Third Party P,0090685761,Eleanor Nursing & Social Care Ltd,400.05,01/02/2024
Delivery Units,Adults and Health,Other Agencies - Third Party P,0090685762,Eleanor Nursing & Social Care Ltd,466.73,01/02/2024
Delivery Units,Adults and Health,Other Agencies - Third Party P,0090685763,Eleanor Nursing & Social Care Ltd,100.01,01/02/2024
Delivery Units,Adults and Health,Other Agencies - Third Party P,0090685764,Eleanor Nursing & Social Care Ltd,233.36,01/02/2024
Delivery Units,Adults and Health,Other Agencies - Third Party P,0090685765,Eleanor Nursing & Social Care Ltd,66.68,01/02/2024
Delivery Units,Adults and Health,Other Agencies - Third Party P,0090685767,Eleanor Nursing & Social Care Ltd,28.58,01/02/2024
Delivery Units,Adults and Health,Other Agencies - Third Party P,0090685768,Eleanor Nursing & Social Care Ltd,266.70,01/02/2024
Delivery Units,Adults and Health,Other Agencies - Third Party P,0090685769,Eleanor Nursing & Social Care Ltd,166.69,01/02/2024
Delivery Units,Adults and Health,Other Agencies - Third Party P,0090685770,Eleanor Nursing & Social Care Ltd,66.68,01/02/2024
Delivery Units,Adults and Health,Other Agencies - Third Party P,0090685771,Eleanor Nursing & Social Care Ltd,19.05,01/02/2024
Delivery Units,Adults and Health,Other Agencies - Third Party P,0090685773,Eleanor Nursing & Social Care Ltd,166.69,01/02/2024
Delivery Units,Adults and Health,Other Agencies - Third Party P,0090685775,Eleanor Nursing & Social Care Ltd,233.36,01/02/2024
Delivery Units,Adults and Health,Other Agencies - Third Party P,0090685777,Eleanor Nursing & Social Care Ltd,133.35,01/02/2024
Delivery Units,Adults and Health,Other Agencies - Third Party P,0090685781,Eleanor Nursing & Social Care Ltd,219.08,01/02/2024
Delivery Units,Adults and Health,Other Agencies - Third Party P,0090685782,Eleanor Nursing & Social Care Ltd,228.60,01/02/2024
Delivery Units,Adults and Health,Other Agencies - Third Party P,0090685783,Eleanor Nursing & Social Care Ltd,19.05,01/02/2024
Delivery Units,Adults and Health,Other Agencies - Third Party P,0090685784,Eleanor Nursing & Social Care Ltd,533.40,01/02/2024
Delivery Units,Adults and Health,Other Agencies - Third Party P,0090685785,Eleanor Nursing & Social Care Ltd,100.01,01/02/2024
Delivery Units,Adults and Health,Other Agencies - Third Party P,0090685787,Eleanor Nursing & Social Care Ltd,600.08,01/02/2024
Delivery Units,Adults and Health,Other Agencies - Third Party P,0090685788,Eleanor Nursing & Social Care Ltd,133.35,01/02/2024
Delivery Units,Adults and Health,Other Agencies - Third Party P,0090685789,Eleanor Nursing & Social Care Ltd,28.58,01/02/2024
Delivery Units,Adults and Health,Other Agencies - Third Party P,0090685791,Eleanor Nursing & Social Care Ltd,66.68,01/02/2024
Delivery Units,Adults and Health,Other Agencies - Third Party P,0090685792,Eleanor Nursing & Social Care Ltd,100.01,01/02/2024
Delivery Units,Adults and Health,Other Agencies - Third Party P,0090685793,Eleanor Nursing & Social Care Ltd,100.01,01/02/2024
Delivery Units,Adults and Health,Other Agencies - Third Party P,0090685794,Eleanor Nursing & Social Care Ltd,"1,704.98",01/02/2024
Delivery Units,Adults and Health,Other Agencies - Third Party P,0090685795,Eleanor Nursing & Social Care Ltd,171.45,01/02/2024
Delivery Units,Adults and Health,Other Agencies - Third Party P,0090685796,Eleanor Nursing & Social Care Ltd,280.99,01/02/2024
Delivery Units,Adults and Health,Other Agencies - Third Party P,0090685799,Eleanor Nursing & Social Care Ltd,428.63,01/02/2024
Delivery Units,Adults and Health,Other Agencies - Third Party P,0090685800,Eleanor Nursing & Social Care Ltd,42.86,01/02/2024
Delivery Units,Adults and Health,Other Agencies - Third Party P,0090685801,Eleanor Nursing & Social Care Ltd,85.73,01/02/2024
Delivery Units,Adults and Health,Other Agencies - Third Party P,0090685804,Eleanor Nursing & Social Care Ltd,285.75,01/02/2024
Delivery Units,Adults and Health,Other Agencies - Third Party P,0090685805,Eleanor Nursing & Social Care Ltd,219.08,01/02/2024
Delivery Units,Adults and Health,Other Agencies - Third Party P,0090685806,Eleanor Nursing & Social Care Ltd,233.36,01/02/2024
Delivery Units,Adults and Health,Other Agencies - Third Party P,0090685808,Eleanor Nursing & Social Care Ltd,304.80,01/02/2024
Delivery Units,Adults and Health,Other Agencies - Third Party P,0090685809,Eleanor Nursing & Social Care Ltd,66.68,01/02/2024
Delivery Units,Adults and Health,Other Agencies - Third Party P,0090685810,Eleanor Nursing & Social Care Ltd,233.36,01/02/2024
Delivery Units,Adults and Health,Other Agencies - Third Party P,0090685811,Eleanor Nursing & Social Care Ltd,114.30,01/02/2024
Delivery Units,Adults and Health,Other Agencies - Third Party P,0090685813,Eleanor Nursing & Social Care Ltd,200.03,01/02/2024
Delivery Units,Adults and Health,Other Agencies - Third Party P,0090685814,Eleanor Nursing & Social Care Ltd,100.01,01/02/2024
Delivery Units,Adults and Health,Other Agencies - Third Party P,0090685816,Eleanor Nursing & Social Care Ltd,100.01,01/02/2024
Delivery Units,Adults and Health,Other Agencies - Third Party P,0090685817,Eleanor Nursing & Social Care Ltd,133.35,01/02/2024
Delivery Units,Adults and Health,Other Agencies - Third Party P,0090685818,Eleanor Nursing & Social Care Ltd,762.00,01/02/2024
Delivery Units,Adults and Health,Other Agencies - Third Party P,0090685819,Eleanor Nursing & Social Care Ltd,180.98,01/02/2024
Delivery Units,Adults and Health,Other Agencies - Third Party P,0090685820,Eleanor Nursing & Social Care Ltd,138.11,01/02/2024
Delivery Units,Adults and Health,Other Agencies - Third Party P,0090685821,Eleanor Nursing & Social Care Ltd,400.05,01/02/2024
Delivery Units,Adults and Health,Other Agencies - Third Party P,0090685824,Eleanor Nursing & Social Care Ltd,57.15,01/02/2024
Delivery Units,Adults and Health,Other Agencies - Third Party P,0090685825,Eleanor Nursing & Social Care Ltd,166.69,01/02/2024
Delivery Units,Adults and Health,Other Agencies - Third Party P,0090685827,Eleanor Nursing & Social Care Ltd,166.69,01/02/2024
Delivery Units,Adults and Health,Other Agencies - Third Party P,0090685830,Eleanor Nursing & Social Care Ltd,361.95,01/02/2024
Delivery Units,Adults and Health,Other Agencies - Third Party P,0090685831,Eleanor Nursing & Social Care Ltd,71.44,01/02/2024
Delivery Units,Adults and Health,Other Agencies - Third Party P,0090685832,Eleanor Nursing & Social Care Ltd,42.86,01/02/2024
Delivery Units,Adults and Health,Other Agencies - Third Party P,0090685839,ACE Homecare Services Ltd,"11,739.84",01/02/2024
Delivery Units,Adults and Health,Other Agencies - Third Party P,0090685840,ACE Homecare Services Ltd,"11,739.84",01/02/2024
Delivery Units,Adults and Health,Other Agencies - Third Party P,0090685842,ACE Homecare Services Ltd,"5,869.92",01/02/2024
Delivery Units,Adults and Health,Other Agencies - Third Party P,0090685843,ACE Homecare Services Ltd,"1,362.66",01/02/2024
Delivery Units,Adults and Health,Other Agencies - Third Party P,0090685844,ACE Homecare Services Ltd,"1,362.66",01/02/2024
Delivery Units,Adults and Health,Other Agencies - Third Party P,0090685845,ACE Homecare Services Ltd,419.28,01/02/2024
Delivery Units,Adults and Health,Other Agencies - Third Party P,0090685846,ACE Homecare Services Ltd,489.16,01/02/2024
Delivery Units,Adults and Health,Other Agencies - Third Party P,0090685970,Greek & Greek Cypriot Community of En,519.12,01/02/2024
Delivery Units,Adults and Health,Other Agencies - Third Party P,0090685971,Hertsmere Valley Care Services Limited,"4,252.73",01/02/2024
Delivery Units,Adults and Health,Other Agencies - Third Party P,0090685972,Hertsmere Valley Care Services Limited,"1,028.28",01/02/2024
Delivery Units,Adults and Health,Other Agencies - Third Party P,0090685973,Bestchoice Global Ltd,103.69,01/02/2024
Delivery Units,Adults and Health,Other Agencies - Third Party P,0090685974,Bestchoice Global Ltd,345.63,01/02/2024
Delivery Units,Adults and Health,Other Agencies - Third Party P,0090685976,Bestchoice Global Ltd,345.63,01/02/2024
Delivery Units,Adults and Health,Other Agencies - Third Party P,0090685977,Bestchoice Global Ltd,276.50,01/02/2024
Delivery Units,Adults and Health,Other Agencies - Third Party P,0090685979,Bestchoice Global Ltd,103.69,01/02/2024
Delivery Units,Adults and Health,Other Agencies - Third Party P,0090685980,Bestchoice Global Ltd,172.81,01/02/2024
Delivery Units,Adults and Health,Other Agencies - Third Party P,0090685981,Bestchoice Global Ltd,380.19,01/02/2024
Delivery Units,Adults and Health,Other Agencies - Third Party P,0090685982,Bestchoice Global Ltd,276.50,01/02/2024
Delivery Units,Adults and Health,Other Agencies - Third Party P,0090685983,Bestchoice Global Ltd,103.69,01/02/2024
Delivery Units,Adults and Health,Other Agencies - Third Party P,0090685984,Bestchoice Global Ltd,103.69,01/02/2024
Delivery Units,Adults and Health,Other Agencies - Third Party P,0090685985,Bestchoice Global Ltd,103.69,01/02/2024
Delivery Units,Adults and Health,Other Agencies - Third Party P,0090685986,Bestchoice Global Ltd,345.63,01/02/2024
Delivery Units,Adults and Health,Other Agencies - Third Party P,0090685988,Bestchoice Global Ltd,345.63,01/02/2024
Delivery Units,Adults and Health,Other Agencies - Third Party P,0090685989,Bestchoice Global Ltd,276.50,01/02/2024
Delivery Units,Adults and Health,Other Agencies - Third Party P,0090685992,Bestchoice Global Ltd,103.69,01/02/2024
Delivery Units,Adults and Health,Other Agencies - Third Party P,0090685993,Bestchoice Global Ltd,172.81,01/02/2024
Delivery Units,Adults and Health,Other Agencies - Third Party P,0090685994,Bestchoice Global Ltd,380.19,01/02/2024
Delivery Units,Adults and Health,Other Agencies - Third Party P,0090685995,Bestchoice Global Ltd,276.50,01/02/2024
Delivery Units,Adults and Health,Other Agencies - Third Party P,0090685996,Bestchoice Global Ltd,103.69,01/02/2024
Delivery Units,Adults and Health,Other Agencies - Third Party P,0090685997,Bestchoice Global Ltd,"1,376.50",01/02/2024
Delivery Units,Adults and Health,Other Agencies - Third Party P,0090685998,Bestchoice Global Ltd,103.69,01/02/2024
Delivery Units,Adults and Health,Other Agencies - Third Party P,0090685999,Bestchoice Global Ltd,103.69,01/02/2024
Delivery Units,Adults and Health,Other Agencies - Third Party P,0090686000,Bestchoice Global Ltd,345.63,01/02/2024
Delivery Units,Adults and Health,Other Agencies - Third Party P,0090686002,Bestchoice Global Ltd,345.63,01/02/2024
Delivery Units,Adults and Health,Other Agencies - Third Party P,0090686003,Bestchoice Global Ltd,276.50,01/02/2024
Delivery Units,Adults and Health,Other Agencies - Third Party P,0090686005,Bestchoice Global Ltd,103.69,01/02/2024
Delivery Units,Adults and Health,Other Agencies - Third Party P,0090686006,Bestchoice Global Ltd,172.81,01/02/2024
Delivery Units,Adults and Health,Other Agencies - Third Party P,0090686007,Bestchoice Global Ltd,380.19,01/02/2024
Delivery Units,Adults and Health,Other Agencies - Third Party P,0090686008,Bestchoice Global Ltd,276.50,01/02/2024
Delivery Units,Adults and Health,Other Agencies - Third Party P,0090686009,Bestchoice Global Ltd,103.69,01/02/2024
Delivery Units,Adults and Health,Other Agencies - Third Party P,0090686010,Bestchoice Global Ltd,"1,376.50",01/02/2024
Delivery Units,Adults and Health,Other Agencies - Third Party P,0090686011,Bestchoice Global Ltd,103.69,01/02/2024
Delivery Units,Adults and Health,Other Agencies - Third Party P,0090686012,Bestchoice Global Ltd,103.69,01/02/2024
Delivery Units,Adults and Health,Other Agencies - Third Party P,0090686013,Bestchoice Global Ltd,345.63,01/02/2024
Delivery Units,Adults and Health,Other Agencies - Third Party P,0090686015,Bestchoice Global Ltd,345.63,01/02/2024
Delivery Units,Adults and Health,Other Agencies - Third Party P,0090686016,Bestchoice Global Ltd,276.50,01/02/2024
Delivery Units,Adults and Health,Other Agencies - Third Party P,0090686019,Bestchoice Global Ltd,103.69,01/02/2024
Delivery Units,Adults and Health,Other Agencies - Third Party P,0090686020,Bestchoice Global Ltd,172.81,01/02/2024
Delivery Units,Adults and Health,Other Agencies - Third Party P,0090686022,Bestchoice Global Ltd,380.19,01/02/2024
Delivery Units,Adults and Health,Other Agencies - Third Party P,0090686023,Bestchoice Global Ltd,276.50,01/02/2024
Delivery Units,Adults and Health,Other Agencies - Third Party P,0090686024,Bestchoice Global Ltd,103.69,01/02/2024
Delivery Units,Adults and Health,Other Agencies - Third Party P,0090686025,Bestchoice Global Ltd,"1,376.50",01/02/2024
Delivery Units,Adults and Health,Other Agencies - Third Party P,0090686026,Bestchoice Global Ltd,103.69,01/02/2024
Delivery Units,Adults and Health,Other Agencies - Third Party P,0090686175,Care Sante London Limited,155.20,05/02/2024
Delivery Units,Adults and Health,Other Agencies - Third Party P,0090686178,Care Sante London Limited,243.47,05/02/2024
Delivery Units,Adults and Health,Other Agencies - Third Party P,0090686179,Care Sante London Limited,301.09,05/02/2024
Delivery Units,Adults and Health,Other Agencies - Third Party P,0090686180,Care Sante London Limited,67.90,05/02/2024
Delivery Units,Adults and Health,Other Agencies - Third Party P,0090686181,Care Sante London Limited,101.85,05/02/2024
Delivery Units,Adults and Health,Other Agencies - Third Party P,0090686182,Care Sante London Limited,135.41,05/02/2024
Delivery Units,Adults and Health,Other Agencies - Third Party P,0090686183,Care Sante London Limited,19.40,05/02/2024
Delivery Units,Adults and Health,Other Agencies - Third Party P,0090686184,Care Sante London Limited,"3,259.20",05/02/2024
Delivery Units,Adults and Health,Other Agencies - Third Party P,0090686185,Care Sante London Limited,310.40,05/02/2024
Delivery Units,Adults and Health,Other Agencies - Third Party P,0090686187,Care Sante London Limited,324.95,05/02/2024
Delivery Units,Adults and Health,Other Agencies - Third Party P,0090686188,Care Sante London Limited,577.15,05/02/2024
Delivery Units,Adults and Health,Other Agencies - Third Party P,0090686189,Care Sante London Limited,29.10,05/02/2024
Delivery Units,Adults and Health,Other Agencies - Third Party P,0090686190,Care Sante London Limited,14.55,05/02/2024
Delivery Units,Adults and Health,Other Agencies - Third Party P,0090686191,Care Sante London Limited,77.60,05/02/2024
Delivery Units,Adults and Health,Other Agencies - Third Party P,0090686193,Care Sante London Limited,"2,880.90",05/02/2024
Delivery Units,Adults and Health,Other Agencies - Third Party P,0090686194,Care Sante London Limited,756.60,05/02/2024
Delivery Units,Adults and Health,Other Agencies - Third Party P,0090686195,Care Sante London Limited,208.55,05/02/2024
Delivery Units,Adults and Health,Other Agencies - Third Party P,0090686196,Care Sante London Limited,77.60,05/02/2024
Delivery Units,Adults and Health,Other Agencies - Third Party P,0090686198,Care Sante London Limited,101.85,05/02/2024
Delivery Units,Adults and Health,Other Agencies - Third Party P,0090686199,Care Sante London Limited,101.85,05/02/2024
Delivery Units,Adults and Health,Other Agencies - Third Party P,0090686200,Care Sante London Limited,95.64,05/02/2024
Delivery Units,Adults and Health,Other Agencies - Third Party P,0090686201,Care Sante London Limited,"1,629.60",05/02/2024
Delivery Units,Adults and Health,Other Agencies - Third Party P,0090686202,Care Sante London Limited,208.55,05/02/2024
Delivery Units,Adults and Health,Other Agencies - Third Party P,0090686204,Care Sante London Limited,86.33,05/02/2024
Delivery Units,Adults and Health,Other Agencies - Third Party P,0090686205,Care Sante London Limited,344.35,05/02/2024
Delivery Units,Adults and Health,Other Agencies - Third Party P,0090686206,Care Sante London Limited,19.40,05/02/2024
Delivery Units,Adults and Health,Other Agencies - Third Party P,0090686207,Care Sante London Limited,214.76,05/02/2024
Delivery Units,Adults and Health,Other Agencies - Third Party P,0090686208,Care Sante London Limited,373.45,05/02/2024
Delivery Units,Adults and Health,Other Agencies - Third Party P,0090686209,Care Sante London Limited,77.60,05/02/2024
Delivery Units,Adults and Health,Other Agencies - Third Party P,0090686210,Care Sante London Limited,137.74,05/02/2024
Delivery Units,Adults and Health,Other Agencies - Third Party P,0090686211,Care Sante London Limited,14.55,05/02/2024
Delivery Units,Adults and Health,Other Agencies - Third Party P,0090686212,Care Sante London Limited,155.20,05/02/2024
Delivery Units,Adults and Health,Other Agencies - Third Party P,0090686213,Care Sante London Limited,145.50,05/02/2024
Delivery Units,Adults and Health,Other Agencies - Third Party P,0090686214,Care Sante London Limited,125.52,05/02/2024
Delivery Units,Adults and Health,Other Agencies - Third Party P,0090686215,Care Sante London Limited,785.70,05/02/2024
Delivery Units,Adults and Health,Other Agencies - Third Party P,0090686216,Care Sante London Limited,155.20,05/02/2024
Delivery Units,Adults and Health,Other Agencies - Third Party P,0090686217,Care Sante London Limited,292.94,05/02/2024
Delivery Units,Adults and Health,Other Agencies - Third Party P,0090686218,Care Sante London Limited,194.00,05/02/2024
Delivery Units,Adults and Health,Other Agencies - Third Party P,0090686221,Care Sante London Limited,98.94,05/02/2024
Delivery Units,Adults and Health,Other Agencies - Third Party P,0090686223,Care Sante London Limited,43.65,05/02/2024
Delivery Units,Adults and Health,Other Agencies - Third Party P,0090686324,Prime Way Care Ltd,742.50,06/02/2024
Delivery Units,Adults and Health,Other Agencies - Third Party P,0090686325,Prime Way Care Ltd,"3,024.00",06/02/2024
Delivery Units,Adults and Health,Other Agencies - Third Party P,0090686326,Prime Way Care Ltd,315.00,06/02/2024
Delivery Units,Adults and Health,Other Agencies - Third Party P,0090686327,Prime Way Care Ltd,288.00,06/02/2024
Delivery Units,Adults and Health,Other Agencies - Third Party P,0090686328,Prime Way Care Ltd,"1,575.00",06/02/2024
Delivery Units,Adults and Health,Other Agencies - Third Party P,0090686329,Prime Way Care Ltd,283.50,06/02/2024
Delivery Units,Adults and Health,Other Agencies - Third Party P,0090686331,Prime Way Care Ltd,742.50,06/02/2024
Delivery Units,Adults and Health,Other Agencies - Third Party P,0090686332,Prime Way Care Ltd,"3,024.00",06/02/2024
Delivery Units,Adults and Health,Other Agencies - Third Party P,0090686333,Prime Way Care Ltd,315.00,06/02/2024
Delivery Units,Adults and Health,Other Agencies - Third Party P,0090686334,Prime Way Care Ltd,288.00,06/02/2024
Delivery Units,Adults and Health,Other Agencies - Third Party P,0090686335,Prime Way Care Ltd,"1,575.00",06/02/2024
Delivery Units,Adults and Health,Other Agencies - Third Party P,0090686336,Prime Way Care Ltd,283.50,06/02/2024
Delivery Units,Adults and Health,Other Agencies - Third Party P,0090686338,Prime Way Care Ltd,742.50,06/02/2024
Delivery Units,Adults and Health,Other Agencies - Third Party P,0090686339,Prime Way Care Ltd,"3,024.00",06/02/2024
Delivery Units,Adults and Health,Other Agencies - Third Party P,0090686340,Prime Way Care Ltd,315.00,06/02/2024
Delivery Units,Adults and Health,Other Agencies - Third Party P,0090686341,Prime Way Care Ltd,288.00,06/02/2024
Delivery Units,Adults and Health,Other Agencies - Third Party P,0090686342,Prime Way Care Ltd,"1,575.00",06/02/2024
Delivery Units,Adults and Health,Other Agencies - Third Party P,0090686343,Prime Way Care Ltd,283.50,06/02/2024
Delivery Units,Adults and Health,Other Agencies - Third Party P,0090686345,Prime Way Care Ltd,742.50,06/02/2024
Delivery Units,Adults and Health,Other Agencies - Third Party P,0090686346,Prime Way Care Ltd,"3,024.00",06/02/2024
Delivery Units,Adults and Health,Other Agencies - Third Party P,0090686347,Prime Way Care Ltd,315.00,06/02/2024
Delivery Units,Adults and Health,Other Agencies - Third Party P,0090686348,Prime Way Care Ltd,288.00,06/02/2024
Delivery Units,Adults and Health,Other Agencies - Third Party P,0090686349,Prime Way Care Ltd,"1,575.00",06/02/2024
Delivery Units,Adults and Health,Other Agencies - Third Party P,0090686350,Prime Way Care Ltd,283.50,06/02/2024
Delivery Units,Adults and Health,Other Agencies - Third Party P,0090686351,Prime Way Care Ltd,"2,088.00",06/02/2024
Delivery Units,Adults and Health,Other Agencies - Third Party P,0090686352,Prime Way Care Ltd,315.00,06/02/2024
Delivery Units,Adults and Health,Other Agencies - Third Party P,0090686353,Prime Way Care Ltd,288.00,06/02/2024
Delivery Units,Adults and Health,Other Agencies - Third Party P,0090686354,Prime Way Care Ltd,"1,575.00",06/02/2024
Delivery Units,Adults and Health,Other Agencies - Third Party P,0090686355,Prime Way Care Ltd,283.50,06/02/2024
Delivery Units,Adults and Health,Other Agencies - Third Party P,0090686357,Concept Care Solutions Ltd,324.73,06/02/2024
Delivery Units,Adults and Health,Other Agencies - Third Party P,0090686359,Concept Care Solutions Ltd,304.11,06/02/2024
Delivery Units,Adults and Health,Other Agencies - Third Party P,0090686360,Concept Care Solutions Ltd,345.35,06/02/2024
Delivery Units,Adults and Health,Other Agencies - Third Party P,0090686362,Concept Care Solutions Ltd,432.95,06/02/2024
Delivery Units,Adults and Health,Other Agencies - Third Party P,0090686366,Goldsmith Personnel Ltd,828.19,06/02/2024
Delivery Units,Adults and Health,Other Agencies - Third Party P,0090686367,Goldsmith Personnel Ltd,-20.71,06/02/2024
Delivery Units,Adults and Health,Other Agencies - Third Party P,0090686938,Bliss Care and Training Ltd,567.00,06/02/2024
Delivery Units,Adults and Health,Other Agencies - Third Party P,0090686939,Bliss Care and Training Ltd,630.00,06/02/2024
Delivery Units,Adults and Health,Other Agencies - Third Party P,0090686940,Bliss Care and Training Ltd,351.00,06/02/2024
Delivery Units,Adults and Health,Other Agencies - Third Party P,0090686943,Bliss Care and Training Ltd,81.00,06/02/2024
Delivery Units,Adults and Health,Other Agencies - Third Party P,0090686945,Bliss Care and Training Ltd,63.00,06/02/2024
Delivery Units,Adults and Health,Other Agencies - Third Party P,0090686951,Bliss Care and Training Ltd,157.50,06/02/2024
Delivery Units,Adults and Health,Other Agencies - Third Party P,0090686952,Bliss Care and Training Ltd,189.00,06/02/2024
Delivery Units,Adults and Health,Other Agencies - Third Party P,0090686953,Bliss Care and Training Ltd,288.00,06/02/2024
Delivery Units,Adults and Health,Other Agencies - Third Party P,0090686954,Bliss Care and Training Ltd,220.50,06/02/2024
Delivery Units,Adults and Health,Other Agencies - Third Party P,0090686955,Bliss Care and Training Ltd,18.00,06/02/2024
Delivery Units,Adults and Health,Other Agencies - Third Party P,0090686957,Bliss Care and Training Ltd,333.00,06/02/2024
Delivery Units,Adults and Health,Other Agencies - Third Party P,0090686959,Bliss Care and Training Ltd,94.50,06/02/2024
Delivery Units,Adults and Health,Other Agencies - Third Party P,0090686961,Bliss Care and Training Ltd,126.00,06/02/2024
Delivery Units,Adults and Health,Other Agencies - Third Party P,0090686963,Bliss Care and Training Ltd,63.00,06/02/2024
Delivery Units,Adults and Health,Other Agencies - Third Party P,0090686964,Bliss Care and Training Ltd,126.00,06/02/2024
Delivery Units,Adults and Health,Other Agencies - Third Party P,0090686965,Bliss Care and Training Ltd,504.00,06/02/2024
Delivery Units,Adults and Health,Other Agencies - Third Party P,0090686966,Bliss Care and Training Ltd,63.00,06/02/2024
Delivery Units,Adults and Health,Other Agencies - Third Party P,0090686967,Bliss Care and Training Ltd,157.50,06/02/2024
Delivery Units,Adults and Health,Other Agencies - Third Party P,0090686968,Bliss Care and Training Ltd,94.50,06/02/2024
Delivery Units,Adults and Health,Other Agencies - Third Party P,0090686969,Bliss Care and Training Ltd,139.50,06/02/2024
Delivery Units,Adults and Health,Other Agencies - Third Party P,0090686970,Bliss Care and Training Ltd,220.50,06/02/2024
Delivery Units,Adults and Health,Other Agencies - Third Party P,0090686971,Bliss Care and Training Ltd,684.00,06/02/2024
Delivery Units,Adults and Health,Other Agencies - Third Party P,0090686972,Bliss Care and Training Ltd,261.00,06/02/2024
Delivery Units,Adults and Health,Other Agencies - Third Party P,0090686973,Bliss Care and Training Ltd,207.00,06/02/2024
Delivery Units,Adults and Health,Other Agencies - Third Party P,0090686974,Bliss Care and Training Ltd,441.00,06/02/2024
Delivery Units,Adults and Health,Other Agencies - Third Party P,0090686975,Bliss Care and Training Ltd,283.50,06/02/2024
Delivery Units,Adults and Health,Other Agencies - Third Party P,0090686976,Bliss Care and Training Ltd,378.00,06/02/2024
Delivery Units,Adults and Health,Other Agencies - Third Party P,0090686979,Bliss Care and Training Ltd,630.00,06/02/2024
Delivery Units,Adults and Health,Other Agencies - Third Party P,0090686981,Bliss Care and Training Ltd,252.00,06/02/2024
Delivery Units,Adults and Health,Other Agencies - Third Party P,0090686982,Bliss Care and Training Ltd,157.50,06/02/2024
Delivery Units,Adults and Health,Other Agencies - Third Party P,0090686983,Bliss Care and Training Ltd,40.50,06/02/2024
Delivery Units,Adults and Health,Other Agencies - Third Party P,0090686984,Bliss Care and Training Ltd,346.50,06/02/2024
Delivery Units,Adults and Health,Other Agencies - Third Party P,0090686985,Bliss Care and Training Ltd,220.50,06/02/2024
Delivery Units,Adults and Health,Other Agencies - Third Party P,0090686986,Bliss Care and Training Ltd,315.00,06/02/2024
Delivery Units,Adults and Health,Other Agencies - Third Party P,0090686987,Bliss Care and Training Ltd,157.50,06/02/2024
Delivery Units,Adults and Health,Other Agencies - Third Party P,0090686988,Bliss Care and Training Ltd,400.50,06/02/2024
Delivery Units,Adults and Health,Other Agencies - Third Party P,0090686990,Bliss Care and Training Ltd,306.00,06/02/2024
Delivery Units,Adults and Health,Other Agencies - Third Party P,0090686991,Bliss Care and Training Ltd,67.50,06/02/2024
Delivery Units,Adults and Health,Other Agencies - Third Party P,0090686993,Bliss Care and Training Ltd,162.00,06/02/2024
Delivery Units,Adults and Health,Other Agencies - Third Party P,0090686994,Bliss Care and Training Ltd,157.50,06/02/2024
Delivery Units,Adults and Health,Other Agencies - Third Party P,0090686995,Bliss Care and Training Ltd,216.00,06/02/2024
Delivery Units,Adults and Health,Other Agencies - Third Party P,0090686996,Bliss Care and Training Ltd,126.00,06/02/2024
Delivery Units,Adults and Health,Other Agencies - Third Party P,0090686997,Bliss Care and Training Ltd,220.50,06/02/2024
Delivery Units,Adults and Health,Other Agencies - Third Party P,0090686998,Bliss Care and Training Ltd,94.50,06/02/2024
Delivery Units,Adults and Health,Other Agencies - Third Party P,0090686999,Bliss Care and Training Ltd,63.00,06/02/2024
Delivery Units,Adults and Health,Other Agencies - Third Party P,0090687000,Bliss Care and Training Ltd,256.50,06/02/2024
Delivery Units,Adults and Health,Other Agencies - Third Party P,0090687001,Bliss Care and Training Ltd,310.50,06/02/2024
Delivery Units,Adults and Health,Other Agencies - Third Party P,0090687002,Bliss Care and Training Ltd,252.00,06/02/2024
Delivery Units,Adults and Health,Other Agencies - Third Party P,0090687003,Bliss Care and Training Ltd,90.00,06/02/2024
Delivery Units,Adults and Health,Other Agencies - Third Party P,0090687004,Bliss Care and Training Ltd,220.50,06/02/2024
Delivery Units,Adults and Health,Other Agencies - Third Party P,0090687006,Bliss Care and Training Ltd,189.00,06/02/2024
Delivery Units,Adults and Health,Other Agencies - Third Party P,0090687007,Bliss Care and Training Ltd,504.00,06/02/2024
Delivery Units,Adults and Health,Other Agencies - Third Party P,0090687008,Bliss Care and Training Ltd,252.00,06/02/2024
Delivery Units,Adults and Health,Other Agencies - Third Party P,0090687009,Bliss Care and Training Ltd,36.00,06/02/2024
Delivery Units,Adults and Health,Other Agencies - Third Party P,0090687010,Bliss Care and Training Ltd,94.50,06/02/2024
Delivery Units,Adults and Health,Other Agencies - Third Party P,0090687011,Bliss Care and Training Ltd,126.00,06/02/2024
Delivery Units,Adults and Health,Other Agencies - Third Party P,0090687012,Bliss Care and Training Ltd,18.00,06/02/2024
Delivery Units,Adults and Health,Other Agencies - Third Party P,0090687021,Bliss Care and Training Ltd,891.00,06/02/2024
Delivery Units,Adults and Health,Other Agencies - Third Party P,0090687053,Bliss Care and Training Ltd,261.00,06/02/2024
Delivery Units,Adults and Health,Other Agencies - Third Party P,0090687065,Bliss Care and Training Ltd,72.00,06/02/2024
Delivery Units,Adults and Health,Other Agencies - Third Party P,0090687072,Bliss Care and Training Ltd,504.00,06/02/2024
Delivery Units,Adults and Health,Other Agencies - Third Party P,0090687075,Bliss Care and Training Ltd,378.00,06/02/2024
Delivery Units,Adults and Health,Other Agencies - Third Party P,0090687076,Bliss Care and Training Ltd,279.00,06/02/2024
Delivery Units,Adults and Health,Other Agencies - Third Party P,0090687079,Bliss Care and Training Ltd,441.00,06/02/2024
Delivery Units,Adults and Health,Other Agencies - Third Party P,0090687080,Bliss Care and Training Ltd,27.00,06/02/2024
Delivery Units,Adults and Health,Other Agencies - Third Party P,0090687082,Bliss Care and Training Ltd,441.00,06/02/2024
Delivery Units,Adults and Health,Other Agencies - Third Party P,0090687083,Bliss Care and Training Ltd,567.00,06/02/2024
Delivery Units,Adults and Health,Other Agencies - Third Party P,0090687084,Bliss Care and Training Ltd,630.00,06/02/2024
Delivery Units,Adults and Health,Other Agencies - Third Party P,0090687085,Bliss Care and Training Ltd,351.00,06/02/2024
Delivery Units,Adults and Health,Other Agencies - Third Party P,0090687088,Bliss Care and Training Ltd,81.00,06/02/2024
Delivery Units,Adults and Health,Other Agencies - Third Party P,0090687090,Bliss Care and Training Ltd,63.00,06/02/2024
Delivery Units,Adults and Health,Other Agencies - Third Party P,0090687096,Bliss Care and Training Ltd,157.50,06/02/2024
Delivery Units,Adults and Health,Other Agencies - Third Party P,0090687097,Bliss Care and Training Ltd,189.00,06/02/2024
Delivery Units,Adults and Health,Other Agencies - Third Party P,0090687098,Bliss Care and Training Ltd,261.00,06/02/2024
Delivery Units,Adults and Health,Other Agencies - Third Party P,0090687099,Bliss Care and Training Ltd,220.50,06/02/2024
Delivery Units,Adults and Health,Other Agencies - Third Party P,0090687100,Bliss Care and Training Ltd,18.00,06/02/2024
Delivery Units,Adults and Health,Other Agencies - Third Party P,0090687102,Bliss Care and Training Ltd,333.00,06/02/2024
Delivery Units,Adults and Health,Other Agencies - Third Party P,0090687104,Bliss Care and Training Ltd,94.50,06/02/2024
Delivery Units,Adults and Health,Other Agencies - Third Party P,0090687106,Bliss Care and Training Ltd,126.00,06/02/2024
Delivery Units,Adults and Health,Other Agencies - Third Party P,0090687108,Bliss Care and Training Ltd,63.00,06/02/2024
Delivery Units,Adults and Health,Other Agencies - Third Party P,0090687109,Bliss Care and Training Ltd,126.00,06/02/2024
Delivery Units,Adults and Health,Other Agencies - Third Party P,0090687110,Bliss Care and Training Ltd,504.00,06/02/2024
Delivery Units,Adults and Health,Other Agencies - Third Party P,0090687111,Bliss Care and Training Ltd,63.00,06/02/2024
Delivery Units,Adults and Health,Other Agencies - Third Party P,0090687112,Bliss Care and Training Ltd,157.50,06/02/2024
Delivery Units,Adults and Health,Other Agencies - Third Party P,0090687113,Bliss Care and Training Ltd,94.50,06/02/2024
Delivery Units,Adults and Health,Other Agencies - Third Party P,0090687114,Bliss Care and Training Ltd,94.50,06/02/2024
Delivery Units,Adults and Health,Other Agencies - Third Party P,0090687115,Bliss Care and Training Ltd,45.00,06/02/2024
Delivery Units,Adults and Health,Other Agencies - Third Party P,0090687116,Bliss Care and Training Ltd,684.00,06/02/2024
Delivery Units,Adults and Health,Other Agencies - Third Party P,0090687117,Bliss Care and Training Ltd,261.00,06/02/2024
Delivery Units,Adults and Health,Other Agencies - Third Party P,0090687118,Bliss Care and Training Ltd,441.00,06/02/2024
Delivery Units,Adults and Health,Other Agencies - Third Party P,0090687119,Bliss Care and Training Ltd,283.50,06/02/2024
Delivery Units,Adults and Health,Other Agencies - Third Party P,0090687120,Bliss Care and Training Ltd,378.00,06/02/2024
Delivery Units,Adults and Health,Other Agencies - Third Party P,0090687123,Bliss Care and Training Ltd,630.00,06/02/2024
Delivery Units,Adults and Health,Other Agencies - Third Party P,0090687125,Bliss Care and Training Ltd,252.00,06/02/2024
Delivery Units,Adults and Health,Other Agencies - Third Party P,0090687126,Bliss Care and Training Ltd,157.50,06/02/2024
Delivery Units,Adults and Health,Other Agencies - Third Party P,0090687127,Bliss Care and Training Ltd,40.50,06/02/2024
Delivery Units,Adults and Health,Other Agencies - Third Party P,0090687128,Bliss Care and Training Ltd,346.50,06/02/2024
Delivery Units,Adults and Health,Other Agencies - Third Party P,0090687129,Bliss Care and Training Ltd,220.50,06/02/2024
Delivery Units,Adults and Health,Other Agencies - Third Party P,0090687130,Bliss Care and Training Ltd,315.00,06/02/2024
Delivery Units,Adults and Health,Other Agencies - Third Party P,0090687131,Bliss Care and Training Ltd,157.50,06/02/2024
Delivery Units,Adults and Health,Other Agencies - Third Party P,0090687132,Bliss Care and Training Ltd,346.50,06/02/2024
Delivery Units,Adults and Health,Other Agencies - Third Party P,0090687134,Bliss Care and Training Ltd,306.00,06/02/2024
Delivery Units,Adults and Health,Other Agencies - Third Party P,0090687135,Bliss Care and Training Ltd,67.50,06/02/2024
Delivery Units,Adults and Health,Other Agencies - Third Party P,0090687137,Bliss Care and Training Ltd,162.00,06/02/2024
Delivery Units,Adults and Health,Other Agencies - Third Party P,0090687138,Bliss Care and Training Ltd,135.00,06/02/2024
Delivery Units,Adults and Health,Other Agencies - Third Party P,0090687139,Bliss Care and Training Ltd,157.50,06/02/2024
Delivery Units,Adults and Health,Other Agencies - Third Party P,0090687140,Bliss Care and Training Ltd,378.00,06/02/2024
Delivery Units,Adults and Health,Other Agencies - Third Party P,0090687141,Bliss Care and Training Ltd,126.00,06/02/2024
Delivery Units,Adults and Health,Other Agencies - Third Party P,0090687142,Bliss Care and Training Ltd,220.50,06/02/2024
Delivery Units,Adults and Health,Other Agencies - Third Party P,0090687143,Bliss Care and Training Ltd,94.50,06/02/2024
Delivery Units,Adults and Health,Other Agencies - Third Party P,0090687144,Bliss Care and Training Ltd,63.00,06/02/2024
Delivery Units,Adults and Health,Other Agencies - Third Party P,0090687145,Bliss Care and Training Ltd,180.00,06/02/2024
Delivery Units,Adults and Health,Other Agencies - Third Party P,0090687146,Bliss Care and Training Ltd,310.50,06/02/2024
Delivery Units,Adults and Health,Other Agencies - Third Party P,0090687147,Bliss Care and Training Ltd,171.00,06/02/2024
Delivery Units,Adults and Health,Other Agencies - Third Party P,0090687148,Bliss Care and Training Ltd,90.00,06/02/2024
Delivery Units,Adults and Health,Other Agencies - Third Party P,0090687149,Bliss Care and Training Ltd,220.50,06/02/2024
Delivery Units,Adults and Health,Other Agencies - Third Party P,0090687151,Bliss Care and Training Ltd,189.00,06/02/2024
Delivery Units,Adults and Health,Other Agencies - Third Party P,0090687152,Bliss Care and Training Ltd,504.00,06/02/2024
Delivery Units,Adults and Health,Other Agencies - Third Party P,0090687153,Bliss Care and Training Ltd,252.00,06/02/2024
Delivery Units,Adults and Health,Other Agencies - Third Party P,0090687154,Bliss Care and Training Ltd,27.00,06/02/2024
Delivery Units,Adults and Health,Other Agencies - Third Party P,0090687155,Bliss Care and Training Ltd,126.00,06/02/2024
Delivery Units,Adults and Health,Other Agencies - Third Party P,0090687156,Bliss Care and Training Ltd,18.00,06/02/2024
Delivery Units,Adults and Health,Other Agencies - Third Party P,0090687159,Bliss Care and Training Ltd,891.00,06/02/2024
Delivery Units,Adults and Health,Other Agencies - Third Party P,0090687187,Bliss Care and Training Ltd,346.50,06/02/2024
Delivery Units,Adults and Health,Other Agencies - Third Party P,0090687208,Bliss Care and Training Ltd,216.00,06/02/2024
Delivery Units,Adults and Health,Other Agencies - Third Party P,0090687211,Bliss Care and Training Ltd,378.00,06/02/2024
Delivery Units,Adults and Health,Other Agencies - Third Party P,0090687212,Bliss Care and Training Ltd,207.00,06/02/2024
Delivery Units,Adults and Health,Other Agencies - Third Party P,0090687217,Bliss Care and Training Ltd,441.00,06/02/2024
Delivery Units,Adults and Health,Other Agencies - Third Party P,0090687218,Bliss Care and Training Ltd,94.50,06/02/2024
Delivery Units,Adults and Health,Other Agencies - Third Party P,0090687220,Bliss Care and Training Ltd,441.00,06/02/2024
Delivery Units,Adults and Health,Other Agencies - Third Party P,0090687247,Care Sante London Limited,"3,259.20",08/02/2024
Delivery Units,Adults and Health,Other Agencies - Third Party P,0090687248,Care Sante London Limited,"3,259.20",08/02/2024
Delivery Units,Adults and Health,Other Agencies - Third Party P,0090687249,Care Sante London Limited,"3,259.20",08/02/2024
Delivery Units,Adults and Health,Other Agencies - Third Party P,0090687250,Care Sante London Limited,"3,259.20",08/02/2024
Delivery Units,Adults and Health,Other Agencies - Third Party P,0090687251,Care Sante London Limited,244.74,08/02/2024
Delivery Units,Adults and Health,Other Agencies - Third Party P,0090687252,Care Sante London Limited,241.39,08/02/2024
Delivery Units,Adults and Health,Other Agencies - Third Party P,0090687253,Care Sante London Limited,200.80,08/02/2024
Delivery Units,Adults and Health,Other Agencies - Third Party P,0090687254,Care Sante London Limited,256.34,08/02/2024
Delivery Units,Adults and Health,Other Agencies - Third Party P,0090687255,Care Sante London Limited,256.34,08/02/2024
Delivery Units,Adults and Health,Other Agencies - Third Party P,0090687256,Care Sante London Limited,274.65,08/02/2024
Delivery Units,Adults and Health,Other Agencies - Third Party P,0090687257,Care Sante London Limited,247.35,08/02/2024
Delivery Units,Adults and Health,Other Agencies - Third Party P,0090687258,Care Sante London Limited,271.60,08/02/2024
Delivery Units,Adults and Health,Other Agencies - Third Party P,0090687262,Care Sante London Limited,"2,880.90",08/02/2024
Delivery Units,Adults and Health,Other Agencies - Third Party P,0090687266,Care Sante London Limited,73.24,08/02/2024
Delivery Units,Adults and Health,Other Agencies - Third Party P,0090687267,Care Sante London Limited,74.72,08/02/2024
Delivery Units,Adults and Health,Other Agencies - Third Party P,0090687268,Care Sante London Limited,73.79,08/02/2024
Delivery Units,Adults and Health,Other Agencies - Third Party P,0090687269,Care Sante London Limited,74.72,08/02/2024
Delivery Units,Adults and Health,Other Agencies - Third Party P,0090687270,Care Sante London Limited,70.23,08/02/2024
Delivery Units,Adults and Health,Other Agencies - Third Party P,0090687271,Care Sante London Limited,77.60,08/02/2024
Delivery Units,Adults and Health,Other Agencies - Third Party P,0090687272,Care Sante London Limited,77.60,08/02/2024
Delivery Units,Adults and Health,Other Agencies - Third Party P,0090687273,Care Sante London Limited,77.60,08/02/2024
Delivery Units,Adults and Health,Other Agencies - Third Party P,0090687274,Care Sante London Limited,77.60,08/02/2024
Delivery Units,Adults and Health,Other Agencies - Third Party P,0090687275,Care Sante London Limited,77.60,08/02/2024
Delivery Units,Adults and Health,Other Agencies - Third Party P,0090687276,Care Sante London Limited,77.60,08/02/2024
Delivery Units,Adults and Health,Other Agencies - Third Party P,0090687277,Care Sante London Limited,77.60,08/02/2024
Delivery Units,Adults and Health,Other Agencies - Third Party P,0090687278,Care Sante London Limited,77.60,08/02/2024
Delivery Units,Adults and Health,Other Agencies - Third Party P,0090687279,Care Sante London Limited,77.60,08/02/2024
Delivery Units,Adults and Health,Other Agencies - Third Party P,0090687280,Care Sante London Limited,77.60,08/02/2024
Delivery Units,Adults and Health,Other Agencies - Third Party P,0090687281,Care Sante London Limited,77.60,08/02/2024
Delivery Units,Adults and Health,Other Agencies - Third Party P,0090687282,Care Sante London Limited,77.60,08/02/2024
Delivery Units,Adults and Health,Other Agencies - Third Party P,0090687283,Care Sante London Limited,77.60,08/02/2024
Delivery Units,Adults and Health,Other Agencies - Third Party P,0090687284,Care Sante London Limited,77.60,08/02/2024
Delivery Units,Adults and Health,Other Agencies - Third Party P,0090687285,Care Sante London Limited,77.60,08/02/2024
Delivery Units,Adults and Health,Other Agencies - Third Party P,0090687286,Care Sante London Limited,75.66,08/02/2024
Delivery Units,Adults and Health,Other Agencies - Third Party P,0090687287,Care Sante London Limited,77.60,08/02/2024
Delivery Units,Adults and Health,Other Agencies - Third Party P,0090687288,Care Sante London Limited,77.60,08/02/2024
Delivery Units,Adults and Health,Other Agencies - Third Party P,0090687289,Care Sante London Limited,77.60,08/02/2024
Delivery Units,Adults and Health,Other Agencies - Third Party P,0090687290,Care Sante London Limited,"3,079.75",08/02/2024
Delivery Units,Adults and Health,Other Agencies - Third Party P,0090687291,Care Sante London Limited,"3,259.20",08/02/2024
Delivery Units,Adults and Health,Other Agencies - Third Party P,0090687292,Care Sante London Limited,"3,239.80",08/02/2024
Delivery Units,Adults and Health,Other Agencies - Third Party P,0090687293,Care Sante London Limited,"2,793.60",08/02/2024
Delivery Units,Adults and Health,Other Agencies - Third Party P,0090687294,Carecroft Ltd,"1,054.20",08/02/2024
Delivery Units,Adults and Health,Other Agencies - Third Party P,0090687298,Homecare Alliance Ltd,"2,858.64",08/02/2024
Delivery Units,Adults and Health,Other Agencies - Third Party P,0090687312,Circle Care Ltd,"1,156.68",08/02/2024
Delivery Units,Adults and Health,Other Agencies - Third Party P,0090687376,Exceptional Care at Home Ltd,441.00,08/02/2024
Delivery Units,Adults and Health,Other Agencies - Third Party P,0090687378,Exceptional Care at Home Ltd,264.60,08/02/2024
Delivery Units,Adults and Health,Other Agencies - Third Party P,0090687379,Exceptional Care at Home Ltd,240.10,08/02/2024
Delivery Units,Adults and Health,Other Agencies - Third Party P,0090687380,Exceptional Care at Home Ltd,230.30,08/02/2024
Delivery Units,Adults and Health,Other Agencies - Third Party P,0090687381,Exceptional Care at Home Ltd,235.20,08/02/2024
Delivery Units,Adults and Health,Other Agencies - Third Party P,0090687382,Exceptional Care at Home Ltd,235.20,08/02/2024
Delivery Units,Adults and Health,Other Agencies - Third Party P,0090687383,Exceptional Care at Home Ltd,284.20,08/02/2024
Delivery Units,Adults and Health,Other Agencies - Third Party P,0090687384,Exceptional Care at Home Ltd,470.40,08/02/2024
Delivery Units,Adults and Health,Other Agencies - Third Party P,0090687385,Exceptional Care at Home Ltd,102.90,08/02/2024
Delivery Units,Adults and Health,Other Agencies - Third Party P,0090687386,Exceptional Care at Home Ltd,235.20,08/02/2024
Delivery Units,Adults and Health,Other Agencies - Third Party P,0090687387,Exceptional Care at Home Ltd,279.30,08/02/2024
Delivery Units,Adults and Health,Other Agencies - Third Party P,0090687388,Exceptional Care at Home Ltd,347.90,08/02/2024
Delivery Units,Adults and Health,Other Agencies - Third Party P,0090687389,Exceptional Care at Home Ltd,627.20,08/02/2024
Delivery Units,Adults and Health,Other Agencies - Third Party P,0090687390,Exceptional Care at Home Ltd,215.60,08/02/2024
Delivery Units,Adults and Health,Other Agencies - Third Party P,0090687391,Exceptional Care at Home Ltd,117.60,08/02/2024
Delivery Units,Adults and Health,Other Agencies - Third Party P,0090687392,Exceptional Care at Home Ltd,891.80,08/02/2024
Delivery Units,Adults and Health,Other Agencies - Third Party P,0090687393,Exceptional Care at Home Ltd,367.50,08/02/2024
Delivery Units,Adults and Health,Other Agencies - Third Party P,0090687394,Exceptional Care at Home Ltd,58.80,08/02/2024
Delivery Units,Adults and Health,Other Agencies - Third Party P,0090687395,Exceptional Care at Home Ltd,"1,064.28",08/02/2024
Delivery Units,Adults and Health,Other Agencies - Third Party P,0090687396,Exceptional Care at Home Ltd,102.90,08/02/2024
Delivery Units,Adults and Health,Other Agencies - Third Party P,0090687397,Exceptional Care at Home Ltd,205.80,08/02/2024
Delivery Units,Adults and Health,Other Agencies - Third Party P,0090687398,Exceptional Care at Home Ltd,274.40,08/02/2024
Delivery Units,Adults and Health,Other Agencies - Third Party P,0090687399,Exceptional Care at Home Ltd,396.90,08/02/2024
Delivery Units,Adults and Health,Other Agencies - Third Party P,0090687400,Exceptional Care at Home Ltd,754.60,08/02/2024
Delivery Units,Adults and Health,Other Agencies - Third Party P,0090687401,Exceptional Care at Home Ltd,264.60,08/02/2024
Delivery Units,Adults and Health,Other Agencies - Third Party P,0090687402,Exceptional Care at Home Ltd,352.80,08/02/2024
Delivery Units,Adults and Health,Other Agencies - Third Party P,0090687403,Exceptional Care at Home Ltd,176.40,08/02/2024
Delivery Units,Adults and Health,Other Agencies - Third Party P,0090687404,Exceptional Care at Home Ltd,480.20,08/02/2024
Delivery Units,Adults and Health,Other Agencies - Third Party P,0090687406,Exceptional Care at Home Ltd,298.90,08/02/2024
Delivery Units,Adults and Health,Other Agencies - Third Party P,0090687407,Exceptional Care at Home Ltd,411.60,08/02/2024
Delivery Units,Adults and Health,Other Agencies - Third Party P,0090687408,Exceptional Care at Home Ltd,617.40,08/02/2024
Delivery Units,Adults and Health,Other Agencies - Third Party P,0090687409,Exceptional Care at Home Ltd,78.40,08/02/2024
Delivery Units,Adults and Health,Other Agencies - Third Party P,0090687410,Exceptional Care at Home Ltd,473.01,08/02/2024
Delivery Units,Adults and Health,Other Agencies - Third Party P,0090687411,Exceptional Care at Home Ltd,176.40,08/02/2024
Delivery Units,Adults and Health,Other Agencies - Third Party P,0090687412,Exceptional Care at Home Ltd,298.90,08/02/2024
Delivery Units,Adults and Health,Other Agencies - Third Party P,0090687414,Exceptional Care at Home Ltd,225.40,08/02/2024
Delivery Units,Adults and Health,Other Agencies - Third Party P,0090687415,Exceptional Care at Home Ltd,240.10,08/02/2024
Delivery Units,Adults and Health,Other Agencies - Third Party P,0090687416,Exceptional Care at Home Ltd,171.50,08/02/2024
Delivery Units,Adults and Health,Other Agencies - Third Party P,0090687417,Exceptional Care at Home Ltd,117.60,08/02/2024
Delivery Units,Adults and Health,Other Agencies - Third Party P,0090687418,Exceptional Care at Home Ltd,205.80,08/02/2024
Delivery Units,Adults and Health,Other Agencies - Third Party P,0090687419,Exceptional Care at Home Ltd,88.20,08/02/2024
Delivery Units,Adults and Health,Other Agencies - Third Party P,0090687420,Exceptional Care at Home Ltd,235.20,08/02/2024
Delivery Units,Adults and Health,Other Agencies - Third Party P,0090687421,Exceptional Care at Home Ltd,284.20,08/02/2024
Delivery Units,Adults and Health,Other Agencies - Third Party P,0090687423,Exceptional Care at Home Ltd,"1,029.00",08/02/2024
Delivery Units,Adults and Health,Other Agencies - Third Party P,0090687424,Exceptional Care at Home Ltd,632.10,08/02/2024
Delivery Units,Adults and Health,Other Agencies - Third Party P,0090687427,Exceptional Care at Home Ltd,308.70,08/02/2024
Delivery Units,Adults and Health,Other Agencies - Third Party P,0090687428,Exceptional Care at Home Ltd,553.70,08/02/2024
Delivery Units,Adults and Health,Other Agencies - Third Party P,0090687429,Exceptional Care at Home Ltd,205.80,08/02/2024
Delivery Units,Adults and Health,Other Agencies - Third Party P,0090687430,Exceptional Care at Home Ltd,308.70,08/02/2024
Delivery Units,Adults and Health,Other Agencies - Third Party P,0090687431,Exceptional Care at Home Ltd,725.20,08/02/2024
Delivery Units,Adults and Health,Other Agencies - Third Party P,0090687432,Exceptional Care at Home Ltd,191.10,08/02/2024
Delivery Units,Adults and Health,Other Agencies - Third Party P,0090687433,Exceptional Care at Home Ltd,88.20,08/02/2024
Delivery Units,Adults and Health,Other Agencies - Third Party P,0090687434,Exceptional Care at Home Ltd,617.40,08/02/2024
Delivery Units,Adults and Health,Other Agencies - Third Party P,0090687435,Exceptional Care at Home Ltd,264.60,08/02/2024
Delivery Units,Adults and Health,Other Agencies - Third Party P,0090687438,Exceptional Care at Home Ltd,308.70,08/02/2024
Delivery Units,Adults and Health,Other Agencies - Third Party P,0090687439,Exceptional Care at Home Ltd,411.60,08/02/2024
Delivery Units,Adults and Health,Other Agencies - Third Party P,0090687440,Exceptional Care at Home Ltd,71.87,08/02/2024
Delivery Units,Adults and Health,Other Agencies - Third Party P,0090687441,Exceptional Care at Home Ltd,891.80,08/02/2024
Delivery Units,Adults and Health,Other Agencies - Third Party P,0090687443,Exceptional Care at Home Ltd,147.00,08/02/2024
Delivery Units,Adults and Health,Other Agencies - Third Party P,0090687444,Exceptional Care at Home Ltd,132.30,08/02/2024
Delivery Units,Adults and Health,Other Agencies - Third Party P,0090687445,Exceptional Care at Home Ltd,205.80,08/02/2024
Delivery Units,Adults and Health,Other Agencies - Third Party P,0090687446,Exceptional Care at Home Ltd,323.40,08/02/2024
Delivery Units,Adults and Health,Other Agencies - Third Party P,0090687447,Exceptional Care at Home Ltd,235.20,08/02/2024
Delivery Units,Adults and Health,Other Agencies - Third Party P,0090687448,Exceptional Care at Home Ltd,58.80,08/02/2024
Delivery Units,Adults and Health,Other Agencies - Third Party P,0090687450,Exceptional Care at Home Ltd,823.20,08/02/2024
Delivery Units,Adults and Health,Other Agencies - Third Party P,0090687452,Exceptional Care at Home Ltd,"1,300.00",08/02/2024
Delivery Units,Adults and Health,Other Agencies - Third Party P,0090687453,Exceptional Care at Home Ltd,548.80,08/02/2024
Delivery Units,Adults and Health,Other Agencies - Third Party P,0090687454,Exceptional Care at Home Ltd,"1,323.00",08/02/2024
Delivery Units,Adults and Health,Other Agencies - Third Party P,0090687458,Exceptional Care at Home Ltd,254.80,08/02/2024
Delivery Units,Adults and Health,Other Agencies - Third Party P,0090687459,Exceptional Care at Home Ltd,132.30,08/02/2024
Delivery Units,Adults and Health,Other Agencies - Third Party P,0090687486,Exceptional Care at Home Ltd,264.60,08/02/2024
Delivery Units,Adults and Health,Other Agencies - Third Party P,0090687487,Exceptional Care at Home Ltd,176.40,08/02/2024
Delivery Units,Adults and Health,Other Agencies - Third Party P,0090687488,Exceptional Care at Home Ltd,455.70,08/02/2024
Delivery Units,Adults and Health,Other Agencies - Third Party P,0090687490,Exceptional Care at Home Ltd,313.60,08/02/2024
Delivery Units,Adults and Health,Other Agencies - Third Party P,0090687491,Exceptional Care at Home Ltd,240.10,08/02/2024
Delivery Units,Adults and Health,Other Agencies - Third Party P,0090687492,Exceptional Care at Home Ltd,240.10,08/02/2024
Delivery Units,Adults and Health,Other Agencies - Third Party P,0090687493,Exceptional Care at Home Ltd,235.20,08/02/2024
Delivery Units,Adults and Health,Other Agencies - Third Party P,0090687494,Exceptional Care at Home Ltd,245.00,08/02/2024
Delivery Units,Adults and Health,Other Agencies - Third Party P,0090687495,Exceptional Care at Home Ltd,284.20,08/02/2024
Delivery Units,Adults and Health,Other Agencies - Third Party P,0090687496,Exceptional Care at Home Ltd,548.80,08/02/2024
Delivery Units,Adults and Health,Other Agencies - Third Party P,0090687497,Exceptional Care at Home Ltd,102.90,08/02/2024
Delivery Units,Adults and Health,Other Agencies - Third Party P,0090687498,Exceptional Care at Home Ltd,269.50,08/02/2024
Delivery Units,Adults and Health,Other Agencies - Third Party P,0090687499,Exceptional Care at Home Ltd,347.90,08/02/2024
Delivery Units,Adults and Health,Other Agencies - Third Party P,0090687500,Exceptional Care at Home Ltd,191.10,08/02/2024
Delivery Units,Adults and Health,Other Agencies - Third Party P,0090687501,Exceptional Care at Home Ltd,627.20,08/02/2024
Delivery Units,Adults and Health,Other Agencies - Third Party P,0090687502,Exceptional Care at Home Ltd,196.00,08/02/2024
Delivery Units,Adults and Health,Other Agencies - Third Party P,0090687503,Exceptional Care at Home Ltd,117.60,08/02/2024
Delivery Units,Adults and Health,Other Agencies - Third Party P,0090687504,Exceptional Care at Home Ltd,891.80,08/02/2024
Delivery Units,Adults and Health,Other Agencies - Third Party P,0090687505,Exceptional Care at Home Ltd,465.50,08/02/2024
Delivery Units,Adults and Health,Other Agencies - Third Party P,0090687506,Exceptional Care at Home Ltd,68.60,08/02/2024
Delivery Units,Adults and Health,Other Agencies - Third Party P,0090687507,Exceptional Care at Home Ltd,"1,064.28",08/02/2024
Delivery Units,Adults and Health,Other Agencies - Third Party P,0090687508,Exceptional Care at Home Ltd,102.90,08/02/2024
Delivery Units,Adults and Health,Other Agencies - Third Party P,0090687509,Exceptional Care at Home Ltd,205.80,08/02/2024
Delivery Units,Adults and Health,Other Agencies - Third Party P,0090687510,Exceptional Care at Home Ltd,274.40,08/02/2024
Delivery Units,Adults and Health,Other Agencies - Third Party P,0090687511,Exceptional Care at Home Ltd,396.90,08/02/2024
Delivery Units,Adults and Health,Other Agencies - Third Party P,0090687512,Exceptional Care at Home Ltd,754.60,08/02/2024
Delivery Units,Adults and Health,Other Agencies - Third Party P,0090687513,Exceptional Care at Home Ltd,308.70,08/02/2024
Delivery Units,Adults and Health,Other Agencies - Third Party P,0090687514,Exceptional Care at Home Ltd,411.60,08/02/2024
Delivery Units,Adults and Health,Other Agencies - Third Party P,0090687515,Exceptional Care at Home Ltd,240.10,08/02/2024
Delivery Units,Adults and Health,Other Agencies - Third Party P,0090687516,Exceptional Care at Home Ltd,480.20,08/02/2024
Delivery Units,Adults and Health,Other Agencies - Third Party P,0090687518,Exceptional Care at Home Ltd,362.60,08/02/2024
Delivery Units,Adults and Health,Other Agencies - Third Party P,0090687519,Exceptional Care at Home Ltd,411.60,08/02/2024
Delivery Units,Adults and Health,Other Agencies - Third Party P,0090687520,Exceptional Care at Home Ltd,617.40,08/02/2024
Delivery Units,Adults and Health,Other Agencies - Third Party P,0090687521,Exceptional Care at Home Ltd,98.00,08/02/2024
Delivery Units,Adults and Health,Other Agencies - Third Party P,0090687522,Exceptional Care at Home Ltd,512.21,08/02/2024
Delivery Units,Adults and Health,Other Agencies - Third Party P,0090687523,Exceptional Care at Home Ltd,200.90,08/02/2024
Delivery Units,Adults and Health,Other Agencies - Third Party P,0090687524,Exceptional Care at Home Ltd,308.70,08/02/2024
Delivery Units,Adults and Health,Other Agencies - Third Party P,0090687526,Exceptional Care at Home Ltd,225.40,08/02/2024
Delivery Units,Adults and Health,Other Agencies - Third Party P,0090687527,Exceptional Care at Home Ltd,44.10,08/02/2024
Delivery Units,Adults and Health,Other Agencies - Third Party P,0090687528,Exceptional Care at Home Ltd,240.10,08/02/2024
Delivery Units,Adults and Health,Other Agencies - Third Party P,0090687529,Exceptional Care at Home Ltd,225.40,08/02/2024
Delivery Units,Adults and Health,Other Agencies - Third Party P,0090687530,Exceptional Care at Home Ltd,191.10,08/02/2024
Delivery Units,Adults and Health,Other Agencies - Third Party P,0090687531,Exceptional Care at Home Ltd,205.80,08/02/2024
Delivery Units,Adults and Health,Other Agencies - Third Party P,0090687532,Exceptional Care at Home Ltd,88.20,08/02/2024
Delivery Units,Adults and Health,Other Agencies - Third Party P,0090687533,Exceptional Care at Home Ltd,274.40,08/02/2024
Delivery Units,Adults and Health,Other Agencies - Third Party P,0090687534,Exceptional Care at Home Ltd,308.70,08/02/2024
Delivery Units,Adults and Health,Other Agencies - Third Party P,0090687536,Exceptional Care at Home Ltd,"1,029.00",08/02/2024
Delivery Units,Adults and Health,Other Agencies - Third Party P,0090687537,Exceptional Care at Home Ltd,651.70,08/02/2024
Delivery Units,Adults and Health,Other Agencies - Third Party P,0090687540,Exceptional Care at Home Ltd,308.70,08/02/2024
Delivery Units,Adults and Health,Other Agencies - Third Party P,0090687541,Exceptional Care at Home Ltd,583.10,08/02/2024
Delivery Units,Adults and Health,Other Agencies - Third Party P,0090687542,Exceptional Care at Home Ltd,215.60,08/02/2024
Delivery Units,Adults and Health,Other Agencies - Third Party P,0090687543,Exceptional Care at Home Ltd,308.70,08/02/2024
Delivery Units,Adults and Health,Other Agencies - Third Party P,0090687544,Exceptional Care at Home Ltd,725.20,08/02/2024
Delivery Units,Adults and Health,Other Agencies - Third Party P,0090687545,Exceptional Care at Home Ltd,210.70,08/02/2024
Delivery Units,Adults and Health,Other Agencies - Third Party P,0090687546,Exceptional Care at Home Ltd,102.90,08/02/2024
Delivery Units,Adults and Health,Other Agencies - Third Party P,0090687547,Exceptional Care at Home Ltd,617.40,08/02/2024
Delivery Units,Adults and Health,Other Agencies - Third Party P,0090687548,Exceptional Care at Home Ltd,308.70,08/02/2024
Delivery Units,Adults and Health,Other Agencies - Third Party P,0090687551,Exceptional Care at Home Ltd,117.60,08/02/2024
Delivery Units,Adults and Health,Other Agencies - Third Party P,0090687552,Exceptional Care at Home Ltd,411.60,08/02/2024
Delivery Units,Adults and Health,Other Agencies - Third Party P,0090687553,Exceptional Care at Home Ltd,71.87,08/02/2024
Delivery Units,Adults and Health,Other Agencies - Third Party P,0090687554,Exceptional Care at Home Ltd,891.80,08/02/2024
Delivery Units,Adults and Health,Other Agencies - Third Party P,0090687556,Exceptional Care at Home Ltd,220.50,08/02/2024
Delivery Units,Adults and Health,Other Agencies - Third Party P,0090687557,Exceptional Care at Home Ltd,132.30,08/02/2024
Delivery Units,Adults and Health,Other Agencies - Third Party P,0090687558,Exceptional Care at Home Ltd,205.80,08/02/2024
Delivery Units,Adults and Health,Other Agencies - Third Party P,0090687559,Exceptional Care at Home Ltd,294.00,08/02/2024
Delivery Units,Adults and Health,Other Agencies - Third Party P,0090687560,Exceptional Care at Home Ltd,117.60,08/02/2024
Delivery Units,Adults and Health,Other Agencies - Third Party P,0090687562,Exceptional Care at Home Ltd,44.10,08/02/2024
Delivery Units,Adults and Health,Other Agencies - Third Party P,0090687564,Exceptional Care at Home Ltd,823.20,08/02/2024
Delivery Units,Adults and Health,Other Agencies - Third Party P,0090687566,Exceptional Care at Home Ltd,"1,300.00",08/02/2024
Delivery Units,Adults and Health,Other Agencies - Third Party P,0090687567,Exceptional Care at Home Ltd,548.80,08/02/2024
Delivery Units,Adults and Health,Other Agencies - Third Party P,0090687568,Exceptional Care at Home Ltd,"1,323.00",08/02/2024
Delivery Units,Adults and Health,Other Agencies - Third Party P,0090687571,Exceptional Care at Home Ltd,284.20,08/02/2024
Delivery Units,Adults and Health,Other Agencies - Third Party P,0090687572,Exceptional Care at Home Ltd,245.00,08/02/2024
Delivery Units,Adults and Health,Other Agencies - Third Party P,0090687593,Exceptional Care at Home Ltd,308.70,08/02/2024
Delivery Units,Adults and Health,Other Agencies - Third Party P,0090687600,Exceptional Care at Home Ltd,279.30,08/02/2024
Delivery Units,Adults and Health,Other Agencies - Third Party P,0090687601,Exceptional Care at Home Ltd,196.00,08/02/2024
Delivery Units,Adults and Health,Other Agencies - Third Party P,0090687602,Exceptional Care at Home Ltd,455.70,08/02/2024
Delivery Units,Adults and Health,Other Agencies - Third Party P,0090687604,Exceptional Care at Home Ltd,313.60,08/02/2024
Delivery Units,Adults and Health,Other Agencies - Third Party P,0090687605,Exceptional Care at Home Ltd,240.10,08/02/2024
Delivery Units,Adults and Health,Other Agencies - Third Party P,0090687606,Exceptional Care at Home Ltd,240.10,08/02/2024
Delivery Units,Adults and Health,Other Agencies - Third Party P,0090687607,Exceptional Care at Home Ltd,235.20,08/02/2024
Delivery Units,Adults and Health,Other Agencies - Third Party P,0090687608,Exceptional Care at Home Ltd,245.00,08/02/2024
Delivery Units,Adults and Health,Other Agencies - Third Party P,0090687609,Exceptional Care at Home Ltd,284.20,08/02/2024
Delivery Units,Adults and Health,Other Agencies - Third Party P,0090687610,Exceptional Care at Home Ltd,548.80,08/02/2024
Delivery Units,Adults and Health,Other Agencies - Third Party P,0090687611,Exceptional Care at Home Ltd,102.90,08/02/2024
Delivery Units,Adults and Health,Other Agencies - Third Party P,0090687612,Exceptional Care at Home Ltd,269.50,08/02/2024
Delivery Units,Adults and Health,Other Agencies - Third Party P,0090687613,Exceptional Care at Home Ltd,264.60,08/02/2024
Delivery Units,Adults and Health,Other Agencies - Third Party P,0090687614,Exceptional Care at Home Ltd,347.90,08/02/2024
Delivery Units,Adults and Health,Other Agencies - Third Party P,0090687615,Exceptional Care at Home Ltd,191.10,08/02/2024
Delivery Units,Adults and Health,Other Agencies - Third Party P,0090687616,Exceptional Care at Home Ltd,627.20,08/02/2024
Delivery Units,Adults and Health,Other Agencies - Third Party P,0090687617,Exceptional Care at Home Ltd,343.00,08/02/2024
Delivery Units,Adults and Health,Other Agencies - Third Party P,0090687618,Exceptional Care at Home Ltd,137.20,08/02/2024
Delivery Units,Adults and Health,Other Agencies - Third Party P,0090687619,Exceptional Care at Home Ltd,891.80,08/02/2024
Delivery Units,Adults and Health,Other Agencies - Third Party P,0090687620,Exceptional Care at Home Ltd,465.50,08/02/2024
Delivery Units,Adults and Health,Other Agencies - Third Party P,0090687621,Exceptional Care at Home Ltd,68.60,08/02/2024
Delivery Units,Adults and Health,Other Agencies - Third Party P,0090687622,Exceptional Care at Home Ltd,"1,064.28",08/02/2024
Delivery Units,Adults and Health,Other Agencies - Third Party P,0090687623,Exceptional Care at Home Ltd,102.90,08/02/2024
Delivery Units,Adults and Health,Other Agencies - Third Party P,0090687624,Exceptional Care at Home Ltd,205.80,08/02/2024
Delivery Units,Adults and Health,Other Agencies - Third Party P,0090687625,Exceptional Care at Home Ltd,274.40,08/02/2024
Delivery Units,Adults and Health,Other Agencies - Third Party P,0090687626,Exceptional Care at Home Ltd,754.60,08/02/2024
Delivery Units,Adults and Health,Other Agencies - Third Party P,0090687627,Exceptional Care at Home Ltd,323.40,08/02/2024
Delivery Units,Adults and Health,Other Agencies - Third Party P,0090687628,Exceptional Care at Home Ltd,411.60,08/02/2024
Delivery Units,Adults and Health,Other Agencies - Third Party P,0090687629,Exceptional Care at Home Ltd,240.10,08/02/2024
Delivery Units,Adults and Health,Other Agencies - Third Party P,0090687630,Exceptional Care at Home Ltd,509.60,08/02/2024
Delivery Units,Adults and Health,Other Agencies - Third Party P,0090687632,Exceptional Care at Home Ltd,362.60,08/02/2024
Delivery Units,Adults and Health,Other Agencies - Third Party P,0090687633,Exceptional Care at Home Ltd,411.60,08/02/2024
Delivery Units,Adults and Health,Other Agencies - Third Party P,0090687634,Exceptional Care at Home Ltd,617.40,08/02/2024
Delivery Units,Adults and Health,Other Agencies - Third Party P,0090687635,Exceptional Care at Home Ltd,98.00,08/02/2024
Delivery Units,Adults and Health,Other Agencies - Third Party P,0090687636,Exceptional Care at Home Ltd,512.21,08/02/2024
Delivery Units,Adults and Health,Other Agencies - Third Party P,0090687637,Exceptional Care at Home Ltd,200.90,08/02/2024
Delivery Units,Adults and Health,Other Agencies - Third Party P,0090687638,Exceptional Care at Home Ltd,308.70,08/02/2024
Delivery Units,Adults and Health,Other Agencies - Third Party P,0090687640,Exceptional Care at Home Ltd,205.80,08/02/2024
Delivery Units,Adults and Health,Other Agencies - Third Party P,0090687641,Exceptional Care at Home Ltd,44.10,08/02/2024
Delivery Units,Adults and Health,Other Agencies - Third Party P,0090687642,Exceptional Care at Home Ltd,240.10,08/02/2024
Delivery Units,Adults and Health,Other Agencies - Third Party P,0090687643,Exceptional Care at Home Ltd,259.70,08/02/2024
Delivery Units,Adults and Health,Other Agencies - Third Party P,0090687644,Exceptional Care at Home Ltd,191.10,08/02/2024
Delivery Units,Adults and Health,Other Agencies - Third Party P,0090687645,Exceptional Care at Home Ltd,205.80,08/02/2024
Delivery Units,Adults and Health,Other Agencies - Third Party P,0090687646,Exceptional Care at Home Ltd,88.20,08/02/2024
Delivery Units,Adults and Health,Other Agencies - Third Party P,0090687647,Exceptional Care at Home Ltd,274.40,08/02/2024
Delivery Units,Adults and Health,Other Agencies - Third Party P,0090687648,Exceptional Care at Home Ltd,308.70,08/02/2024
Delivery Units,Adults and Health,Other Agencies - Third Party P,0090687650,Exceptional Care at Home Ltd,"1,029.00",08/02/2024
Delivery Units,Adults and Health,Other Agencies - Third Party P,0090687651,Exceptional Care at Home Ltd,651.70,08/02/2024
Delivery Units,Adults and Health,Other Agencies - Third Party P,0090687654,Exceptional Care at Home Ltd,24.50,08/02/2024
Delivery Units,Adults and Health,Other Agencies - Third Party P,0090687655,Exceptional Care at Home Ltd,583.10,08/02/2024
Delivery Units,Adults and Health,Other Agencies - Third Party P,0090687656,Exceptional Care at Home Ltd,240.10,08/02/2024
Delivery Units,Adults and Health,Other Agencies - Third Party P,0090687657,Exceptional Care at Home Ltd,308.70,08/02/2024
Delivery Units,Adults and Health,Other Agencies - Third Party P,0090687658,Exceptional Care at Home Ltd,725.20,08/02/2024
Delivery Units,Adults and Health,Other Agencies - Third Party P,0090687659,Exceptional Care at Home Ltd,240.10,08/02/2024
Delivery Units,Adults and Health,Other Agencies - Third Party P,0090687660,Exceptional Care at Home Ltd,102.90,08/02/2024
Delivery Units,Adults and Health,Other Agencies - Third Party P,0090687661,Exceptional Care at Home Ltd,617.40,08/02/2024
Delivery Units,Adults and Health,Other Agencies - Third Party P,0090687662,Exceptional Care at Home Ltd,308.70,08/02/2024
Delivery Units,Adults and Health,Other Agencies - Third Party P,0090687665,Exceptional Care at Home Ltd,377.30,08/02/2024
